Workbook

Sheet Main
B10: 2019-10-11
B12: Sheet No. | C12: Template Name | D12: Summary
B13: 1 | C13: Future Intra | D13: For Intraday trading in F&O segment
B14: 2 | C14: Cash Intra | D14: For Intraday trading in cash market segment
B15: 3 | C15: Mid-cap Intra | D15: For Intraday trading in Mid-cap stocks
B16: 4 | C16: Bulk Deals | D16: Reveals Bulk Deals carried on NSE & BSE
B17: 5 | C17: Call Tracker
K27: `

Sheet Future Intra
M5: Back to Main Page
A6: FOR INTRA DAY TRADING | L6: =Main!B10 -> 2019-10-11
A9: Sr.no | B9: Sector | C9: Scrip | D9: CLOSE RATE | E9: Pivot Point | F9: Supports | I9: Resistances
B10: Sector | D10: Point | E10: Point | F10: S1 | G10: S2 | H10: S3 | I10: R1 | J10: R2 | K10: R3 | L10: HIGH | M10: LOW | N10: OI | O10: % Change in OI
A11: 1 | B11: Index | C11: BANKNIFTY | D11: 28106.60 | E11: 28258.87 | F11: 27827.73 | G11: 27548.87 | H11: 27117.73 | I11: 28537.73 | J11: 28968.87 | K11: 29247.73 | L11: 28690 | M11: 27980 | N11: 1623460 | O11: 11.48%
A12: 2 | B12: Index | C12: NIFTY | D12: 11254.25 | E12: 11261.07 | F12: 11208.18 | G12: 11162.12 | H12: 11109.23 | I12: 11307.13 | J12: 11360.02 | K12: 11406.08 | L12: 11313.95 | M12: 11215 | N12: 15654300 | O12: 0.28%
A13: 3 | B13: Index | C13: NIFTYIT | D13: 15131.00 | E13: 15148.00 | F13: 15016.00 | G13: 14901.00 | H13: 14769.00 | I13: 15263.00 | J13: 15395.00 | K13: 15510.00 | L13: 15280 | M13: 15033 | N13: 13250 | O13: 9.05%
A14: 4 | B14: Cement | C14: ACC | D14: 1429.25 | E14: 1440.47 | F14: 1411.73 | G14: 1394.22 | H14: 1365.48 | I14: 1457.98 | J14: 1486.72 | K14: 1504.23 | L14: 1469.2 | M14: 1422.95 | N14: 2412400 | O14: 0.99%
A15: 5 | B15: Others | C15: ADANIENT | D15: 137.60 | E15: 137.32 | F15: 135.43 | G15: 133.27 | H15: 131.38 | I15: 139.48 | J15: 141.37 | K15: 143.53 | L15: 139.2 | M15: 135.15 | N15: 26296000 | O15: -0.33%
A16: 6 | B16: Others | C16: ADANIPORTS | D16: 400.60 | E16: 399.53 | F16: 397.12 | G16: 393.63 | H16: 391.22 | I16: 403.02 | J16: 405.43 | K16: 408.92 | L16: 401.95 | M16: 396.05 | N16: 11665000 | O16: -2.06%
A17: 7 | B17: Power | C17: ADANIPOWER | D17: 62.35 | E17: 61.35 | F17: 59.85 | G17: 57.35 | H17: 55.85 | I17: 63.85 | J17: 65.35 | K17: 67.85 | L17: 62.85 | M17: 58.85 | N17: 91620000 | O17: -0.76%
A18: 8 | B18: Automobile | C18: AMARAJABAT | D18: 681.40 | E18: 687.53 | F18: 672.57 | G18: 663.73 | H18: 648.77 | I18: 696.37 | J18: 711.33 | K18: 720.17 | L18: 702.5 | M18: 678.7 | N18: 1621900 | O18: 0.22%
A19: 9 | B19: Cement | C19: AMBUJACEM | D19: 188.25 | E19: 189.22 | F19: 186.23 | G19: 184.22 | H19: 181.23 | I19: 191.23 | J19: 194.22 | K19: 196.23 | L19: 192.2 | M19: 187.2 | N19: 23997500 | O19: -0.22%
A20: 10 | B20: Others | C20: APOLLOHOSP | D20: 1418.45 | E20: 1420.85 | F20: 1402.80 | G20: 1387.15 | H20: 1369.10 | I20: 1436.50 | J20: 1454.55 | K20: 1470.20 | L20: 1438.9 | M20: 1405.2 | N20: 1467500 | O20: 0.41%
A21: 11 | B21: Automobile | C21: APOLLOTYRE | D21: 166.30 | E21: 166.78 | F21: 164.57 | G21: 162.83 | H21: 160.62 | I21: 168.52 | J21: 170.73 | K21: 172.47 | L21: 169 | M21: 165.05 | N21: 7107000 | O21: -3.46%
A22: 13 | B22: Automobile | C22: ASHOKLEY | D22: 68.85 | E22: 69.12 | F22: 67.43 | G22: 66.02 | H22: 64.33 | I22: 70.53 | J22: 72.22 | K22: 73.63 | L22: 70.8 | M22: 67.7 | N22: 65790000 | O22: -4.92%
A23: 14 | B23: FMCG | C23: ASIANPAINT | D23: 1777.95 | E23: 1774.45 | F23: 1758.65 | G23: 1739.35 | H23: 1723.55 | I23: 1793.75 | J23: 1809.55 | K23: 1828.85 | L23: 1790.25 | M23: 1755.15 | N23: 8441400 | O23: -0.89%
A24: 15 | B24: Pharma | C24: AUROPHARMA | D24: 465.45 | E24: 459.22 | F24: 443.68 | G24: 421.92 | H24: 406.38 | I24: 480.98 | J24: 496.52 | K24: 518.28 | L24: 474.75 | M24: 437.45 | N24: 18898000 | O24: -1.60%
A25: 16 | B25: Banking | C25: AXISBANK | D25: 675.95 | E25: 677.08 | F25: 667.42 | G25: 658.88 | H25: 649.22 | I25: 685.62 | J25: 695.28 | K25: 703.82 | L25: 686.75 | M25: 668.55 | N25: 61120800 | O25: -0.01%
A26: 17 | B26: Automobile | C26: BAJAJ-AUTO | D26: 2898.30 | E26: 2903.53 | F26: 2868.52 | G26: 2838.73 | H26: 2803.72 | I26: 2933.32 | J26: 2968.33 | K26: 2998.12 | L26: 2938.55 | M26: 2873.75 | N26: 2135000 | O26: -0.88%
A27: 18 | B27: Finance | C27: BAJAJFINSV | D27: 8237.05 | E27: 8275.40 | F27: 8172.20 | G27: 8107.35 | H27: 8004.15 | I27: 8340.25 | J27: 8443.45 | K27: 8508.30 | L27: 8378.6 | M27: 8210.55 | N27: 1046000 | O27: -0.88%
A28: 19 | B28: Finance | C28: BAJFINANCE | D28: 3963.70 | E28: 3980.20 | F28: 3926.40 | G28: 3889.10 | H28: 3835.30 | I28: 4017.50 | J28: 4071.30 | K28: 4108.60 | L28: 4034 | M28: 3942.9 | N28: 6622250 | O28: -1.22%
A29: 20 | B29: Automobile | C29: BALKRISIND | D29: 746.40 | E29: 742.78 | F29: 733.62 | G29: 720.83 | H29: 711.67 | I29: 755.57 | J29: 764.73 | K29: 777.52 | L29: 751.95 | M29: 730 | N29: 1665600 | O29: 0.00%
A30: 21 | B30: Banking | C30: BANKBARODA | D30: 88.00 | E30: 88.57 | F30: 86.78 | G30: 85.57 | H30: 83.78 | I30: 89.78 | J30: 91.57 | K30: 92.78 | L30: 90.35 | M30: 87.35 | N30: 67581000 | O30: -0.07%
A31: 22 | B31: Banking | C31: BANKINDIA | D31: 59.70 | E31: 60.00 | F31: 58.80 | G31: 57.90 | H31: 56.70 | I31: 60.90 | J31: 62.10 | K31: 63.00 | L31: 61.2 | M31: 59.1 | N31: 26778000 | O31: -0.31%
A32: 23 | B32: FMCG | C32: BATAINDIA | D32: 1690.65 | E32: 1701.77 | F32: 1669.58 | G32: 1648.52 | H32: 1616.33 | I32: 1722.83 | J32: 1755.02 | K32: 1776.08 | L32: 1733.95 | M32: 1680.7 | N32: 2695000 | O32: 3.09%
A33: 24 | B33: Capital_Goods | C33: BEL | D33: 105.85 | E33: 105.52 | F33: 104.43 | G33: 103.02 | H33: 101.93 | I33: 106.93 | J33: 108.02 | K33: 109.43 | L33: 106.6 | M33: 104.1 | N33: 23802000 | O33: 1.69%
A34: 25 | B34: FMCG | C34: BERGEPAINT | D34: 448.35 | E34: 445.33 | F34: 439.17 | G34: 429.98 | H34: 423.82 | I34: 454.52 | J34: 460.68 | K34: 469.87 | L34: 451.5 | M34: 436.15 | N34: 6157800 | O34: 2.60%
A35: 26 | B35: Automobile | C35: BHARATFORG | D35: 424.75 | E35: 427.38 | F35: 420.77 | G35: 416.78 | H35: 410.17 | I35: 431.37 | J35: 437.98 | K35: 441.97 | L35: 434 | M35: 423.4 | N35: 7701600 | O35: -1.00%
A36: 27 | B36: Telecom | C36: BHARTIARTL | D36: 377.70 | E36: 375.28 | F36: 365.42 | G36: 353.13 | H36: 343.27 | I36: 387.57 | J36: 397.43 | K36: 409.72 | L36: 385.15 | M36: 363 | N36: 41073690 | O36: -4.63%
A37: 28 | B37: Capital_Goods | C37: BHEL | D37: 43.15 | E37: 43.63 | F37: 42.37 | G37: 41.58 | H37: 40.32 | I37: 44.42 | J37: 45.68 | K37: 46.47 | L37: 44.9 | M37: 42.85 | N37: 49807500 | O37: 2.01%
A38: 29 | B38: Pharma | C38: BIOCON | D38: 240.65 | E38: 239.37 | F38: 234.83 | G38: 229.02 | H38: 224.48 | I38: 245.18 | J38: 249.72 | K38: 255.53 | L38: 243.9 | M38: 233.55 | N38: 12040200 | O38: 7.68%
A39: 30 | B39: Automobile | C39: BOSCHLTD | D39: 13338.90 | E39: 13334.35 | F39: 13244.70 | G39: 13150.50 | H39: 13060.85 | I39: 13428.55 | J39: 13518.20 | K39: 13612.40 | L39: 13424 | M39: 13240.15 | N39: 146640 | O39: -0.10%
A40: 31 | B40: Oil_Gas | C40: BPCL | D40: 491.95 | E40: 491.32 | F40: 486.28 | G40: 480.62 | H40: 475.58 | I40: 496.98 | J40: 502.02 | K40: 507.68 | L40: 496.35 | M40: 485.65 | N40: 22944600 | O40: 0.16%
A41: 32 | B41: FMCG | C41: BRITANNIA | D41: 3037.95 | E41: 3033.52 | F41: 3006.43 | G41: 2974.92 | H41: 2947.83 | I41: 3065.03 | J41: 3092.12 | K41: 3123.63 | L41: 3060.6 | M41: 3002 | N41: 2038400 | O41: -2.56%
A42: 34 | B42: Pharma | C42: CADILAHC | D42: 233.00 | E42: 234.10 | F42: 230.90 | G42: 228.80 | H42: 225.60 | I42: 236.20 | J42: 239.40 | K42: 241.50 | L42: 237.3 | M42: 232 | N42: 8697600 | O42: -0.69%
A43: 35 | B43: Banking | C43: CANBK | D43: 178.40 | E43: 179.92 | F43: 175.33 | G43: 172.27 | H43: 167.68 | I43: 182.98 | J43: 187.57 | K43: 190.63 | L43: 184.5 | M43: 176.85 | N43: 12972000 | O43: 2.61%
A44: 36 | B44: Oil_Gas | C44: CASTROLIND | D44: 132.30 | E44: 132.62 | F44: 131.03 | G44: 129.77 | H44: 128.18 | I44: 133.88 | J44: 135.47 | K44: 136.73 | L44: 134.2 | M44: 131.35 | N44: 5739200 | O44: -1.40%
A45: 37 | B45: Textile | C45: CENTURYTEX | D45: 880.95 | E45: 889.48 | F45: 854.07 | G45: 827.18 | H45: 791.77 | I45: 916.37 | J45: 951.78 | K45: 978.67 | L45: 924.9 | M45: 862.6 | N45: 1009200 | O45: -48.07%
A46: 38 | B46: Power | C46: CESC | D46: 757.80 | E46: 755.07 | F46: 747.73 | G46: 737.67 | H46: 730.33 | I46: 765.13 | J46: 772.47 | K46: 782.53 | L46: 762.4 | M46: 745 | N46: 1321600 | O46: -5.28%
A47: 39 | B47: Finance | C47: CHOLAFIN | D47: 284.65 | E47: 288.08 | F47: 280.62 | G47: 276.58 | H47: 269.12 | I47: 292.12 | J47: 299.58 | K47: 303.62 | L47: 295.55 | M47: 284.05 | N47: 2987500 | O47: 1.70%
A48: 40 | B48: Pharma | C48: CIPLA | D48: 422.50 | E48: 423.20 | F48: 418.40 | G48: 414.30 | H48: 409.50 | I48: 427.30 | J48: 432.10 | K48: 436.20 | L48: 428 | M48: 419.1 | N48: 14324000 | O48: -2.00%
A49: 41 | B49: Others | C49: COALINDIA | D49: 184.85 | E49: 185.20 | F49: 183.70 | G49: 182.55 | H49: 181.05 | I49: 186.35 | J49: 187.85 | K49: 189.00 | L49: 186.7 | M49: 184.05 | N49: 34199000 | O49: -0.40%
A50: 42 | B50: FMCG | C50: COLPAL | D50: 1496.60 | E50: 1496.73 | F50: 1484.22 | G50: 1471.83 | H50: 1459.32 | I50: 1509.12 | J50: 1521.63 | K50: 1534.02 | L50: 1509.25 | M50: 1484.35 | N50: 1634500 | O50: -1.97%
A51: 43 | B51: Others | C51: CONCOR | D51: 569.00 | E51: 569.47 | F51: 565.03 | G51: 561.07 | H51: 556.63 | I51: 573.43 | J51: 577.87 | K51: 581.83 | L51: 573.9 | M51: 565.5 | N51: 5071935 | O51: 1.72%
A52: 44 | B52: Capital_Goods | C52: CUMMINSIND | D52: 567.20 | E52: 569.47 | F52: 562.68 | G52: 558.17 | H52: 551.38 | I52: 573.98 | J52: 580.77 | K52: 585.28 | L52: 576.25 | M52: 564.95 | N52: 1533000 | O52: 0.78%
A53: 45 | B53: FMCG | C53: DABUR | D53: 440.80 | E53: 441.12 | F53: 437.88 | G53: 434.97 | H53: 431.73 | I53: 444.03 | J53: 447.27 | K53: 450.18 | L53: 444.35 | M53: 438.2 | N53: 11677500 | O53: -0.23%
A54: 47 | B54: Media | C54: DISHTV | D54: 17.25 | E54: 17.55 | F54: 16.75 | G54: 16.25 | H54: 15.45 | I54: 18.05 | J54: 18.85 | K54: 19.35 | L54: 18.35 | M54: 17.05 | N54: 99400000 | O54: 1.07%
A55: 48 | B55: Pharma | C55: DIVISLAB | D55: 1669.10 | E55: 1667.77 | F55: 1653.53 | G55: 1637.97 | H55: 1623.73 | I55: 1683.33 | J55: 1697.57 | K55: 1713.13 | L55: 1682 | M55: 1652.2 | N55: 2363600 | O55: -1.07%
A56: 49 | B56: Realty | C56: DLF | D56: 142.65 | E56: 143.10 | F56: 139.20 | G56: 135.75 | H56: 131.85 | I56: 146.55 | J56: 150.45 | K56: 153.90 | L56: 147 | M56: 139.65 | N56: 45847200 | O56: 0.96%
A57: 50 | B57: Pharma | C57: DRREDDY | D57: 2647.85 | E57: 2650.38 | F57: 2619.77 | G57: 2591.68 | H57: 2561.07 | I57: 2678.47 | J57: 2709.08 | K57: 2737.17 | L57: 2681 | M57: 2622.3 | N57: 3621750 | O57: -1.07%
A58: 51 | B58: Automobile | C58: EICHERMOT | D58: 18115.95 | E58: 18065.85 | F58: 17903.30 | G58: 17690.65 | H58: 17528.10 | I58: 18278.50 | J58: 18441.05 | K58: 18653.70 | L58: 18228.4 | M58: 17853.2 | N58: 327750 | O58: -0.76%
A59: 53 | B59: Finance | C59: EQUITAS | D59: 97.40 | E59: 98.97 | F59: 94.08 | G59: 90.77 | H59: 85.88 | I59: 102.28 | J59: 107.17 | K59: 110.48 | L59: 103.85 | M59: 95.65 | N59: 10904000 | O59: 0.63%
A60: 54 | B60: Automobile | C60: ESCORTS | D60: 605.80 | E60: 608.72 | F60: 599.73 | G60: 593.67 | H60: 584.68 | I60: 614.78 | J60: 623.77 | K60: 629.83 | L60: 617.7 | M60: 602.65 | N60: 5579200 | O60: -0.12%
A61: 55 | B61: Automobile | C61: EXIDEIND | D61: 184.55 | E61: 186.18 | F61: 181.37 | G61: 178.18 | H61: 173.37 | I61: 189.37 | J61: 194.18 | K61: 197.37 | L61: 191 | M61: 183 | N61: 9878400 | O61: -0.82%
A62: 56 | B62: Banking | C62: FEDERALBNK | D62: 84.35 | E62: 84.67 | F62: 83.28 | G62: 82.22 | H62: 80.83 | I62: 85.73 | J62: 87.12 | K62: 88.18 | L62: 86.05 | M62: 83.6 | N62: 44835000 | O62: 0.36%
A63: 57 | B63: Oil_Gas | C63: GAIL | D63: 128.00 | E63: 129.13 | F63: 125.62 | G63: 123.23 | H63: 119.72 | I63: 131.52 | J63: 135.03 | K63: 137.42 | L63: 132.65 | M63: 126.75 | N63: 43221402 | O63: 1.00%
A64: 58 | B64: Pharma | C64: GLENMARK | D64: 290.15 | E64: 292.75 | F64: 286.10 | G64: 282.05 | H64: 275.40 | I64: 296.80 | J64: 303.45 | K64: 307.50 | L64: 299.4 | M64: 288.7 | N64: 6085000 | O64: 0.98%
A65: 59 | B65: Infrastructure | C65: GMRINFRA | D65: 17.25 | E65: 17.30 | F65: 17.00 | G65: 16.75 | H65: 16.45 | I65: 17.55 | J65: 17.85 | K65: 18.10 | L65: 17.6 | M65: 17.05 | N65: 142650000 | O65: -0.75%
A66: 60 | B66: FMCG | C66: GODREJCP | D66: 682.90 | E66: 681.25 | F66: 677.00 | G66: 671.10 | H66: 666.85 | I66: 687.15 | J66: 691.40 | K66: 697.30 | L66: 685.5 | M66: 675.35 | N66: 6438400 | O66: 0.64%
A67: 61 | B67: Cement | C67: GRASIM | D67: 697.45 | E67: 699.03 | F67: 680.47 | G67: 663.48 | H67: 644.92 | I67: 716.02 | J67: 734.58 | K67: 751.57 | L67: 717.6 | M67: 682.05 | N67: 17438250 | O67: -4.87%
A68: 62 | B68: Others | C68: HAVELLS | D68: 664.25 | E68: 663.97 | F68: 654.78 | G68: 645.32 | H68: 636.13 | I68: 673.43 | J68: 682.62 | K68: 692.08 | L68: 673.15 | M68: 654.5 | N68: 5448000 | O68: 0.98%
A69: 63 | B69: Technology | C69: HCLTECH | D69: 1062.25 | E69: 1056.77 | F69: 1048.08 | G69: 1033.92 | H69: 1025.23 | I69: 1070.93 | J69: 1079.62 | K69: 1093.78 | L69: 1065.45 | M69: 1042.6 | N69: 10692500 | O69: -1.57%
A70: 64 | B70: Finance | C70: HDFC | D70: 1991.15 | E70: 1990.72 | F70: 1975.43 | G70: 1959.72 | H70: 1944.43 | I70: 2006.43 | J70: 2021.72 | K70: 2037.43 | L70: 2006 | M70: 1975 | N70: 37175500 | O70: 0.96%
A71: 65 | B71: Banking | C71: HDFCBANK | D71: 1206.10 | E71: 1213.07 | F71: 1194.23 | G71: 1182.37 | H71: 1163.53 | I71: 1224.93 | J71: 1243.77 | K71: 1255.63 | L71: 1231.9 | M71: 1201.2 | N71: 39835000 | O71: 0.79%
A72: 66 | B72: Automobile | C72: HEROMOTOCO | D72: 2613.45 | E72: 2617.13 | F72: 2588.82 | G72: 2564.18 | H72: 2535.87 | I72: 2641.77 | J72: 2670.08 | K72: 2694.72 | L72: 2645.45 | M72: 2592.5 | N72: 3023600 | O72: -0.46%
A73: 67 | B73: Technology | C73: HEXAWARE | D73: 357.55 | E73: 358.90 | F73: 354.25 | G73: 350.95 | H73: 346.30 | I73: 362.20 | J73: 366.85 | K73: 370.15 | L73: 363.55 | M73: 355.6 | N73: 2116500 | O73: -5.68%
A74: 68 | B74: Metals | C74: HINDALCO | D74: 183.10 | E74: 183.75 | F74: 181.60 | G74: 180.10 | H74: 177.95 | I74: 185.25 | J74: 187.40 | K74: 188.90 | L74: 185.9 | M74: 182.25 | N74: 33425000 | O74: -0.12%
A75: 69 | B75: Oil_Gas | C75: HINDPETRO | D75: 312.35 | E75: 312.93 | F75: 308.27 | G75: 304.18 | H75: 299.52 | I75: 317.02 | J75: 321.68 | K75: 325.77 | L75: 317.6 | M75: 308.85 | N75: 21317100 | O75: 2.13%
A76: 70 | B76: FMCG | C76: HINDUNILVR | D76: 1968.90 | E76: 1962.02 | F76: 1941.63 | G76: 1914.37 | H76: 1893.98 | I76: 1989.28 | J76: 2009.67 | K76: 2036.93 | L76: 1982.4 | M76: 1934.75 | N76: 8976000 | O76: 2.60%
A77: 72 | B77: Finance | C77: IBULHSGFIN | D77: 190.80 | E77: 202.72 | F77: 170.43 | G77: 150.07 | H77: 117.78 | I77: 223.08 | J77: 255.37 | K77: 275.73 | L77: 235 | M77: 182.35 | N77: 27031200 | O77: 20.92%
A78: 73 | B78: Banking | C78: ICICIBANK | D78: 424.35 | E78: 425.82 | F78: 419.68 | G78: 415.02 | H78: 408.88 | I78: 430.48 | J78: 436.62 | K78: 441.28 | L78: 431.95 | M78: 421.15 | N78: 75787250 | O78: 0.90%
A79: 74 | B79: Finance | C79: ICICIPRULI | D79: 443.70 | E79: 445.52 | F79: 438.03 | G79: 432.37 | H79: 424.88 | I79: 451.18 | J79: 458.67 | K79: 464.33 | L79: 453 | M79: 439.85 | N79: 6451500 | O79: 7.58%
A80: 76 | B80: Telecom | C80: IDEA | D80: 6.15 | E80: 6.25 | F80: 5.60 | G80: 5.05 | H80: 4.40 | I80: 6.80 | J80: 7.45 | K80: 8.00 | L80: 6.9 | M80: 5.7 | N80: 547484000 | O80: -9.48%
A81: 77 | B81: Banking | C81: IDFCFIRSTB | D81: 35.55 | E81: 35.85 | F81: 34.95 | G81: 34.35 | H81: 33.45 | I81: 36.45 | J81: 37.35 | K81: 37.95 | L81: 36.75 | M81: 35.25 | N81: 248856000 | O81: 1.71%
A82: 78 | B82: Oil_Gas | C82: IGL | D82: 370.55 | E82: 369.77 | F82: 364.63 | G82: 358.72 | H82: 353.58 | I82: 375.68 | J82: 380.82 | K82: 386.73 | L82: 374.9 | M82: 363.85 | N82: 3313750 | O82: 2.29%
A83: 79 | B83: Others | C83: INDIGO | D83: 1794.40 | E83: 1797.23 | F83: 1779.77 | G83: 1765.13 | H83: 1747.67 | I83: 1811.87 | J83: 1829.33 | K83: 1843.97 | L83: 1814.7 | M83: 1782.6 | N83: 2620800 | O83: -4.13%
A84: 80 | B84: Banking | C84: INDUSINDBK | D84: 1230.30 | E84: 1258.68 | F84: 1192.72 | G84: 1155.13 | H84: 1089.17 | I84: 1296.27 | J84: 1362.23 | K84: 1399.82 | L84: 1324.65 | M84: 1221.1 | N84: 15922400 | O84: 7.61%
A85: 81 | B85: Telecom | C85: INFRATEL | D85: 256.85 | E85: 258.37 | F85: 250.08 | G85: 243.32 | H85: 235.03 | I85: 265.13 | J85: 273.42 | K85: 280.18 | L85: 266.65 | M85: 251.6 | N85: 6434000 | O85: -6.16%
A86: 82 | B86: Technology | C86: INFY | D86: 774.70 | E86: 777.58 | F86: 765.42 | G86: 756.13 | H86: 743.97 | I86: 786.87 | J86: 799.03 | K86: 808.32 | L86: 789.75 | M86: 768.3 | N86: 47464800 | O86: 0.96%
A87: 83 | B87: Oil_Gas | C87: IOC | D87: 148.25 | E87: 148.25 | F87: 146.75 | G87: 145.25 | H87: 143.75 | I87: 149.75 | J87: 151.25 | K87: 152.75 | L87: 149.75 | M87: 146.75 | N87: 44530500 | O87: -7.69%
A88: 84 | B88: FMCG | C88: ITC | D88: 243.70 | E88: 244.85 | F88: 241.95 | G88: 240.20 | H88: 237.30 | I88: 246.60 | J88: 249.50 | K88: 251.25 | L88: 247.75 | M88: 243.1 | N88: 108182400 | O88: 0.79%
A89: 85 | B89: Metals | C89: JINDALSTEL | D89: 95.75 | E89: 96.20 | F89: 94.30 | G89: 92.85 | H89: 90.95 | I89: 97.65 | J89: 99.55 | K89: 101.00 | L89: 98.1 | M89: 94.75 | N89: 35712000 | O89: -0.42%
A90: 86 | B90: Metals | C90: JSWSTEEL | D90: 214.00 | E90: 212.85 | F90: 210.65 | G90: 207.30 | H90: 205.10 | I90: 216.20 | J90: 218.40 | K90: 221.75 | L90: 215.05 | M90: 209.5 | N90: 53870000 | O90: -1.95%
A91: 87 | B91: Others | C91: JUBLFOOD | D91: 1325.55 | E91: 1315.65 | F91: 1298.75 | G91: 1271.95 | H91: 1255.05 | I91: 1342.45 | J91: 1359.35 | K91: 1386.15 | L91: 1332.55 | M91: 1288.85 | N91: 2214500 | O91: 3.87%
A92: 88 | B92: Others | C92: JUSTDIAL | D92: 610.45 | E92: 611.85 | F92: 597.65 | G92: 584.85 | H92: 570.65 | I92: 624.65 | J92: 638.85 | K92: 651.65 | L92: 626.05 | M92: 599.05 | N92: 2940000 | O92: 11.64%
A93: 90 | B93: Banking | C93: KOTAKBANK | D93: 1592.15 | E93: 1593.80 | F93: 1572.00 | G93: 1551.85 | H93: 1530.05 | I93: 1613.95 | J93: 1635.75 | K93: 1655.90 | L93: 1615.6 | M93: 1573.65 | N93: 8483200 | O93: 0.34%
A94: 91 | B94: Finance | C94: L&TFH | D94: 81.65 | E94: 81.72 | F94: 80.13 | G94: 78.62 | H94: 77.03 | I94: 83.23 | J94: 84.82 | K94: 86.33 | L94: 83.3 | M94: 80.2 | N94: 41071500 | O94: 0.02%
A95: 92 | B95: Finance | C95: LICHSGFIN | D95: 369.95 | E95: 373.00 | F95: 364.65 | G95: 359.35 | H95: 351.00 | I95: 378.30 | J95: 386.65 | K95: 391.95 | L95: 381.35 | M95: 367.7 | N95: 10117800 | O95: -2.38%
A96: 93 | B96: Capital_Goods | C96: LT | D96: 1429.20 | E96: 1424.12 | F96: 1414.58 | G96: 1399.97 | H96: 1390.43 | I96: 1438.73 | J96: 1448.27 | K96: 1462.88 | L96: 1433.65 | M96: 1409.5 | N96: 12485625 | O96: -2.51%
A97: 94 | B97: Pharma | C97: LUPIN | D97: 691.45 | E97: 689.80 | F97: 680.10 | G97: 668.75 | H97: 659.05 | I97: 701.15 | J97: 710.85 | K97: 722.20 | L97: 699.5 | M97: 678.45 | N97: 7701400 | O97: -2.04%
A98: 95 | B98: Automobile | C98: M&M | D98: 568.50 | E98: 568.37 | F98: 561.73 | G98: 554.97 | H98: 548.33 | I98: 575.13 | J98: 581.77 | K98: 588.53 | L98: 575 | M98: 561.6 | N98: 21575000 | O98: 0.04%
A99: 96 | B99: Finance | C99: M&MFIN | D99: 326.30 | E99: 329.10 | F99: 322.40 | G99: 318.50 | H99: 311.80 | I99: 333.00 | J99: 339.70 | K99: 343.60 | L99: 335.8 | M99: 325.2 | N99: 13925000 | O99: -0.39%
A100: 97 | B100: Finance | C100: MANAPPURAM | D100: 138.60 | E100: 138.78 | F100: 137.32 | G100: 136.03 | H100: 134.57 | I100: 140.07 | J100: 141.53 | K100: 142.82 | L100: 140.25 | M100: 137.5 | N100: 13188000 | O100: -6.07%
A101: 98 | B101: FMCG | C101: MARICO | D101: 384.80 | E101: 384.97 | F101: 381.43 | G101: 378.07 | H101: 374.53 | I101: 388.33 | J101: 391.87 | K101: 395.23 | L101: 388.5 | M101: 381.6 | N101: 11463400 | O101: -0.99%
A102: 99 | B102: Automobile | C102: MARUTI | D102: 6636.10 | E102: 6659.77 | F102: 6553.03 | G102: 6469.97 | H102: 6363.23 | I102: 6742.83 | J102: 6849.57 | K102: 6932.63 | L102: 6766.5 | M102: 6576.7 | N102: 2366925 | O102: -1.84%
A103: 100 | B103: FMCG | C103: MCDOWELL-N | D103: 617.35 | E103: 621.60 | F103: 610.20 | G103: 603.05 | H103: 591.65 | I103: 628.75 | J103: 640.15 | K103: 647.30 | L103: 633 | M103: 614.45 | N103: 10930000 | O103: -0.56%
A104: 102 | B104: Finance | C104: MFSL | D104: 407.25 | E104: 409.42 | F104: 400.58 | G104: 393.92 | H104: 385.08 | I104: 416.08 | J104: 424.92 | K104: 431.58 | L104: 418.25 | M104: 402.75 | N104: 2584800 | O104: -9.42%
A105: 103 | B105: Oil_Gas | C105: MGL | D105: 920.25 | E105: 919.22 | F105: 910.43 | G105: 900.62 | H105: 891.83 | I105: 929.03 | J105: 937.82 | K105: 947.63 | L105: 928 | M105: 909.4 | N105: 1477800 | O105: -3.98%
A106: 104 | B106: Technology | C106: MINDTREE | D106: 716.25 | E106: 719.88 | F106: 710.77 | G106: 705.28 | H106: 696.17 | I106: 725.37 | J106: 734.48 | K106: 739.97 | L106: 729 | M106: 714.4 | N106: 1288200 | O106: 1.47%
A107: 105 | B107: Automobile | C107: MOTHERSUMI | D107: 96.35 | E107: 96.37 | F107: 94.48 | G107: 92.62 | H107: 90.73 | I107: 98.23 | J107: 100.12 | K107: 101.98 | L107: 98.25 | M107: 94.5 | N107: 30765900 | O107: -0.15%
A108: 106 | B108: Automobile | C108: MRF | D108: 61395.85 | E108: 61339.83 | F108: 61040.82 | G108: 60685.78 | H108: 60386.77 | I108: 61694.87 | J108: 61993.88 | K108: 62348.92 | L108: 61638.85 | M108: 60984.8 | N108: 20090 | O108: -0.54%
A109: 107 | B109: Finance | C109: MUTHOOTFIN | D109: 670.40 | E109: 676.53 | F109: 660.17 | G109: 649.93 | H109: 633.57 | I109: 686.77 | J109: 703.13 | K109: 713.37 | L109: 692.9 | M109: 666.3 | N109: 1815000 | O109: -3.74%
A110: 108 | B110: Metals | C110: NATIONALUM | D110: 40.40 | E110: 41.10 | F110: 39.05 | G110: 37.70 | H110: 35.65 | I110: 42.45 | J110: 44.50 | K110: 45.85 | L110: 43.15 | M110: 39.75 | N110: 67700000 | O110: 31.81%
A111: 109 | B111: Infrastructure | C111: NBCC | D111: 33.75 | E111: 33.78 | F111: 33.02 | G111: 32.28 | H111: 31.52 | I111: 34.52 | J111: 35.28 | K111: 36.02 | L111: 34.55 | M111: 33.05 | N111: 31467000 | O111: -0.19%
A112: 110 | B112: Infrastructure | C112: NCC | D112: 49.50 | E112: 50.47 | F112: 48.03 | G112: 46.57 | H112: 44.13 | I112: 51.93 | J112: 54.37 | K112: 55.83 | L112: 52.9 | M112: 49 | N112: 40400000 | O112: -2.26%
A113: 111 | B113: FMCG | C113: NESTLEIND | D113: 13843.25 | E113: 13812.28 | F113: 13756.22 | G113: 13669.18 | H113: 13613.12 | I113: 13899.32 | J113: 13955.38 | K113: 14042.42 | L113: 13868.35 | M113: 13725.25 | N113: 544650 | O113: -0.65%
A114: 112 | B114: Technology | C114: NIITTECH | D114: 1360.30 | E114: 1364.70 | F114: 1346.60 | G114: 1332.90 | H114: 1314.80 | I114: 1378.40 | J114: 1396.50 | K114: 1410.20 | L114: 1382.8 | M114: 1351 | N114: 708000 | O114: -12.02%
A115: 113 | B115: Metals | C115: NMDC | D115: 95.70 | E115: 96.10 | F115: 94.35 | G115: 93.00 | H115: 91.25 | I115: 97.45 | J115: 99.20 | K115: 100.55 | L115: 97.85 | M115: 94.75 | N115: 25440000 | O115: -0.14%
A116: 114 | B116: Power | C116: NTPC | D116: 117.40 | E116: 117.18 | F116: 116.77 | G116: 116.13 | H116: 115.72 | I116: 117.82 | J116: 118.23 | K116: 118.87 | L116: 117.6 | M116: 116.55 | N116: 59544000 | O116: -0.55%
A117: 116 | B117: Oil_Gas | C117: OIL | D117: 147.55 | E117: 146.17 | F117: 143.83 | G117: 140.12 | H117: 137.78 | I117: 149.88 | J117: 152.22 | K117: 155.93 | L117: 148.5 | M117: 142.45 | N117: 9724539 | O117: 0.39%
A118: 117 | B118: Oil_Gas | C118: ONGC | D118: 125.80 | E118: 126.23 | F118: 124.92 | G118: 124.03 | H118: 122.72 | I118: 127.12 | J118: 128.43 | K118: 129.32 | L118: 127.55 | M118: 125.35 | N118: 63840000 | O118: -1.69%
A119: 118 | B119: Textile | C119: PAGEIND | D119: 21282.35 | E119: 21262.40 | F119: 21024.80 | G119: 20767.25 | H119: 20529.65 | I119: 21519.95 | J119: 21757.55 | K119: 22015.10 | L119: 21500 | M119: 21004.85 | N119: 186800 | O119: -0.61%
A120: 119 | B120: Pharma | C120: PEL | D120: 1341.30 | E120: 1343.45 | F120: 1293.00 | G120: 1244.70 | H120: 1194.25 | I120: 1391.75 | J120: 1442.20 | K120: 1490.50 | L120: 1393.9 | M120: 1295.15 | N120: 7057740 | O120: 5.94%
A121: 120 | B121: Oil_Gas | C121: PETRONET | D121: 259.20 | E121: 259.25 | F121: 257.35 | G121: 255.50 | H121: 253.60 | I121: 261.10 | J121: 263.00 | K121: 264.85 | L121: 261.15 | M121: 257.4 | N121: 20679000 | O121: 0.92%
A122: 121 | B122: Finance | C122: PFC | D122: 93.00 | E122: 93.88 | F122: 91.67 | G122: 90.33 | H122: 88.12 | I122: 95.22 | J122: 97.43 | K122: 98.77 | L122: 96.1 | M122: 92.55 | N122: 46531000 | O122: 6.08%
A123: 122 | B123: FMCG | C123: PIDILITIND | D123: 1358.65 | E123: 1332.22 | F123: 1291.43 | G123: 1224.22 | H123: 1183.43 | I123: 1399.43 | J123: 1440.22 | K123: 1507.43 | L123: 1373 | M123: 1265 | N123: 3363000 | O123: 2.19%
A124: 123 | B124: Banking | C124: PNB | D124: 56.55 | E124: 57.05 | F124: 55.70 | G124: 54.85 | H124: 53.50 | I124: 57.90 | J124: 59.25 | K124: 60.10 | L124: 58.4 | M124: 56.2 | N124: 106834000 | O124: 1.04%
A125: 124 | B125: Power | C125: POWERGRID | D125: 199.40 | E125: 198.62 | F125: 197.53 | G125: 195.67 | H125: 194.58 | I125: 200.48 | J125: 201.57 | K125: 203.43 | L125: 199.7 | M125: 196.75 | N125: 27908000 | O125: -0.68%
A126: 125 | B126: Media | C126: PVR | D126: 1784.05 | E126: 1792.52 | F126: 1767.03 | G126: 1750.02 | H126: 1724.53 | I126: 1809.53 | J126: 1835.02 | K126: 1852.03 | L126: 1818 | M126: 1775.5 | N126: 954400 | O126: 1.71%
A127: 126 | B127: Cement | C127: RAMCOCEM | D127: 704.75 | E127: 705.35 | F127: 698.80 | G127: 692.85 | H127: 686.30 | I127: 711.30 | J127: 717.85 | K127: 723.80 | L127: 711.9 | M127: 699.4 | N127: 1591200 | O127: -0.10%
A128: 128 | B128: Banking | C128: RBLBANK | D128: 287.70 | E128: 292.07 | F128: 278.13 | G128: 268.57 | H128: 254.63 | I128: 301.63 | J128: 315.57 | K128: 325.13 | L128: 306 | M128: 282.5 | N128: 16704000 | O128: 3.01%
A129: 129 | B129: Power | C129: RECLTD | D129: 126.15 | E129: 126.10 | F129: 124.20 | G129: 122.25 | H129: 120.35 | I129: 128.05 | J129: 129.95 | K129: 131.90 | L129: 128 | M129: 124.15 | N129: 27426000 | O129: 1.15%
A130: 131 | B130: Oil_Gas | C130: RELIANCE | D130: 1364.30 | E130: 1353.82 | F130: 1337.88 | G130: 1311.47 | H130: 1295.53 | I130: 1380.23 | J130: 1396.17 | K130: 1422.58 | L130: 1369.75 | M130: 1327.4 | N130: 52600000 | O130: -0.73%
A131: 133 | B131: Metals | C131: SAIL | D131: 31.85 | E131: 32.02 | F131: 31.48 | G131: 31.12 | H131: 30.58 | I131: 32.38 | J131: 32.92 | K131: 33.28 | L131: 32.55 | M131: 31.65 | N131: 82632000 | O131: 1.01%
A132: 134 | B132: Banking | C132: SBIN | D132: 254.60 | E132: 255.48 | F132: 252.22 | G132: 249.83 | H132: 246.57 | I132: 257.87 | J132: 261.13 | K132: 263.52 | L132: 258.75 | M132: 253.1 | N132: 115956000 | O132: -1.18%
A133: 135 | B133: Cement | C133: SHREECEM | D133: 18267.90 | E133: 18334.93 | F133: 18093.07 | G133: 17918.23 | H133: 17676.37 | I133: 18509.77 | J133: 18751.63 | K133: 18926.47 | L133: 18576.8 | M133: 18160.1 | N133: 172300 | O133: -1.32%
A134: 136 | B134: Capital_Goods | C134: SIEMENS | D134: 1571.20 | E134: 1576.62 | F134: 1557.28 | G134: 1543.37 | H134: 1524.03 | I134: 1590.53 | J134: 1609.87 | K134: 1623.78 | L134: 1595.95 | M134: 1562.7 | N134: 1586750 | O134: 1.69%
A135: 137 | B135: Textile | C135: SRF | D135: 2747.55 | E135: 2754.53 | F135: 2716.42 | G135: 2685.28 | H135: 2647.17 | I135: 2785.67 | J135: 2823.78 | K135: 2854.92 | L135: 2792.65 | M135: 2723.4 | N135: 811750 | O135: -3.88%
A136: 138 | B136: Finance | C136: SRTRANSFIN | D136: 1083.05 | E136: 1092.22 | F136: 1066.83 | G136: 1050.62 | H136: 1025.23 | I136: 1108.43 | J136: 1133.82 | K136: 1150.03 | L136: 1117.6 | M136: 1076 | N136: 3883800 | O136: -3.06%
A137: 139 | B137: Pharma | C137: STAR | D137: 313.60 | E137: 309.90 | F137: 301.15 | G137: 288.70 | H137: 279.95 | I137: 322.35 | J137: 331.10 | K137: 343.55 | L137: 318.65 | M137: 297.45 | N137: 2821200 | O137: -0.21%
A138: 140 | B138: Pharma | C138: SUNPHARMA | D138: 387.65 | E138: 386.37 | F138: 381.63 | G138: 375.62 | H138: 370.88 | I138: 392.38 | J138: 397.12 | K138: 403.13 | L138: 391.1 | M138: 380.35 | N138: 59898300 | O138: 0.96%
A139: 141 | B139: Media | C139: SUNTV | D139: 469.20 | E139: 471.93 | F139: 462.87 | G139: 456.53 | H139: 447.47 | I139: 478.27 | J139: 487.33 | K139: 493.67 | L139: 481 | M139: 465.6 | N139: 3328000 | O139: -6.36%
A140: 142 | B140: Fertilisers | C140: TATACHEM | D140: 580.65 | E140: 583.53 | F140: 574.57 | G140: 568.48 | H140: 559.52 | I140: 589.62 | J140: 598.58 | K140: 604.67 | L140: 592.5 | M140: 577.45 | N140: 1929600 | O140: -2.90%
A141: 143 | B141: Technology | C141: TATAELXSI | D141: 621.35 | E141: 623.85 | F141: 613.60 | G141: 605.85 | H141: 595.60 | I141: 631.60 | J141: 641.85 | K141: 649.60 | L141: 634.1 | M141: 616.1 | N141: 1970400 | O141: 4.12%
A142: 144 | B142: FMCG | C142: TATAGLOBAL | D142: 267.30 | E142: 268.73 | F142: 263.97 | G142: 260.63 | H142: 255.87 | I142: 272.07 | J142: 276.83 | K142: 280.17 | L142: 273.5 | M142: 265.4 | N142: 8348400 | O142: -0.39%
A143: 145 | B143: Automobile | C143: TATAMOTORS | D143: 117.10 | E143: 117.82 | F143: 115.58 | G143: 114.07 | H143: 111.83 | I143: 119.33 | J143: 121.57 | K143: 123.08 | L143: 120.05 | M143: 116.3 | N143: 65361000 | O143: -0.43%
A144: 146 | B144: Automobile | C144: TATAMTRDVR | D144: 52.20 | E144: 52.32 | F144: 51.28 | G144: 50.37 | H144: 49.33 | I144: 53.23 | J144: 54.27 | K144: 55.18 | L144: 53.35 | M144: 51.4 | N144: 38472000 | O144: -0.85%
A145: 147 | B145: Power | C145: TATAPOWER | D145: 61.70 | E145: 61.50 | F145: 60.80 | G145: 59.90 | H145: 59.20 | I145: 62.40 | J145: 63.10 | K145: 64.00 | L145: 62.2 | M145: 60.6 | N145: 39780000 | O145: -0.61%
A146: 148 | B146: Metals | C146: TATASTEEL | D146: 330.50 | E146: 331.47 | F146: 327.58 | G146: 324.67 | H146: 320.78 | I146: 334.38 | J146: 338.27 | K146: 341.18 | L146: 335.35 | M146: 328.55 | N146: 30822050 | O146: 0.30%
A147: 149 | B147: Technology | C147: TCS | D147: 1998.60 | E147: 2008.63 | F147: 1981.37 | G147: 1964.13 | H147: 1936.87 | I147: 2025.87 | J147: 2053.13 | K147: 2070.37 | L147: 2035.9 | M147: 1991.4 | N147: 19874000 | O147: 3.96%
A148: 150 | B148: Technology | C148: TECHM | D148: 711.65 | E148: 712.45 | F148: 705.45 | G148: 699.25 | H148: 692.25 | I148: 718.65 | J148: 725.65 | K148: 731.85 | L148: 719.45 | M148: 706.25 | N148: 14648400 | O148: -0.69%
A149: 151 | B149: FMCG | C149: TITAN | D149: 1240.05 | E149: 1235.65 | F149: 1226.50 | G149: 1212.95 | H149: 1203.80 | I149: 1249.20 | J149: 1258.35 | K149: 1271.90 | L149: 1244.8 | M149: 1222.1 | N149: 9718500 | O149: -2.91%
A150: 152 | B150: Pharma | C150: TORNTPHARM | D150: 1670.00 | E150: 1642.33 | F150: 1587.67 | G150: 1505.33 | H150: 1450.67 | I150: 1724.67 | J150: 1779.33 | K150: 1861.67 | L150: 1697 | M150: 1560 | N150: 494500 | O150: 40.48%
A151: 153 | B151: Power | C151: TORNTPOWER | D151: 282.80 | E151: 282.70 | F151: 280.50 | G151: 278.20 | H151: 276.00 | I151: 285.00 | J151: 287.20 | K151: 289.50 | L151: 284.9 | M151: 280.4 | N151: 3105000 | O151: -1.99%
A152: 154 | B152: Automobile | C152: TVSMOTOR | D152: 381.10 | E152: 382.88 | F152: 375.52 | G152: 369.93 | H152: 362.57 | I152: 388.47 | J152: 395.83 | K152: 401.42 | L152: 390.25 | M152: 377.3 | N152: 7778100 | O152: -0.16%
A153: 155 | B153: FMCG | C153: UBL | D153: 1286.10 | E153: 1287.10 | F153: 1269.70 | G153: 1253.30 | H153: 1235.90 | I153: 1303.50 | J153: 1320.90 | K153: 1337.30 | L153: 1304.5 | M153: 1270.7 | N153: 1414000 | O153: -6.18%
A154: 156 | B154: Finance | C154: UJJIVAN | D154: 298.10 | E154: 299.38 | F154: 294.47 | G154: 290.83 | H154: 285.92 | I154: 303.02 | J154: 307.93 | K154: 311.57 | L154: 304.3 | M154: 295.75 | N154: 7537600 | O154: -3.46%
A155: 157 | B155: Cement | C155: ULTRACEMCO | D155: 3987.00 | E155: 4009.95 | F155: 3934.40 | G155: 3881.80 | H155: 3806.25 | I155: 4062.55 | J155: 4138.10 | K155: 4190.70 | L155: 4085.5 | M155: 3957.35 | N155: 2730200 | O155: -0.41%
A156: 158 | B156: Banking | C156: UNIONBANK | D156: 49.10 | E156: 49.72 | F156: 48.23 | G156: 47.37 | H156: 45.88 | I156: 50.58 | J156: 52.07 | K156: 52.93 | L156: 51.2 | M156: 48.85 | N156: 35357000 | O156: 2.06%
A157: 159 | B157: Fertilisers | C157: UPL | D157: 583.55 | E157: 582.58 | F157: 576.32 | G157: 569.08 | H157: 562.82 | I157: 589.82 | J157: 596.08 | K157: 603.32 | L157: 588.85 | M157: 575.35 | N157: 14038200 | O157: -2.32%
A158: 160 | B158: Metals | C158: VEDL | D158: 141.75 | E158: 142.90 | F158: 139.85 | G158: 137.95 | H158: 134.90 | I158: 144.80 | J158: 147.85 | K158: 149.75 | L158: 145.95 | M158: 141 | N158: 50652000 | O158: 1.71%
A159: 161 | B159: Capital_Goods | C159: VOLTAS | D159: 675.00 | E159: 680.68 | F159: 666.42 | G159: 657.83 | H159: 643.57 | I159: 689.27 | J159: 703.53 | K159: 712.12 | L159: 694.95 | M159: 672.1 | N159: 1998000 | O159: -2.96%
A160: 162 | B160: Technology | C160: WIPRO | D160: 239.70 | E160: 238.88 | F160: 237.67 | G160: 235.63 | H160: 234.42 | I160: 240.92 | J160: 242.13 | K160: 244.17 | L160: 240.1 | M160: 236.85 | N160: 28473600 | O160: -0.39%
A161: 163 | B161: Banking | C161: YESBANK | D161: 41.10 | E161: 41.37 | F161: 39.88 | G161: 38.67 | H161: 37.18 | I161: 42.58 | J161: 44.07 | K161: 45.28 | L161: 42.85 | M161: 40.15 | N161: 181198600 | O161: 0.68%
A162: 164 | B162: Media | C162: ZEEL | D162: 245.15 | E162: 245.43 | F162: 242.37 | G162: 239.58 | H162: 236.52 | I162: 248.22 | J162: 251.28 | K162: 254.07 | L162: 248.5 | M162: 242.65 | N162: 30578600 | O162: -1.91%
A178: Pivot Point: This is trigger point for intra day buy/sell based on the price range of the previous day
A179: As per the tool,the trader should take BUY position just above Pivot and keep the stop loss of pivot point and the first target would be Resistance 1(R1)
A180: If R1 is crossed then R2 becomes the next target with stop loss of at R1
A181: Similarly if price goes below pivot point then the trader should sell and keep a stop loss of pivot point and the first target would be S1
A182: If S1 is crossed then S2 becomes the next target with stop loss of at S1
A184: Disclaimer:
A185: This document has been prepared by the Retail Research Desk of Asit C Mehta
A186: Investment Intermediates Ltd. and is meant for use of the recipient only
A187: and is not for circulation. This document is not to be reported or
A188: copied or made available to others. It should not be considered to be
A189: taken as an offer to sell or a solicitation to buy any security. The
A190: information contained herein is from sources believed reliable. We do
A191: not represent that it is accurate or complete and it should not be
A192: relied upon as such. We may from time to time have positions in and buy
A193: and sell securities referred to herein

Sheet Cash Intra
M5: Back to Main Page
A6: FOR INTRA DAY TRADING | K6: =Main!B10 -> 2019-10-11
A8: Sr.no | B8: Scrip | C8: CLOSE RATE | D8: Pivot Point | E8: Supports | H8: Resistances
C9: Point | E9: S1 | F9: S2 | G9: S3 | H9: R1 | I9: R2 | J9: R3 | K9: HIGH | L9: LOW | M9: Total Trade Quanity in Lakhs
A10: 1 | B10: Nifty 50 | C10: 11234.55 | D10: 11245.48 | E10: 11197.62 | F10: 11160.68 | G10: 11112.82 | H10: 11282.42 | I10: 11330.28 | J10: 11367.22 | K10: 11293.35 | L10: 11208.55
A11: 2 | B11: Nifty Bank | C11: 28013.45 | D11: 28160.12 | E11: 27767.48 | F11: 27521.52 | G11: 27128.88 | H11: 28406.08 | I11: 28798.72 | J11: 29044.68 | K11: 28552.75 | L11: 27914.15
A12: 3 | B12: Nifty CPSE | C12: 1903.5 | D12: 1906.92 | E12: 1897.38 | F12: 1891.27 | G12: 1881.73 | H12: 1913.03 | I12: 1922.57 | J12: 1928.68 | K12: 1916.45 | L12: 1900.8
A13: 4 | B13: Nifty Infra | C13: 3172 | D13: 3165.63 | E13: 3154.02 | F13: 3136.03 | G13: 3124.42 | H13: 3183.62 | I13: 3195.23 | J13: 3213.22 | K13: 3177.25 | L13: 3147.65
A14: 5 | B14: Nifty IT | C14: 15093.8 | D14: 15121.33 | E14: 15007.07 | F14: 14920.33 | G14: 14806.07 | H14: 15208.07 | I14: 15322.33 | J14: 15409.07 | K14: 15235.6 | L14: 15034.6
A15: 6 | B15: Nifty PSE | C15: 3189.2 | D15: 3193.18 | E15: 3177.07 | F15: 3164.93 | G15: 3148.82 | H15: 3205.32 | I15: 3221.43 | J15: 3233.57 | K15: 3209.3 | L15: 3181.05
A16: 7 | B16: Nifty Midcap 50 | C16: 4255.15 | D16: 4271.20 | E16: 4233.10 | F16: 4211.05 | G16: 4172.95 | H16: 4293.25 | I16: 4331.35 | J16: 4353.40 | K16: 4309.3 | L16: 4249.15
A17: 8 | B17: ACC | C17: 1422.9 | D17: 1434.60 | E17: 1406.40 | F17: 1389.90 | G17: 1361.70 | H17: 1451.10 | I17: 1479.30 | J17: 1495.80 | K17: 1462.8 | L17: 1418.1 | M17: 7.2133
A18: 9 | B18: AUBANK | C18: 638.7 | D18: 641.33 | E18: 633.67 | F18: 628.63 | G18: 620.97 | H18: 646.37 | I18: 654.03 | J18: 659.07 | K18: 649 | L18: 636.3 | M18: 0.54896
A19: 10 | B19: ADANIPORTS | C19: 399.9 | D19: 399.03 | E19: 396.47 | F19: 393.03 | G19: 390.47 | H19: 402.47 | I19: 405.03 | J19: 408.47 | K19: 401.6 | L19: 395.6 | M19: 30.34826
A20: 11 | B20: ADANIPOWER | C20: 62.5 | D20: 61.50 | E20: 59.90 | F20: 57.30 | G20: 55.70 | H20: 64.10 | I20: 65.70 | J20: 68.30 | K20: 63.1 | L20: 58.9 | M20: 171.92619
A21: 12 | B21: ABCAPITAL | C21: 79.2 | D21: 79.80 | E21: 78.40 | F21: 77.60 | G21: 76.20 | H21: 80.60 | I21: 82.00 | J21: 82.80 | K21: 81.2 | L21: 79 | M21: 6.70965
A22: 13 | B22: ABFRL | C22: 204.6 | D22: 205.42 | E22: 202.73 | F22: 200.87 | G22: 198.18 | H22: 207.28 | I22: 209.97 | J22: 211.83 | K22: 208.1 | L22: 203.55 | M22: 3.58364
A23: 14 | B23: AJANTPHARM | C23: 976.55 | D23: 979.17 | E23: 969.38 | F23: 962.22 | G23: 952.43 | H23: 986.33 | I23: 996.12 | J23: 1003.28 | K23: 988.95 | L23: 972 | M23: 0.22445
A24: 15 | B24: ALKEM | C24: 1929 | D24: 1929.67 | E24: 1909.33 | F24: 1889.67 | G24: 1869.33 | H24: 1949.33 | I24: 1969.67 | J24: 1989.33 | K24: 1950 | L24: 1910 | M24: 0.51518
A25: 16 | B25: ALBK | C25: 26.55 | D25: 26.60 | E25: 25.95 | F25: 25.35 | G25: 24.70 | H25: 27.20 | I25: 27.85 | J25: 28.45 | K25: 27.25 | L25: 26 | M25: 9.35127
A26: 17 | B26: AMARAJABAT | C26: 680 | D26: 685.72 | E26: 671.43 | F26: 662.87 | G26: 648.58 | H26: 694.28 | I26: 708.57 | J26: 717.13 | K26: 700 | L26: 677.15 | M26: 1.80484
A27: 18 | B27: AMBUJACEM | C27: 188 | D27: 188.85 | E27: 186.00 | F27: 184.00 | G27: 181.15 | H27: 190.85 | I27: 193.70 | J27: 195.70 | K27: 191.7 | L27: 186.85 | M27: 18.78899
A28: 19 | B28: APOLLOHOSP | C28: 1412.25 | D28: 1418.58 | E28: 1399.17 | F28: 1386.08 | G28: 1366.67 | H28: 1431.67 | I28: 1451.08 | J28: 1464.17 | K28: 1438 | L28: 1405.5 | M28: 4.35916
A29: 20 | B29: APOLLOTYRE | C29: 165.85 | D29: 166.78 | E29: 164.07 | F29: 162.28 | G29: 159.57 | H29: 168.57 | I29: 171.28 | J29: 173.07 | K29: 169.5 | L29: 165 | M29: 15.85971
A30: 21 | B30: ASHOKLEY | C30: 68.85 | D30: 69.05 | E30: 67.35 | F30: 65.85 | G30: 64.15 | H30: 70.55 | I30: 72.25 | J30: 73.75 | K30: 70.75 | L30: 67.55 | M30: 413.67276
A31: 22 | B31: ASIANPAINT | C31: 1778.6 | D31: 1776.03 | E31: 1759.07 | F31: 1739.53 | G31: 1722.57 | H31: 1795.57 | I31: 1812.53 | J31: 1832.07 | K31: 1793 | L31: 1756.5 | M31: 15.99166
A32: 23 | B32: AUROPHARMA | C32: 465.15 | D32: 458.60 | E32: 443.20 | F32: 421.25 | G32: 405.85 | H32: 480.55 | I32: 495.95 | J32: 517.90 | K32: 474 | L32: 436.65 | M32: 120.92242
A33: 24 | B33: DMART | C33: 1821.35 | D33: 1824.30 | E33: 1810.20 | F33: 1799.05 | G33: 1784.95 | H33: 1835.45 | I33: 1849.55 | J33: 1860.70 | K33: 1838.4 | L33: 1813.15 | M33: 2.92723
A34: 25 | B34: AXISBANK | C34: 672.95 | D34: 674.20 | E34: 664.10 | F34: 655.25 | G34: 645.15 | H34: 683.05 | I34: 693.15 | J34: 702.00 | K34: 684.3 | L34: 665.35 | M34: 86.79981
A35: 26 | B35: BAJAJ-AUTO | C35: 2886.25 | D35: 2894.42 | E35: 2856.83 | F35: 2827.42 | G35: 2789.83 | H35: 2923.83 | I35: 2961.42 | J35: 2990.83 | K35: 2932 | L35: 2865 | M35: 3.13632
A36: 27 | B36: BAJFINANCE | C36: 3948.9 | D36: 3964.97 | E36: 3914.93 | F36: 3880.97 | G36: 3830.93 | H36: 3998.93 | I36: 4048.97 | J36: 4082.93 | K36: 4015 | L36: 3931 | M36: 11.02788
A37: 28 | B37: BAJAJFINSV | C37: 8201.85 | D37: 8240.62 | E37: 8136.23 | F37: 8070.62 | G37: 7966.23 | H37: 8306.23 | I37: 8410.62 | J37: 8476.23 | K37: 8345 | L37: 8175 | M37: 2.00005
A38: 29 | B38: BAJAJHLDNG | C38: 3587.85 | D38: 3596.95 | E38: 3570.90 | F38: 3553.95 | G38: 3527.90 | H38: 3613.90 | I38: 3639.95 | J38: 3656.90 | K38: 3623 | L38: 3580 | M38: 0.07662
A39: 30 | B39: BALKRISIND | C39: 745.6 | D39: 740.78 | E39: 731.67 | F39: 717.73 | G39: 708.62 | H39: 754.72 | I39: 763.83 | J39: 777.77 | K39: 749.9 | L39: 726.85 | M39: 3.43383
A40: 31 | B40: BANDHANBNK | C40: 506.65 | D40: 498.22 | E40: 485.43 | F40: 464.22 | G40: 451.43 | H40: 519.43 | I40: 532.22 | J40: 553.43 | K40: 511 | L40: 477 | M40: 21.86326
A41: 32 | B41: BANKBARODA | C41: 87.8 | D41: 88.32 | E41: 86.73 | F41: 85.67 | G41: 84.08 | H41: 89.38 | I41: 90.97 | J41: 92.03 | K41: 89.9 | L41: 87.25 | M41: 235.58861
A42: 33 | B42: BANKINDIA | C42: 59.9 | D42: 60.13 | E42: 59.02 | F42: 58.13 | G42: 57.02 | H42: 61.02 | I42: 62.13 | J42: 63.02 | K42: 61.25 | L42: 59.25 | M42: 70.31788
A43: 34 | B43: BATAINDIA | C43: 1701.65 | D43: 1713.55 | E43: 1679.10 | F43: 1656.55 | G43: 1622.10 | H43: 1736.10 | I43: 1770.55 | J43: 1793.10 | K43: 1748 | L43: 1691 | M43: 8.95098
A44: 35 | B44: BERGEPAINT | C44: 469.35 | D44: 464.28 | E44: 452.12 | F44: 434.88 | G44: 422.72 | H44: 481.52 | I44: 493.68 | J44: 510.92 | K44: 476.45 | L44: 447.05 | M44: 41.18801
A45: 36 | B45: BEL | C45: 105.65 | D45: 105.33 | E45: 104.22 | F45: 102.78 | G45: 101.67 | H45: 106.77 | I45: 107.88 | J45: 109.32 | K45: 106.45 | L45: 103.9 | M45: 45.72778
A46: 37 | B46: BHARATFORG | C46: 423.9 | D46: 426.43 | E46: 419.57 | F46: 415.23 | G46: 408.37 | H46: 430.77 | I46: 437.63 | J46: 441.97 | K46: 433.3 | L46: 422.1 | M46: 6.24592
A47: 38 | B47: BHEL | C47: 43.05 | D47: 43.52 | E47: 42.33 | F47: 41.62 | G47: 40.43 | H47: 44.23 | I47: 45.42 | J47: 46.13 | K47: 44.7 | L47: 42.8 | M47: 198.19884
A48: 39 | B48: BPCL | C48: 489.9 | D48: 489.33 | E48: 484.67 | F48: 479.43 | G48: 474.77 | H48: 494.57 | I48: 499.23 | J48: 504.47 | K48: 494 | L48: 484.1 | M48: 46.2954
A49: 40 | B49: BHARTIARTL | C49: 377.25 | D49: 374.75 | E49: 364.50 | F49: 351.75 | G49: 341.50 | H49: 387.50 | I49: 397.75 | J49: 410.50 | K49: 385 | L49: 362 | M49: 476.60614
A50: 41 | B50: INFRATEL | C50: 256.9 | D50: 258.02 | E50: 250.43 | F50: 243.97 | G50: 236.38 | H50: 264.48 | I50: 272.07 | J50: 278.53 | K50: 265.6 | L50: 251.55 | M50: 39.32579
A51: 42 | B51: BIOCON | C51: 240.15 | D51: 238.78 | E51: 234.37 | F51: 228.58 | G51: 224.17 | H51: 244.57 | I51: 248.98 | J51: 254.77 | K51: 243.2 | L51: 233 | M51: 52.93267
A52: 43 | B52: BBTC | C52: 1069 | D52: 1074.67 | E52: 1050.33 | F52: 1031.67 | G52: 1007.33 | H52: 1093.33 | I52: 1117.67 | J52: 1136.33 | K52: 1099 | L52: 1056 | M52: 0.6405
A53: 44 | B53: BOSCHLTD | C53: 13326.75 | D53: 13308.28 | E53: 13218.57 | F53: 13110.38 | G53: 13020.67 | H53: 13416.47 | I53: 13506.18 | J53: 13614.37 | K53: 13398 | L53: 13200.1 | M53: 0.12487
A54: 45 | B54: BRITANNIA | C54: 3037.75 | D54: 3033.25 | E54: 3005.50 | F54: 2973.25 | G54: 2945.50 | H54: 3065.50 | I54: 3093.25 | J54: 3125.50 | K54: 3061 | L54: 3001 | M54: 4.22209
A55: 46 | B55: CESC | C55: 756.1 | D55: 754.05 | E55: 746.25 | F55: 736.40 | G55: 728.60 | H55: 763.90 | I55: 771.70 | J55: 781.55 | K55: 761.85 | L55: 744.2 | M55: 4.42587
A56: 47 | B56: CADILAHC | C56: 232.2 | D56: 233.47 | E56: 230.23 | F56: 228.27 | G56: 225.03 | H56: 235.43 | I56: 238.67 | J56: 240.63 | K56: 236.7 | L56: 231.5 | M56: 4.58031
A57: 48 | B57: CANBK | C57: 178.1 | D57: 179.48 | E57: 175.27 | F57: 172.43 | G57: 168.22 | H57: 182.32 | I57: 186.53 | J57: 189.37 | K57: 183.7 | L57: 176.65 | M57: 64.30752
A58: 49 | B58: CASTROLIND | C58: 132.05 | D58: 132.72 | E58: 130.93 | F58: 129.82 | G58: 128.03 | H58: 133.83 | I58: 135.62 | J58: 136.73 | K58: 134.5 | L58: 131.6 | M58: 9.13094
A59: 50 | B59: CHOLAFIN | C59: 283.3 | D59: 287.05 | E59: 278.90 | F59: 274.50 | G59: 266.35 | H59: 291.45 | I59: 299.60 | J59: 304.00 | K59: 295.2 | L59: 282.65 | M59: 8.2382
A60: 51 | B60: CIPLA | C60: 422.15 | D60: 422.67 | E60: 418.03 | F60: 413.92 | G60: 409.28 | H60: 426.78 | I60: 431.42 | J60: 435.53 | K60: 427.3 | L60: 418.55 | M60: 23.81621
A61: 52 | B61: CUB | C61: 220.5 | D61: 219.90 | E61: 217.30 | F61: 214.10 | G61: 211.50 | H61: 223.10 | I61: 225.70 | J61: 228.90 | K61: 222.5 | L61: 216.7 | M61: 3.86725
A62: 53 | B62: COALINDIA | C62: 184.55 | D62: 184.72 | E62: 183.53 | F62: 182.52 | G62: 181.33 | H62: 185.73 | I62: 186.92 | J62: 187.93 | K62: 185.9 | L62: 183.7 | M62: 40.47661
A63: 54 | B63: COLPAL | C63: 1496.2 | D63: 1494.47 | E63: 1485.28 | F63: 1474.37 | G63: 1465.18 | H63: 1505.38 | I63: 1514.57 | J63: 1525.48 | K63: 1503.65 | L63: 1483.55 | M63: 2.42765
A64: 55 | B64: CONCOR | C64: 566.5 | D64: 566.33 | E64: 561.32 | F64: 556.13 | G64: 551.12 | H64: 571.52 | I64: 576.53 | J64: 581.72 | K64: 571.35 | L64: 561.15 | M64: 8.11503
A65: 56 | B65: COROMANDEL | C65: 403.45 | D65: 403.70 | E65: 399.70 | F65: 395.95 | G65: 391.95 | H65: 407.45 | I65: 411.45 | J65: 415.20 | K65: 407.7 | L65: 399.95 | M65: 0.32295
A66: 57 | B66: CROMPTON | C66: 257.6 | D66: 257.93 | E66: 255.82 | F66: 254.03 | G66: 251.92 | H66: 259.72 | I66: 261.83 | J66: 263.62 | K66: 260.05 | L66: 256.15 | M66: 4.93507
A67: 58 | B67: CUMMINSIND | C67: 564.75 | D67: 566.92 | E67: 559.83 | F67: 554.92 | G67: 547.83 | H67: 571.83 | I67: 578.92 | J67: 583.83 | K67: 574 | L67: 562 | M67: 3.32475
A68: 59 | B68: DLF | C68: 142.45 | D68: 142.95 | E68: 139.00 | F68: 135.55 | G68: 131.60 | H68: 146.40 | I68: 150.35 | J68: 153.80 | K68: 146.9 | L68: 139.5 | M68: 123.93751
A69: 60 | B69: DABUR | C69: 439.4 | D69: 439.77 | E69: 436.08 | F69: 432.77 | G69: 429.08 | H69: 443.08 | I69: 446.77 | J69: 450.08 | K69: 443.45 | L69: 436.45 | M69: 5.71364
A70: 61 | B70: DALBHARAT | C70: 781.85 | D70: 784.15 | E70: 773.60 | F70: 765.35 | G70: 754.80 | H70: 792.40 | I70: 802.95 | J70: 811.20 | K70: 794.7 | L70: 775.9 | M70: 0.35898
A71: 62 | B71: DIVISLAB | C71: 1667.15 | D71: 1662.72 | E71: 1645.43 | F71: 1623.72 | G71: 1606.43 | H71: 1684.43 | I71: 1701.72 | J71: 1723.43 | K71: 1680 | L71: 1641 | M71: 5.66891
A72: 63 | B72: DRREDDY | C72: 2633.5 | D72: 2637.48 | E72: 2608.07 | F72: 2582.63 | G72: 2553.22 | H72: 2662.92 | I72: 2692.33 | J72: 2717.77 | K72: 2666.9 | L72: 2612.05 | M72: 2.88141
A73: 64 | B73: EDELWEISS | C73: 72.35 | D73: 72.87 | E73: 70.13 | F73: 67.92 | G73: 65.18 | H73: 75.08 | I73: 77.82 | J73: 80.03 | K73: 75.6 | L73: 70.65 | M73: 70.05978
A74: 65 | B74: EICHERMOT | C74: 18052.5 | D74: 18033.08 | E74: 17871.17 | F74: 17689.83 | G74: 17527.92 | H74: 18214.42 | I74: 18376.33 | J74: 18557.67 | K74: 18195 | L74: 17851.75 | M74: 0.82354
A75: 66 | B75: EMAMILTD | C75: 300.15 | D75: 298.80 | E75: 296.45 | F75: 292.75 | G75: 290.40 | H75: 302.50 | I75: 304.85 | J75: 308.55 | K75: 301.15 | L75: 295.1 | M75: 3.81481
A76: 67 | B76: ENDURANCE | C76: 965.75 | D76: 968.73 | E76: 953.02 | F76: 940.28 | G76: 924.57 | H76: 981.47 | I76: 997.18 | J76: 1009.92 | K76: 984.45 | L76: 956 | M76: 0.09602
A77: 68 | B77: ENGINERSIN | C77: 111 | D77: 110.57 | E77: 109.63 | F77: 108.27 | G77: 107.33 | H77: 111.93 | I77: 112.87 | J77: 114.23 | K77: 111.5 | L77: 109.2 | M77: 14.81244
A78: 69 | B78: ESCORTS | C78: 603.65 | D78: 605.50 | E78: 595.30 | F78: 586.95 | G78: 576.75 | H78: 613.85 | I78: 624.05 | J78: 632.40 | K78: 615.7 | L78: 597.15 | M78: 29.62369
A79: 70 | B79: EXIDEIND | C79: 184.05 | D79: 185.53 | E79: 180.57 | F79: 177.08 | G79: 172.12 | H79: 189.02 | I79: 193.98 | J79: 197.47 | K79: 190.5 | L79: 182.05 | M79: 13.73162
A80: 71 | B80: FEDERALBNK | C80: 84.3 | D80: 84.50 | E80: 83.20 | F80: 82.10 | G80: 80.80 | H80: 85.60 | I80: 86.90 | J80: 88.00 | K80: 85.8 | L80: 83.4 | M80: 62.18988
A81: 72 | B81: FCONSUMER | C81: 23.9 | D81: 23.65 | E81: 23.00 | F81: 22.10 | G81: 21.45 | H81: 24.55 | I81: 25.20 | J81: 26.10 | K81: 24.3 | L81: 22.75 | M81: 9.94628
A82: 73 | B82: FRETAIL | C82: 381.55 | D82: 375.33 | E82: 366.72 | F82: 351.88 | G82: 343.27 | H82: 390.17 | I82: 398.78 | J82: 413.62 | K82: 383.95 | L82: 360.5 | M82: 3.99194
A83: 74 | B83: GAIL | C83: 127.35 | D83: 128.62 | E83: 125.13 | F83: 122.92 | G83: 119.43 | H83: 130.83 | I83: 134.32 | J83: 136.53 | K83: 132.1 | L83: 126.4 | M83: 120.77572
A84: 75 | B84: GMRINFRA | C84: 17.2 | D84: 17.32 | E84: 16.98 | F84: 16.77 | G84: 16.43 | H84: 17.53 | I84: 17.87 | J84: 18.08 | K84: 17.65 | L84: 17.1 | M84: 93.17041
A85: 76 | B85: GICRE | C85: 210.2 | D85: 210.30 | E85: 206.70 | F85: 203.20 | G85: 199.60 | H85: 213.80 | I85: 217.40 | J85: 220.90 | K85: 213.9 | L85: 206.8 | M85: 0.3882
A86: 77 | B86: GLENMARK | C86: 289.75 | D86: 292.33 | E86: 285.72 | F86: 281.68 | G86: 275.07 | H86: 296.37 | I86: 302.98 | J86: 307.02 | K86: 298.95 | L86: 288.3 | M86: 16.76721
A87: 78 | B87: GODREJAGRO | C87: 472.2 | D87: 473.93 | E87: 467.42 | F87: 462.63 | G87: 456.12 | H87: 478.72 | I87: 485.23 | J87: 490.02 | K87: 480.45 | L87: 469.15 | M87: 0.17559
A88: 79 | B88: GODREJCP | C88: 680.1 | D88: 678.12 | E88: 673.63 | F88: 667.17 | G88: 662.68 | H88: 684.58 | I88: 689.07 | J88: 695.53 | K88: 682.6 | L88: 671.65 | M88: 5.00575
A89: 80 | B89: GODREJIND | C89: 379.9 | D89: 381.30 | E89: 374.60 | F89: 369.30 | G89: 362.60 | H89: 386.60 | I89: 393.30 | J89: 398.60 | K89: 388 | L89: 376 | M89: 1.33508
A90: 81 | B90: GODREJPROP | C90: 978.55 | D90: 983.13 | E90: 967.42 | F90: 956.28 | G90: 940.57 | H90: 994.27 | I90: 1009.98 | J90: 1021.12 | K90: 998.85 | L90: 972 | M90: 0.95037
A91: 82 | B91: GRAPHITE | C91: 271.3 | D91: 274.37 | E91: 264.93 | F91: 258.57 | G91: 249.13 | H91: 280.73 | I91: 290.17 | J91: 296.53 | K91: 283.8 | L91: 268 | M91: 15.53005
A92: 83 | B92: GRASIM | C92: 696.6 | D92: 701.15 | E92: 675.45 | F92: 654.30 | G92: 628.60 | H92: 722.30 | I92: 748.00 | J92: 769.15 | K92: 726.85 | L92: 680 | M92: 75.89225
A93: 84 | B93: GSPL | C93: 205.3 | D93: 206.08 | E93: 203.42 | F93: 201.53 | G93: 198.87 | H93: 207.97 | I93: 210.63 | J93: 212.52 | K93: 208.75 | L93: 204.2 | M93: 7.9822
A94: 85 | B94: HEG | C94: 913.8 | D94: 916.60 | E94: 889.20 | F94: 864.60 | G94: 837.20 | H94: 941.20 | I94: 968.60 | J94: 993.20 | K94: 944 | L94: 892 | M94: 4.27813
A95: 86 | B95: HCLTECH | C95: 1063.5 | D95: 1057.00 | E95: 1047.90 | F95: 1032.30 | G95: 1023.20 | H95: 1072.60 | I95: 1081.70 | J95: 1097.30 | K95: 1066.1 | L95: 1041.4 | M95: 13.53776
A96: 87 | B96: HDFCAMC | C96: 2723.55 | D96: 2731.48 | E96: 2702.07 | F96: 2680.58 | G96: 2651.17 | H96: 2752.97 | I96: 2782.38 | J96: 2803.87 | K96: 2760.9 | L96: 2710 | M96: 2.93179
A97: 88 | B97: HDFCBANK | C97: 1200.55 | D97: 1207.90 | E97: 1189.85 | F97: 1179.15 | G97: 1161.10 | H97: 1218.60 | I97: 1236.65 | J97: 1247.35 | K97: 1225.95 | L97: 1197.2 | M97: 57.78429
A98: 89 | B98: HDFCLIFE | C98: 583.8 | D98: 582.60 | E98: 576.20 | F98: 568.60 | G98: 562.20 | H98: 590.20 | I98: 596.60 | J98: 604.20 | K98: 589 | L98: 575 | M98: 15.56208
A99: 90 | B99: HAVELLS | C99: 662.65 | D99: 661.50 | E99: 653.20 | F99: 643.75 | G99: 635.45 | H99: 670.95 | I99: 679.25 | J99: 688.70 | K99: 669.8 | L99: 652.05 | M99: 11.33005
A100: 91 | B100: HEROMOTOCO | C100: 2601.85 | D100: 2606.00 | E100: 2577.00 | F100: 2552.15 | G100: 2523.15 | H100: 2630.85 | I100: 2659.85 | J100: 2684.70 | K100: 2635 | L100: 2581.15 | M100: 6.54085
A101: 92 | B101: HEXAWARE | C101: 357.15 | D101: 358.15 | E101: 353.50 | F101: 349.85 | G101: 345.20 | H101: 361.80 | I101: 366.45 | J101: 370.10 | K101: 362.8 | L101: 354.5 | M101: 6.67215
A102: 93 | B102: HINDALCO | C102: 182.25 | D102: 183.33 | E102: 180.72 | F102: 179.18 | G102: 176.57 | H102: 184.87 | I102: 187.48 | J102: 189.02 | K102: 185.95 | L102: 181.8 | M102: 43.51508
A103: 94 | B103: HINDPETRO | C103: 311.15 | D103: 311.77 | E103: 306.98 | F103: 302.82 | G103: 298.03 | H103: 315.93 | I103: 320.72 | J103: 324.88 | K103: 316.55 | L103: 307.6 | M103: 35.53996
A104: 95 | B104: HINDUNILVR | C104: 1968.75 | D104: 1962.28 | E104: 1942.07 | F104: 1915.38 | G104: 1895.17 | H104: 1988.97 | I104: 2009.18 | J104: 2035.87 | K104: 1982.5 | L104: 1935.6 | M104: 14.9229
A105: 96 | B105: HINDZINC | C105: 204.35 | D105: 205.45 | E105: 202.90 | F105: 201.45 | G105: 198.90 | H105: 206.90 | I105: 209.45 | J105: 210.90 | K105: 208 | L105: 204 | M105: 2.07122
A106: 97 | B106: HUDCO | C106: 32.35 | D106: 32.57 | E106: 32.03 | F106: 31.72 | G106: 31.18 | H106: 32.88 | I106: 33.42 | J106: 33.73 | K106: 33.1 | L106: 32.25 | M106: 4.46087
A107: 98 | B107: HDFC | C107: 1987.95 | D107: 1986.32 | E107: 1972.63 | F107: 1957.32 | G107: 1943.63 | H107: 2001.63 | I107: 2015.32 | J107: 2030.63 | K107: 2000 | L107: 1971 | M107: 26.27395
A108: 99 | B108: ICICIBANK | C108: 423.7 | D108: 425.23 | E108: 418.97 | F108: 414.23 | G108: 407.97 | H108: 429.97 | I108: 436.23 | J108: 440.97 | K108: 431.5 | L108: 420.5 | M108: 190.74005
A109: 100 | B109: ICICIGI | C109: 1193.35 | D109: 1186.42 | E109: 1172.83 | F109: 1152.32 | G109: 1138.73 | H109: 1206.93 | I109: 1220.52 | J109: 1241.03 | K109: 1200 | L109: 1165.9 | M109: 2.49137
A110: 101 | B110: ICICIPRULI | C110: 446.55 | D110: 448.08 | E110: 441.92 | F110: 437.28 | G110: 431.12 | H110: 452.72 | I110: 458.88 | J110: 463.52 | K110: 454.25 | L110: 443.45 | M110: 22.59559
A111: 102 | B111: IDBI | C111: 29.65 | D111: 29.82 | E111: 29.23 | F111: 28.82 | G111: 28.23 | H111: 30.23 | I111: 30.82 | J111: 31.23 | K111: 30.4 | L111: 29.4 | M111: 28.1308
A112: 103 | B112: IDFCFIRSTB | C112: 36.95 | D112: 37.30 | E112: 36.20 | F112: 35.45 | G112: 34.35 | H112: 38.05 | I112: 39.15 | J112: 39.90 | K112: 38.4 | L112: 36.55 | M112: 185.58701
A113: 104 | B113: ITC | C113: 243.2 | D113: 244.50 | E113: 241.35 | F113: 239.50 | G113: 236.35 | H113: 246.35 | I113: 249.50 | J113: 251.35 | K113: 247.65 | L113: 242.65 | M113: 242.94966
A114: 105 | B114: IBULHSGFIN | C114: 195.35 | D114: 207.13 | E114: 173.52 | F114: 151.68 | G114: 118.07 | H114: 228.97 | I114: 262.58 | J114: 284.42 | K114: 240.75 | L114: 185.3 | M114: 733.40563
A115: 106 | B115: IBVENTURES | C115: 99.75 | D115: 103.72 | E115: 94.13 | F115: 88.52 | G115: 78.93 | H115: 109.33 | I115: 118.92 | J115: 124.53 | K115: 113.3 | L115: 98.1 | M115: 36.46247
A116: 107 | B116: INDIANB | C116: 113.65 | D116: 114.50 | E116: 111.35 | F116: 109.05 | G116: 105.90 | H116: 116.80 | I116: 119.95 | J116: 122.25 | K116: 117.65 | L116: 112.2 | M116: 8.44496
A117: 108 | B117: INDHOTEL | C117: 151.85 | D117: 152.82 | E117: 149.33 | F117: 146.82 | G117: 143.33 | H117: 155.33 | I117: 158.82 | J117: 161.33 | K117: 156.3 | L117: 150.3 | M117: 17.19136
A118: 109 | B118: IOC | C118: 148.2 | D118: 148.15 | E118: 146.65 | F118: 145.10 | G118: 143.60 | H118: 149.70 | I118: 151.20 | J118: 152.75 | K118: 149.65 | L118: 146.6 | M118: 141.29514
A119: 110 | B119: IGL | C119: 370.6 | D119: 369.50 | E119: 364.40 | F119: 358.20 | G119: 353.10 | H119: 375.70 | I119: 380.80 | J119: 387.00 | K119: 374.6 | L119: 363.3 | M119: 35.51423
A120: 111 | B120: INDUSINDBK | C120: 1228.5 | D120: 1256.50 | E120: 1192.00 | F120: 1155.50 | G120: 1091.00 | H120: 1293.00 | I120: 1357.50 | J120: 1394.00 | K120: 1321 | L120: 1220 | M120: 139.75918
A121: 112 | B121: NAUKRI | C121: 2283.65 | D121: 2320.47 | E121: 2233.18 | F121: 2182.72 | G121: 2095.43 | H121: 2370.93 | I121: 2458.22 | J121: 2508.68 | K121: 2407.75 | L121: 2270 | M121: 3.33197
A122: 113 | B122: INFY | C122: 783.05 | D122: 784.78 | E122: 774.87 | F122: 766.68 | G122: 756.77 | H122: 792.97 | I122: 802.88 | J122: 811.07 | K122: 794.7 | L122: 776.6 | M122: 104.02917
A123: 114 | B123: INDIGO | C123: 1790.1 | D123: 1794.90 | E123: 1775.50 | F123: 1760.90 | G123: 1741.50 | H123: 1809.50 | I123: 1828.90 | J123: 1843.50 | K123: 1814.3 | L123: 1780.3 | M123: 4.09189
A124: 115 | B124: IPCALAB | C124: 856.5 | D124: 857.02 | E124: 844.13 | F124: 831.77 | G124: 818.88 | H124: 869.38 | I124: 882.27 | J124: 894.63 | K124: 869.9 | L124: 844.65 | M124: 5.6679
A125: 116 | B125: JSWENERGY | C125: 61.3 | D125: 61.40 | E125: 60.65 | F125: 60.00 | G125: 59.25 | H125: 62.05 | I125: 62.80 | J125: 63.45 | K125: 62.15 | L125: 60.75 | M125: 1.86567
A126: 117 | B126: JSWSTEEL | C126: 213.75 | D126: 212.58 | E126: 210.27 | F126: 206.78 | G126: 204.47 | H126: 216.07 | I126: 218.38 | J126: 221.87 | K126: 214.9 | L126: 209.1 | M126: 66.93227
A127: 118 | B127: JINDALSTEL | C127: 95.65 | D127: 96.03 | E127: 94.22 | F127: 92.78 | G127: 90.97 | H127: 97.47 | I127: 99.28 | J127: 100.72 | K127: 97.85 | L127: 94.6 | M127: 175.59085
A128: 119 | B128: JUBLFOOD | C128: 1325.9 | D128: 1316.15 | E128: 1300.80 | F128: 1275.70 | G128: 1260.35 | H128: 1341.25 | I128: 1356.60 | J128: 1381.70 | K128: 1331.5 | L128: 1291.05 | M128: 10.00376
A129: 120 | B129: JUBILANT | C129: 469.95 | D129: 475.67 | E129: 462.28 | F129: 454.62 | G129: 441.23 | H129: 483.33 | I129: 496.72 | J129: 504.38 | K129: 489.05 | L129: 468 | M129: 2.47446
A130: 121 | B130: KOTAKBANK | C130: 1584.8 | D130: 1586.38 | E130: 1565.42 | F130: 1546.03 | G130: 1525.07 | H130: 1605.77 | I130: 1626.73 | J130: 1646.12 | K130: 1607.35 | L130: 1567 | M130: 15.69421
A131: 122 | B131: L&TFH | C131: 81.5 | D131: 81.53 | E131: 80.12 | F131: 78.73 | G131: 77.32 | H131: 82.92 | I131: 84.33 | J131: 85.72 | K131: 82.95 | L131: 80.15 | M131: 88.70492
A132: 123 | B132: LTTS | C132: 1529.85 | D132: 1548.58 | E132: 1506.82 | F132: 1483.78 | G132: 1442.02 | H132: 1571.62 | I132: 1613.38 | J132: 1636.42 | K132: 1590.35 | L132: 1525.55 | M132: 0.38163
A133: 124 | B133: LICHSGFIN | C133: 369.35 | D133: 372.65 | E133: 364.00 | F133: 358.65 | G133: 350.00 | H133: 378.00 | I133: 386.65 | J133: 392.00 | K133: 381.3 | L133: 367.3 | M133: 16.927
A134: 125 | B134: LTI | C134: 1473.85 | D134: 1481.32 | E134: 1462.53 | F134: 1451.22 | G134: 1432.43 | H134: 1492.63 | I134: 1511.42 | J134: 1522.73 | K134: 1500.1 | L134: 1470 | M134: 0.80469
A135: 126 | B135: LT | C135: 1425.1 | D135: 1421.38 | E135: 1410.77 | F135: 1396.43 | G135: 1385.82 | H135: 1435.72 | I135: 1446.33 | J135: 1460.67 | K135: 1432 | L135: 1407.05 | M135: 16.26821
A136: 127 | B136: LUPIN | C136: 690.95 | D136: 688.87 | E136: 678.93 | F136: 666.92 | G136: 656.98 | H136: 700.88 | I136: 710.82 | J136: 722.83 | K136: 698.8 | L136: 676.85 | M136: 15.07716
A137: 128 | B137: MRF | C137: 61174 | D137: 61099.95 | E137: 60810.90 | F137: 60447.80 | G137: 60158.75 | H137: 61463.05 | I137: 61752.10 | J137: 62115.20 | K137: 61389 | L137: 60736.85 | M137: 0.03047
A138: 129 | B138: MGL | C138: 917.55 | D138: 918.07 | E138: 908.93 | F138: 900.32 | G138: 891.18 | H138: 926.68 | I138: 935.82 | J138: 944.43 | K138: 927.2 | L138: 909.45 | M138: 5.49899
A139: 130 | B139: M&MFIN | C139: 326 | D139: 328.30 | E139: 322.00 | F139: 318.00 | G139: 311.70 | H139: 332.30 | I139: 338.60 | J139: 342.60 | K139: 334.6 | L139: 324.3 | M139: 13.54129
A140: 131 | B140: M&M | C140: 566.05 | D140: 567.10 | E140: 558.20 | F140: 550.35 | G140: 541.45 | H140: 574.95 | I140: 583.85 | J140: 591.70 | K140: 576 | L140: 559.25 | M140: 21.5641
A141: 132 | B141: MANAPPURAM | C141: 138.55 | D141: 138.67 | E141: 137.23 | F141: 135.92 | G141: 134.48 | H141: 139.98 | I141: 141.42 | J141: 142.73 | K141: 140.1 | L141: 137.35 | M141: 35.02566
A142: 133 | B142: MRPL | C142: 50.65 | D142: 50.45 | E142: 50.00 | F142: 49.35 | G142: 48.90 | H142: 51.10 | I142: 51.55 | J142: 52.20 | K142: 50.9 | L142: 49.8 | M142: 2.80748
A143: 134 | B143: MARICO | C143: 384.5 | D143: 384.58 | E143: 380.82 | F143: 377.13 | G143: 373.37 | H143: 388.27 | I143: 392.03 | J143: 395.72 | K143: 388.35 | L143: 380.9 | M143: 12.35106
A144: 135 | B144: MARUTI | C144: 6605.45 | D144: 6635.27 | E144: 6528.43 | F144: 6451.42 | G144: 6344.58 | H144: 6712.28 | I144: 6819.12 | J144: 6896.13 | K144: 6742.1 | L144: 6558.25 | M144: 9.85523
A145: 136 | B145: MFSL | C145: 407 | D145: 409.18 | E145: 400.37 | F145: 393.73 | G145: 384.92 | H145: 415.82 | I145: 424.63 | J145: 431.27 | K145: 418 | L145: 402.55 | M145: 4.47187
A146: 137 | B146: MINDTREE | C146: 724.5 | D146: 726.08 | E146: 718.47 | F146: 712.43 | G146: 704.82 | H146: 732.12 | I146: 739.73 | J146: 745.77 | K146: 733.7 | L146: 720.05 | M146: 3.99264
A147: 138 | B147: MOTHERSUMI | C147: 96.15 | D147: 96.17 | E147: 94.48 | F147: 92.82 | G147: 91.13 | H147: 97.83 | I147: 99.52 | J147: 101.18 | K147: 97.85 | L147: 94.5 | M147: 83.99333
A148: 139 | B148: MPHASIS | C148: 909.2 | D148: 916.08 | E148: 893.17 | F148: 877.13 | G148: 854.22 | H148: 932.12 | I148: 955.03 | J148: 971.07 | K148: 939 | L148: 900.05 | M148: 4.08474
A149: 140 | B149: MUTHOOTFIN | C149: 667.3 | D149: 672.25 | E149: 658.10 | F149: 648.90 | G149: 634.75 | H149: 681.45 | I149: 695.60 | J149: 704.80 | K149: 686.4 | L149: 663.05 | M149: 6.76392
A150: 141 | B150: NATCOPHARM | C150: 550.65 | D150: 552.05 | E150: 546.60 | F150: 542.55 | G150: 537.10 | H150: 556.10 | I150: 561.55 | J150: 565.60 | K150: 557.5 | L150: 548 | M150: 0.56644
A151: 142 | B151: NBCC | C151: 33.65 | D151: 33.73 | E151: 32.92 | F151: 32.18 | G151: 31.37 | H151: 34.47 | I151: 35.28 | J151: 36.02 | K151: 34.55 | L151: 33 | M151: 147.74126
A152: 143 | B152: NHPC | C152: 22.55 | D152: 22.40 | E152: 22.10 | F152: 21.65 | G152: 21.35 | H152: 22.85 | I152: 23.15 | J152: 23.60 | K152: 22.7 | L152: 21.95 | M152: 24.09301
A153: 144 | B153: NMDC | C153: 95.6 | D153: 95.95 | E153: 94.10 | F153: 92.60 | G153: 90.75 | H153: 97.45 | I153: 99.30 | J153: 100.80 | K153: 97.8 | L153: 94.45 | M153: 58.01135
A154: 145 | B154: NTPC | C154: 117.25 | D154: 117.03 | E154: 116.57 | F154: 115.88 | G154: 115.42 | H154: 117.72 | I154: 118.18 | J154: 118.87 | K154: 117.5 | L154: 116.35 | M154: 68.8534
A155: 146 | B155: NATIONALUM | C155: 42.15 | D155: 42.98 | E155: 40.57 | F155: 38.98 | G155: 36.57 | H155: 44.57 | I155: 46.98 | J155: 48.57 | K155: 45.4 | L155: 41.4 | M155: 346.59802
A156: 147 | B156: NESTLEIND | C156: 13819.85 | D156: 13785.62 | E156: 13714.23 | F156: 13608.62 | G156: 13537.23 | H156: 13891.23 | I156: 13962.62 | J156: 14068.23 | K156: 13857 | L156: 13680 | M156: 0.27905
A157: 148 | B157: OBEROIRLTY | C157: 495.4 | D157: 497.40 | E157: 488.00 | F157: 480.60 | G157: 471.20 | H157: 504.80 | I157: 514.20 | J157: 521.60 | K157: 506.8 | L157: 490 | M157: 3.95448
A158: 149 | B158: ONGC | C158: 125.5 | D158: 125.90 | E158: 124.70 | F158: 123.90 | G158: 122.70 | H158: 126.70 | I158: 127.90 | J158: 128.70 | K158: 127.1 | L158: 125.1 | M158: 61.69256
A159: 150 | B159: OIL | C159: 147.4 | D159: 146.47 | E159: 144.48 | F159: 141.57 | G159: 139.58 | H159: 149.38 | I159: 151.37 | J159: 154.28 | K159: 148.45 | L159: 143.55 | M159: 11.26215
A160: 151 | B160: OFSS | C160: 3074.75 | D160: 3089.58 | E160: 3039.17 | F160: 3003.58 | G160: 2953.17 | H160: 3125.17 | I160: 3175.58 | J160: 3211.17 | K160: 3140 | L160: 3054 | M160: 0.06238
A161: 152 | B161: ORIENTBANK | C161: 52.7 | D161: 53.05 | E161: 52.10 | F161: 51.50 | G161: 50.55 | H161: 53.65 | I161: 54.60 | J161: 55.20 | K161: 54 | L161: 52.45 | M161: 6.39118
A162: 153 | B162: PIIND | C162: 1287.9 | D162: 1294.87 | E162: 1273.28 | F162: 1258.67 | G162: 1237.08 | H162: 1309.48 | I162: 1331.07 | J162: 1345.68 | K162: 1316.45 | L162: 1280.25 | M162: 0.52831
A163: 154 | B163: PNBHOUSING | C163: 531.85 | D163: 537.28 | E163: 524.57 | F163: 517.28 | G163: 504.57 | H163: 544.57 | I163: 557.28 | J163: 564.57 | K163: 550 | L163: 530 | M163: 0.9998
A164: 155 | B164: PAGEIND | C164: 21258.3 | D164: 21247.72 | E164: 21000.58 | F164: 20742.87 | G164: 20495.73 | H164: 21505.43 | I164: 21752.57 | J164: 22010.28 | K164: 21494.85 | L164: 20990 | M164: 0.21624
A165: 156 | B165: PETRONET | C165: 258.65 | D165: 258.57 | E165: 257.08 | F165: 255.52 | G165: 254.03 | H165: 260.13 | I165: 261.62 | J165: 263.18 | K165: 260.05 | L165: 257 | M165: 20.69638
A166: 157 | B166: PFIZER | C166: 3115.5 | D166: 3126.77 | E166: 3083.73 | F166: 3051.97 | G166: 3008.93 | H166: 3158.53 | I166: 3201.57 | J166: 3233.33 | K166: 3169.8 | L166: 3095 | M166: 0.11319
A167: 158 | B167: PIDILITIND | C167: 1358.85 | D167: 1350.43 | E167: 1331.42 | F167: 1303.98 | G167: 1284.97 | H167: 1377.87 | I167: 1396.88 | J167: 1424.32 | K167: 1369.45 | L167: 1323 | M167: 6.09318
A168: 159 | B168: PEL | C168: 1371.45 | D168: 1362.07 | E168: 1325.38 | F168: 1279.32 | G168: 1242.63 | H168: 1408.13 | I168: 1444.82 | J168: 1490.88 | K168: 1398.75 | L168: 1316 | M168: 33.12799
A169: 160 | B169: PFC | C169: 92.6 | D169: 93.45 | E169: 91.25 | F169: 89.90 | G169: 87.70 | H169: 94.80 | I169: 97.00 | J169: 98.35 | K169: 95.65 | L169: 92.1 | M169: 97.07713
A170: 161 | B170: POWERGRID | C170: 199.1 | D170: 198.40 | E170: 197.20 | F170: 195.30 | G170: 194.10 | H170: 200.30 | I170: 201.50 | J170: 203.40 | K170: 199.6 | L170: 196.5 | M170: 39.27919
A171: 162 | B171: PRESTIGE | C171: 277 | D171: 278.00 | E171: 274.00 | F171: 271.00 | G171: 267.00 | H171: 281.00 | I171: 285.00 | J171: 288.00 | K171: 282 | L171: 275 | M171: 0.46998
A172: 163 | B172: PGHH | C172: 11260.45 | D172: 11302.47 | E172: 11182.93 | F172: 11105.42 | G172: 10985.88 | H172: 11379.98 | I172: 11499.52 | J172: 11577.03 | K172: 11422 | L172: 11224.95 | M172: 0.02599
A173: 164 | B173: PNB | C173: 56.45 | D173: 56.95 | E173: 55.70 | F173: 54.95 | G173: 53.70 | H173: 57.70 | I173: 58.95 | J173: 59.70 | K173: 58.2 | L173: 56.2 | M173: 226.77919
A174: 165 | B174: QUESS | C174: 472.75 | D174: 470.70 | E174: 466.40 | F174: 460.05 | G174: 455.75 | H174: 477.05 | I174: 481.35 | J174: 487.70 | K174: 475 | L174: 464.35 | M174: 0.3078
A175: 166 | B175: RBLBANK | C175: 288.5 | D175: 293.15 | E175: 278.50 | F175: 268.50 | G175: 253.85 | H175: 303.15 | I175: 317.80 | J175: 327.80 | K175: 307.8 | L175: 283.15 | M175: 162.15356
A176: 167 | B176: RECLTD | C176: 126.05 | D176: 125.92 | E176: 123.93 | F176: 121.82 | G176: 119.83 | H176: 128.03 | I176: 130.02 | J176: 132.13 | K176: 127.9 | L176: 123.8 | M176: 63.06076
A177: 168 | B177: RAJESHEXPO | C177: 673.3 | D177: 674.75 | E177: 669.55 | F177: 665.80 | G177: 660.60 | H177: 678.50 | I177: 683.70 | J177: 687.45 | K177: 679.95 | L177: 671 | M177: 2.1978
A178: 169 | B178: RELIANCE | C178: 1362.75 | D178: 1350.92 | E178: 1332.83 | F178: 1302.92 | G178: 1284.83 | H178: 1380.83 | I178: 1398.92 | J178: 1428.83 | K178: 1369 | L178: 1321 | M178: 160.03744
A179: 170 | B179: RNAM | C179: 264.05 | D179: 266.73 | E179: 260.12 | F179: 256.18 | G179: 249.57 | H179: 270.67 | I179: 277.28 | J179: 281.22 | K179: 273.35 | L179: 262.8 | M179: 10.00879
A180: 171 | B180: SBILIFE | C180: 827.2 | D180: 826.97 | E180: 805.93 | F180: 784.67 | G180: 763.63 | H180: 848.23 | I180: 869.27 | J180: 890.53 | K180: 848 | L180: 805.7 | M180: 52.86384
A181: 172 | B181: SRF | C181: 2743.4 | D181: 2751.55 | E181: 2714.10 | F181: 2684.80 | G181: 2647.35 | H181: 2780.85 | I181: 2818.30 | J181: 2847.60 | K181: 2789 | L181: 2722.25 | M181: 1.7199
A182: 173 | B182: SHREECEM | C182: 18268.75 | D182: 18311.47 | E182: 18073.28 | F182: 17877.82 | G182: 17639.63 | H182: 18506.93 | I182: 18745.12 | J182: 18940.58 | K182: 18549.65 | L182: 18116 | M182: 0.10771
A183: 174 | B183: SRTRANSFIN | C183: 1081.9 | D183: 1090.55 | E183: 1065.10 | F183: 1048.30 | G183: 1022.85 | H183: 1107.35 | I183: 1132.80 | J183: 1149.60 | K183: 1116 | L183: 1073.75 | M183: 7.97201
A184: 175 | B184: SIEMENS | C184: 1572.3 | D184: 1575.07 | E184: 1551.43 | F184: 1530.57 | G184: 1506.93 | H184: 1595.93 | I184: 1619.57 | J184: 1640.43 | K184: 1598.7 | L184: 1554.2 | M184: 8.00313
A185: 176 | B185: SBIN | C185: 254.15 | D185: 254.92 | E185: 251.83 | F185: 249.52 | G185: 246.43 | H185: 257.23 | I185: 260.32 | J185: 262.63 | K185: 258 | L185: 252.6 | M185: 375.77511
A186: 177 | B186: SAIL | C186: 31.8 | D186: 31.95 | E186: 31.45 | F186: 31.10 | G186: 30.60 | H186: 32.30 | I186: 32.80 | J186: 33.15 | K186: 32.45 | L186: 31.6 | M186: 214.13466
A187: 178 | B187: STRTECH | C187: 144.15 | D187: 144.18 | E187: 141.47 | F187: 138.78 | G187: 136.07 | H187: 146.87 | I187: 149.58 | J187: 152.27 | K187: 146.9 | L187: 141.5 | M187: 7.75872
A188: 179 | B188: SUNPHARMA | C188: 387.05 | D188: 385.18 | E188: 380.57 | F188: 374.08 | G188: 369.47 | H188: 391.67 | I188: 396.28 | J188: 402.77 | K188: 389.8 | L188: 378.7 | M188: 45.81317
A189: 180 | B189: SUNTV | C189: 468.15 | D189: 471.15 | E189: 461.50 | F189: 454.85 | G189: 445.20 | H189: 477.80 | I189: 487.45 | J189: 494.10 | K189: 480.8 | L189: 464.5 | M189: 15.36015
A190: 181 | B190: SYNGENE | C190: 309.1 | D190: 307.72 | E190: 304.48 | F190: 299.87 | G190: 296.63 | H190: 312.33 | I190: 315.57 | J190: 320.18 | K190: 310.95 | L190: 303.1 | M190: 3.66817
A191: 182 | B191: TVSMOTOR | C191: 384.45 | D191: 387.73 | E191: 378.77 | F191: 373.08 | G191: 364.12 | H191: 393.42 | I191: 402.38 | J191: 408.07 | K191: 396.7 | L191: 382.05 | M191: 11.65519
A192: 183 | B192: TATACHEM | C192: 578.85 | D192: 582.32 | E192: 573.03 | F192: 567.22 | G192: 557.93 | H192: 588.13 | I192: 597.42 | J192: 603.23 | K192: 591.6 | L192: 576.5 | M192: 3.09118
A193: 184 | B193: TCS | C193: 2004.45 | D193: 2013.53 | E193: 1988.02 | F193: 1971.58 | G193: 1946.07 | H193: 2029.97 | I193: 2055.48 | J193: 2071.92 | K193: 2039.05 | L193: 1997.1 | M193: 28.81452
A194: 185 | B194: TATAGLOBAL | C194: 266.65 | D194: 268.07 | E194: 263.68 | F194: 260.72 | G194: 256.33 | H194: 271.03 | I194: 275.42 | J194: 278.38 | K194: 272.45 | L194: 265.1 | M194: 8.8054
A195: 186 | B195: TATAMTRDVR | C195: 52.05 | D195: 52.32 | E195: 51.08 | F195: 50.12 | G195: 48.88 | H195: 53.28 | I195: 54.52 | J195: 55.48 | K195: 53.55 | L195: 51.35 | M195: 38.18395
A196: 187 | B196: TATAMOTORS | C196: 116.8 | D196: 117.57 | E196: 115.43 | F196: 114.07 | G196: 111.93 | H196: 118.93 | I196: 121.07 | J196: 122.43 | K196: 119.7 | L196: 116.2 | M196: 312.29192
A197: 188 | B197: TATAPOWER | C197: 61.6 | D197: 61.37 | E197: 60.63 | F197: 59.67 | G197: 58.93 | H197: 62.33 | I197: 63.07 | J197: 64.03 | K197: 62.1 | L197: 60.4 | M197: 70.59183
A198: 189 | B198: TATASTEEL | C198: 329.95 | D198: 330.83 | E198: 327.12 | F198: 324.28 | G198: 320.57 | H198: 333.67 | I198: 337.38 | J198: 340.22 | K198: 334.55 | L198: 328 | M198: 115.07498
A199: 190 | B199: TECHM | C199: 711.3 | D199: 711.22 | E199: 703.58 | F199: 695.87 | G199: 688.23 | H199: 718.93 | I199: 726.57 | J199: 734.28 | K199: 718.85 | L199: 703.5 | M199: 15.07268
A200: 191 | B200: NIACL | C200: 97.95 | D200: 99.25 | E200: 95.70 | F200: 93.45 | G200: 89.90 | H200: 101.50 | I200: 105.05 | J200: 107.30 | K200: 102.8 | L200: 97 | M200: 1.50795
A201: 192 | B201: RAMCOCEM | C201: 705.85 | D201: 704.38 | E201: 699.37 | F201: 692.88 | G201: 687.87 | H201: 710.87 | I201: 715.88 | J201: 722.37 | K201: 709.4 | L201: 697.9 | M201: 1.68969
A202: 193 | B202: TITAN | C202: 1234.7 | D202: 1232.38 | E202: 1222.32 | F202: 1209.93 | G202: 1199.87 | H202: 1244.77 | I202: 1254.83 | J202: 1267.22 | K202: 1242.45 | L202: 1220 | M202: 14.79753
A203: 194 | B203: TORNTPHARM | C203: 1688.25 | D203: 1649.43 | E203: 1593.82 | F203: 1499.38 | G203: 1443.77 | H203: 1743.87 | I203: 1799.48 | J203: 1893.92 | K203: 1705.05 | L203: 1555 | M203: 17.83778
A204: 195 | B204: TORNTPOWER | C204: 281.55 | D204: 281.95 | E204: 279.65 | F204: 277.75 | G204: 275.45 | H204: 283.85 | I204: 286.15 | J204: 288.05 | K204: 284.25 | L204: 280.05 | M204: 3.39863
A205: 196 | B205: UPL | C205: 583.45 | D205: 582.32 | E205: 575.83 | F205: 568.22 | G205: 561.73 | H205: 589.93 | I205: 596.42 | J205: 604.03 | K205: 588.8 | L205: 574.7 | M205: 17.89997
... 30 more rows

Sheet MidCap Intra
L5: Back To Main Page
A6: FOR INTRA DAY TRADING | K6: =Main!B10 -> 2019-10-11
A9: Sr.no | B9: Scrip | C9: CLOSE RATE | D9: Pivot Point | E9: Supports | H9: Resistances
C10: Point | E10: S1 | F10: S2 | G10: S3 | H10: R1 | I10: R2 | J10: R3 | K10: HIGH | L10: LOW | M10: Total Trade Quanity in Lakhs
A11: 1 | B11: 3MINDIA | C11: 19852.95 | D11: 19941.62 | E11: 19636.33 | F11: 19419.72 | G11: 19114.43 | H11: 20158.23 | I11: 20463.52 | J11: 20680.13 | K11: 20246.9 | L11: 19725 | M11: 0.00867
A12: 2 | B12: ACC | C12: 1422.9 | D12: 1434.60 | E12: 1406.40 | F12: 1389.90 | G12: 1361.70 | H12: 1451.10 | I12: 1479.30 | J12: 1495.80 | K12: 1462.8 | L12: 1418.1 | M12: 7.2133
A13: 3 | B13: AIAENG | C13: 1623.35 | D13: 1628.48 | E13: 1601.92 | F13: 1580.48 | G13: 1553.92 | H13: 1649.92 | I13: 1676.48 | J13: 1697.92 | K13: 1655.05 | L13: 1607.05 | M13: 0.07594
A14: 4 | B14: APLAPOLLO | C14: 1361.95 | D14: 1357.92 | E14: 1344.33 | F14: 1326.72 | G14: 1313.13 | H14: 1375.53 | I14: 1389.12 | J14: 1406.73 | K14: 1371.5 | L14: 1340.3 | M14: 0.18516
A15: 5 | B15: AUBANK | C15: 638.7 | D15: 641.33 | E15: 633.67 | F15: 628.63 | G15: 620.97 | H15: 646.37 | I15: 654.03 | J15: 659.07 | K15: 649 | L15: 636.3 | M15: 0.54896
A16: 6 | B16: AAVAS | C16: 1635.75 | D16: 1638.32 | E16: 1600.48 | F16: 1565.22 | G16: 1527.38 | H16: 1673.58 | I16: 1711.42 | J16: 1746.68 | K16: 1676.15 | L16: 1603.05 | M16: 0.09207
A17: 7 | B17: ABBOTINDIA | C17: 10999.35 | D17: 10945.83 | E17: 10835.12 | F17: 10670.88 | G17: 10560.17 | H17: 11110.07 | I17: 11220.78 | J17: 11385.02 | K17: 11056.55 | L17: 10781.6 | M17: 0.20392
A18: 8 | B18: ADANIGAS | C18: 138.5 | D18: 139.42 | E18: 135.88 | F18: 133.27 | G18: 129.73 | H18: 142.03 | I18: 145.57 | J18: 148.18 | K18: 142.95 | L18: 136.8 | M18: 18.89479
A19: 9 | B19: ADANIGREEN | C19: 73.8 | D19: 72.95 | E19: 71.40 | F19: 69.00 | G19: 67.45 | H19: 75.35 | I19: 76.90 | J19: 79.30 | K19: 74.5 | L19: 70.55 | M19: 32.67575
A20: 10 | B20: ADANIPORTS | C20: 399.9 | D20: 399.03 | E20: 396.47 | F20: 393.03 | G20: 390.47 | H20: 402.47 | I20: 405.03 | J20: 408.47 | K20: 401.6 | L20: 395.6 | M20: 30.34826
A21: 11 | B21: ADANIPOWER | C21: 62.5 | D21: 61.50 | E21: 59.90 | F21: 57.30 | G21: 55.70 | H21: 64.10 | I21: 65.70 | J21: 68.30 | K21: 63.1 | L21: 58.9 | M21: 171.92619
A22: 12 | B22: ADANITRANS | C22: 222.6 | D22: 224.18 | E22: 220.42 | F22: 218.23 | G22: 214.47 | H22: 226.37 | I22: 230.13 | J22: 232.32 | K22: 227.95 | L22: 222 | M22: 0.44917
A23: 13 | B23: ABCAPITAL | C23: 79.2 | D23: 79.80 | E23: 78.40 | F23: 77.60 | G23: 76.20 | H23: 80.60 | I23: 82.00 | J23: 82.80 | K23: 81.2 | L23: 79 | M23: 6.70965
A24: 14 | B24: ABFRL | C24: 204.6 | D24: 205.42 | E24: 202.73 | F24: 200.87 | G24: 198.18 | H24: 207.28 | I24: 209.97 | J24: 211.83 | K24: 208.1 | L24: 203.55 | M24: 3.58364
A25: 15 | B25: ADVENZYMES | C25: 148 | D25: 148.67 | E25: 146.43 | F25: 144.87 | G25: 142.63 | H25: 150.23 | I25: 152.47 | J25: 154.03 | K25: 150.9 | L25: 147.1 | M25: 0.28761
A26: 16 | B26: AEGISCHEM | C26: 164.7 | D26: 167.03 | E26: 161.12 | F26: 157.53 | G26: 151.62 | H26: 170.62 | I26: 176.53 | J26: 180.12 | K26: 172.95 | L26: 163.45 | M26: 1.15157
A27: 17 | B27: AJANTPHARM | C27: 976.55 | D27: 979.17 | E27: 969.38 | F27: 962.22 | G27: 952.43 | H27: 986.33 | I27: 996.12 | J27: 1003.28 | K27: 988.95 | L27: 972 | M27: 0.22445
A28: 18 | B28: AKZOINDIA | C28: 1822.75 | D28: 1836.90 | E28: 1803.85 | F28: 1784.95 | G28: 1751.90 | H28: 1855.80 | I28: 1888.85 | J28: 1907.75 | K28: 1869.95 | L28: 1818 | M28: 0.05614
A29: 19 | B29: APLLTD | C29: 540.1 | D29: 539.90 | E29: 532.00 | F29: 523.90 | G29: 516.00 | H29: 548.00 | I29: 555.90 | J29: 564.00 | K29: 547.8 | L29: 531.8 | M29: 0.29907
A30: 20 | B30: ALKEM | C30: 1929 | D30: 1929.67 | E30: 1909.33 | F30: 1889.67 | G30: 1869.33 | H30: 1949.33 | I30: 1969.67 | J30: 1989.33 | K30: 1950 | L30: 1910 | M30: 0.51518
A31: 21 | B31: ALBK | C31: 26.55 | D31: 26.60 | E31: 25.95 | F31: 25.35 | G31: 24.70 | H31: 27.20 | I31: 27.85 | J31: 28.45 | K31: 27.25 | L31: 26 | M31: 9.35127
A32: 22 | B32: ALLCARGO | C32: 98.3 | D32: 98.27 | E32: 97.13 | F32: 95.97 | G32: 94.83 | H32: 99.43 | I32: 100.57 | J32: 101.73 | K32: 99.4 | L32: 97.1 | M32: 0.80332
A33: 23 | B33: AMARAJABAT | C33: 680 | D33: 685.72 | E33: 671.43 | F33: 662.87 | G33: 648.58 | H33: 694.28 | I33: 708.57 | J33: 717.13 | K33: 700 | L33: 677.15 | M33: 1.80484
A34: 24 | B34: AMBER | C34: 908.65 | D34: 905.85 | E34: 888.70 | F34: 868.75 | G34: 851.60 | H34: 925.80 | I34: 942.95 | J34: 962.90 | K34: 923 | L34: 885.9 | M34: 0.18539
A35: 25 | B35: AMBUJACEM | C35: 188 | D35: 188.85 | E35: 186.00 | F35: 184.00 | G35: 181.15 | H35: 190.85 | I35: 193.70 | J35: 195.70 | K35: 191.7 | L35: 186.85 | M35: 18.78899
A36: 26 | B36: ANDHRABANK | C36: 16.1 | D36: 16.20 | E36: 15.95 | F36: 15.80 | G36: 15.55 | H36: 16.35 | I36: 16.60 | J36: 16.75 | K36: 16.45 | L36: 16.05 | M36: 2.14207
A37: 27 | B37: APOLLOHOSP | C37: 1412.25 | D37: 1418.58 | E37: 1399.17 | F37: 1386.08 | G37: 1366.67 | H37: 1431.67 | I37: 1451.08 | J37: 1464.17 | K37: 1438 | L37: 1405.5 | M37: 4.35916
A38: 28 | B38: APOLLOTYRE | C38: 165.85 | D38: 166.78 | E38: 164.07 | F38: 162.28 | G38: 159.57 | H38: 168.57 | I38: 171.28 | J38: 173.07 | K38: 169.5 | L38: 165 | M38: 15.85971
A39: 29 | B39: ARVINDFASN | C39: 422.05 | D39: 421.00 | E39: 418.00 | F39: 413.95 | G39: 410.95 | H39: 425.05 | I39: 428.05 | J39: 432.10 | K39: 424 | L39: 416.95 | M39: 0.05876
A40: 30 | B40: ASHOKLEY | C40: 68.85 | D40: 69.05 | E40: 67.35 | F40: 65.85 | G40: 64.15 | H40: 70.55 | I40: 72.25 | J40: 73.75 | K40: 70.75 | L40: 67.55 | M40: 413.67276
A41: 31 | B41: ASHOKA | C41: 97.7 | D41: 97.62 | E41: 97.23 | F41: 96.77 | G41: 96.38 | H41: 98.08 | I41: 98.47 | J41: 98.93 | K41: 98 | L41: 97.15 | M41: 3.08157
A42: 32 | B42: ASIANPAINT | C42: 1778.6 | D42: 1776.03 | E42: 1759.07 | F42: 1739.53 | G42: 1722.57 | H42: 1795.57 | I42: 1812.53 | J42: 1832.07 | K42: 1793 | L42: 1756.5 | M42: 15.99166
A43: 33 | B43: ASTERDM | C43: 117.95 | D43: 117.77 | E43: 116.73 | F43: 115.52 | G43: 114.48 | H43: 118.98 | I43: 120.02 | J43: 121.23 | K43: 118.8 | L43: 116.55 | M43: 0.12635
A44: 34 | B44: ASTRAZEN | C44: 2159.6 | D44: 2182.53 | E44: 2117.07 | F44: 2074.53 | G44: 2009.07 | H44: 2225.07 | I44: 2290.53 | J44: 2333.07 | K44: 2248 | L44: 2140 | M44: 0.07792
A45: 35 | B45: ASTRAL | C45: 1163.4 | D45: 1171.55 | E45: 1144.85 | F45: 1126.30 | G45: 1099.60 | H45: 1190.10 | I45: 1216.80 | J45: 1235.35 | K45: 1198.25 | L45: 1153 | M45: 0.60454
A46: 36 | B46: ATUL | C46: 3896.4 | D46: 3917.60 | E46: 3848.80 | F46: 3801.20 | G46: 3732.40 | H46: 3965.20 | I46: 4034.00 | J46: 4081.60 | K46: 3986.4 | L46: 3870 | M46: 0.07696
A47: 37 | B47: AUROPHARMA | C47: 465.15 | D47: 458.60 | E47: 443.20 | F47: 421.25 | G47: 405.85 | H47: 480.55 | I47: 495.95 | J47: 517.90 | K47: 474 | L47: 436.65 | M47: 120.92242
A48: 38 | B48: AVANTIFEED | C48: 357.1 | D48: 356.85 | E48: 350.50 | F48: 343.90 | G48: 337.55 | H48: 363.45 | I48: 369.80 | J48: 376.40 | K48: 363.2 | L48: 350.25 | M48: 1.21869
A49: 39 | B49: DMART | C49: 1821.35 | D49: 1824.30 | E49: 1810.20 | F49: 1799.05 | G49: 1784.95 | H49: 1835.45 | I49: 1849.55 | J49: 1860.70 | K49: 1838.4 | L49: 1813.15 | M49: 2.92723
A50: 40 | B50: AXISBANK | C50: 672.95 | D50: 674.20 | E50: 664.10 | F50: 655.25 | G50: 645.15 | H50: 683.05 | I50: 693.15 | J50: 702.00 | K50: 684.3 | L50: 665.35 | M50: 86.79981
A51: 41 | B51: BASF | C51: 976.7 | D51: 983.90 | E51: 967.80 | F51: 958.90 | G51: 942.80 | H51: 992.80 | I51: 1008.90 | J51: 1017.80 | K51: 1000 | L51: 975 | M51: 0.04734
A52: 42 | B52: BEML | C52: 906.7 | D52: 914.05 | E52: 886.65 | F52: 866.60 | G52: 839.20 | H52: 934.10 | I52: 961.50 | J52: 981.55 | K52: 941.45 | L52: 894 | M52: 4.56795
A53: 43 | B53: BSE | C53: 515.15 | D53: 520.97 | E53: 508.18 | F53: 501.22 | G53: 488.43 | H53: 527.93 | I53: 540.72 | J53: 547.68 | K53: 533.75 | L53: 514 | M53: 0.8333
A54: 44 | B54: BAJAJ-AUTO | C54: 2886.25 | D54: 2894.42 | E54: 2856.83 | F54: 2827.42 | G54: 2789.83 | H54: 2923.83 | I54: 2961.42 | J54: 2990.83 | K54: 2932 | L54: 2865 | M54: 3.13632
A55: 45 | B55: BAJAJCON | C55: 240.4 | D55: 241.43 | E55: 238.07 | F55: 235.73 | G55: 232.37 | H55: 243.77 | I55: 247.13 | J55: 249.47 | K55: 244.8 | L55: 239.1 | M55: 0.65491
A56: 46 | B56: BAJAJELEC | C56: 379.1 | D56: 379.73 | E56: 372.67 | F56: 366.23 | G56: 359.17 | H56: 386.17 | I56: 393.23 | J56: 399.67 | K56: 386.8 | L56: 373.3 | M56: 1.10223
A57: 47 | B57: BAJFINANCE | C57: 3948.9 | D57: 3964.97 | E57: 3914.93 | F57: 3880.97 | G57: 3830.93 | H57: 3998.93 | I57: 4048.97 | J57: 4082.93 | K57: 4015 | L57: 3931 | M57: 11.02788
A58: 48 | B58: BAJAJFINSV | C58: 8201.85 | D58: 8240.62 | E58: 8136.23 | F58: 8070.62 | G58: 7966.23 | H58: 8306.23 | I58: 8410.62 | J58: 8476.23 | K58: 8345 | L58: 8175 | M58: 2.00005
A59: 49 | B59: BAJAJHLDNG | C59: 3587.85 | D59: 3596.95 | E59: 3570.90 | F59: 3553.95 | G59: 3527.90 | H59: 3613.90 | I59: 3639.95 | J59: 3656.90 | K59: 3623 | L59: 3580 | M59: 0.07662
A60: 50 | B60: BALKRISIND | C60: 745.6 | D60: 740.78 | E60: 731.67 | F60: 717.73 | G60: 708.62 | H60: 754.72 | I60: 763.83 | J60: 777.77 | K60: 749.9 | L60: 726.85 | M60: 3.43383
A61: 51 | B61: BALMLAWRIE | C61: 165.6 | D61: 165.98 | E61: 164.87 | F61: 164.13 | G61: 163.02 | H61: 166.72 | I61: 167.83 | J61: 168.57 | K61: 167.1 | L61: 165.25 | M61: 0.26279
A62: 52 | B62: BALRAMCHIN | C62: 151.8 | D62: 152.58 | E62: 149.62 | F62: 147.43 | G62: 144.47 | H62: 154.77 | I62: 157.73 | J62: 159.92 | K62: 155.55 | L62: 150.4 | M62: 6.20796
A63: 53 | B63: BANDHANBNK | C63: 506.65 | D63: 498.22 | E63: 485.43 | F63: 464.22 | G63: 451.43 | H63: 519.43 | I63: 532.22 | J63: 553.43 | K63: 511 | L63: 477 | M63: 21.86326
A64: 54 | B64: BANKBARODA | C64: 87.8 | D64: 88.32 | E64: 86.73 | F64: 85.67 | G64: 84.08 | H64: 89.38 | I64: 90.97 | J64: 92.03 | K64: 89.9 | L64: 87.25 | M64: 235.58861
A65: 55 | B65: BANKINDIA | C65: 59.9 | D65: 60.13 | E65: 59.02 | F65: 58.13 | G65: 57.02 | H65: 61.02 | I65: 62.13 | J65: 63.02 | K65: 61.25 | L65: 59.25 | M65: 70.31788
A66: 56 | B66: MAHABANK | C66: 10.35 | D66: 10.50 | E66: 10.20 | F66: 10.05 | G66: 9.75 | H66: 10.65 | I66: 10.95 | J66: 11.10 | K66: 10.8 | L66: 10.35 | M66: 7.07205
A67: 57 | B67: BATAINDIA | C67: 1701.65 | D67: 1713.55 | E67: 1679.10 | F67: 1656.55 | G67: 1622.10 | H67: 1736.10 | I67: 1770.55 | J67: 1793.10 | K67: 1748 | L67: 1691 | M67: 8.95098
A68: 58 | B68: BAYERCROP | C68: 3278.95 | D68: 3291.58 | E68: 3227.37 | F68: 3175.78 | G68: 3111.57 | H68: 3343.17 | I68: 3407.38 | J68: 3458.97 | K68: 3355.8 | L68: 3240 | M68: 0.03593
A69: 59 | B69: BERGEPAINT | C69: 469.35 | D69: 464.28 | E69: 452.12 | F69: 434.88 | G69: 422.72 | H69: 481.52 | I69: 493.68 | J69: 510.92 | K69: 476.45 | L69: 447.05 | M69: 41.18801
A70: 60 | B70: BDL | C70: 283.15 | D70: 283.92 | E70: 281.23 | F70: 279.32 | G70: 276.63 | H70: 285.83 | I70: 288.52 | J70: 290.43 | K70: 286.6 | L70: 282 | M70: 0.15887
A71: 61 | B71: BEL | C71: 105.65 | D71: 105.33 | E71: 104.22 | F71: 102.78 | G71: 101.67 | H71: 106.77 | I71: 107.88 | J71: 109.32 | K71: 106.45 | L71: 103.9 | M71: 45.72778
A72: 62 | B72: BHARATFORG | C72: 423.9 | D72: 426.43 | E72: 419.57 | F72: 415.23 | G72: 408.37 | H72: 430.77 | I72: 437.63 | J72: 441.97 | K72: 433.3 | L72: 422.1 | M72: 6.24592
A73: 63 | B73: BHEL | C73: 43.05 | D73: 43.52 | E73: 42.33 | F73: 41.62 | G73: 40.43 | H73: 44.23 | I73: 45.42 | J73: 46.13 | K73: 44.7 | L73: 42.8 | M73: 198.19884
A74: 64 | B74: BPCL | C74: 489.9 | D74: 489.33 | E74: 484.67 | F74: 479.43 | G74: 474.77 | H74: 494.57 | I74: 499.23 | J74: 504.47 | K74: 494 | L74: 484.1 | M74: 46.2954
A75: 65 | B75: BHARTIARTL | C75: 377.25 | D75: 374.75 | E75: 364.50 | F75: 351.75 | G75: 341.50 | H75: 387.50 | I75: 397.75 | J75: 410.50 | K75: 385 | L75: 362 | M75: 476.60614
A76: 66 | B76: INFRATEL | C76: 256.9 | D76: 258.02 | E76: 250.43 | F76: 243.97 | G76: 236.38 | H76: 264.48 | I76: 272.07 | J76: 278.53 | K76: 265.6 | L76: 251.55 | M76: 39.32579
A77: 67 | B77: BIOCON | C77: 240.15 | D77: 238.78 | E77: 234.37 | F77: 228.58 | G77: 224.17 | H77: 244.57 | I77: 248.98 | J77: 254.77 | K77: 243.2 | L77: 233 | M77: 52.93267
A78: 68 | B78: BIRLACORPN | C78: 516.35 | D78: 519.80 | E78: 506.60 | F78: 496.85 | G78: 483.65 | H78: 529.55 | I78: 542.75 | J78: 552.50 | K78: 533 | L78: 510.05 | M78: 0.34678
A79: 69 | B79: BSOFT | C79: 59.85 | D79: 59.87 | E79: 58.68 | F79: 57.52 | G79: 56.33 | H79: 61.03 | I79: 62.22 | J79: 63.38 | K79: 61.05 | L79: 58.7 | M79: 4.18597
A80: 70 | B80: BLISSGVS | C80: 103.7 | D80: 103.42 | E80: 101.98 | F80: 100.27 | G80: 98.83 | H80: 105.13 | I80: 106.57 | J80: 108.28 | K80: 104.85 | L80: 101.7 | M80: 0.76383
A81: 71 | B81: BLUEDART | C81: 2296.1 | D81: 2295.37 | E81: 2270.73 | F81: 2245.37 | G81: 2220.73 | H81: 2320.73 | I81: 2345.37 | J81: 2370.73 | K81: 2320 | L81: 2270 | M81: 0.06022
A82: 72 | B82: BLUESTARCO | C82: 814.65 | D82: 815.27 | E82: 808.53 | F82: 802.42 | G82: 795.68 | H82: 821.38 | I82: 828.12 | J82: 834.23 | K82: 822 | L82: 809.15 | M82: 0.29163
A83: 73 | B83: BBTC | C83: 1069 | D83: 1074.67 | E83: 1050.33 | F83: 1031.67 | G83: 1007.33 | H83: 1093.33 | I83: 1117.67 | J83: 1136.33 | K83: 1099 | L83: 1056 | M83: 0.6405
A84: 74 | B84: BOMDYEING | C84: 68.75 | D84: 69.17 | E84: 67.58 | F84: 66.42 | G84: 64.83 | H84: 70.33 | I84: 71.92 | J84: 73.08 | K84: 70.75 | L84: 68 | M84: 9.11533
A85: 75 | B85: BOSCHLTD | C85: 13326.75 | D85: 13308.28 | E85: 13218.57 | F85: 13110.38 | G85: 13020.67 | H85: 13416.47 | I85: 13506.18 | J85: 13614.37 | K85: 13398 | L85: 13200.1 | M85: 0.12487
A86: 76 | B86: BRIGADE | C86: 196.35 | D86: 197.43 | E86: 193.97 | F86: 191.58 | G86: 188.12 | H86: 199.82 | I86: 203.28 | J86: 205.67 | K86: 200.9 | L86: 195.05 | M86: 0.38111
A87: 77 | B87: BRITANNIA | C87: 3037.75 | D87: 3033.25 | E87: 3005.50 | F87: 2973.25 | G87: 2945.50 | H87: 3065.50 | I87: 3093.25 | J87: 3125.50 | K87: 3061 | L87: 3001 | M87: 4.22209
A88: 78 | B88: CARERATING | C88: 514.8 | D88: 515.18 | E88: 504.87 | F88: 494.93 | G88: 484.62 | H88: 525.12 | I88: 535.43 | J88: 545.37 | K88: 525.5 | L88: 505.25 | M88: 0.16468
A89: 79 | B89: CCL | C89: 239.6 | D89: 236.95 | E89: 227.65 | F89: 215.70 | G89: 206.40 | H89: 248.90 | I89: 258.20 | J89: 270.15 | K89: 246.25 | L89: 225 | M89: 0.50172
A90: 80 | B90: CESC | C90: 756.1 | D90: 754.05 | E90: 746.25 | F90: 736.40 | G90: 728.60 | H90: 763.90 | I90: 771.70 | J90: 781.55 | K90: 761.85 | L90: 744.2 | M90: 4.42587
A91: 81 | B91: CGPOWER | C91: 13.85 | D91: 14.02 | E91: 13.38 | F91: 12.92 | G91: 12.28 | H91: 14.48 | I91: 15.12 | J91: 15.58 | K91: 14.65 | L91: 13.55 | M91: 5.40302
A92: 82 | B92: CRISIL | C92: 1289.45 | D92: 1286.95 | E92: 1278.90 | F92: 1268.35 | G92: 1260.30 | H92: 1297.50 | I92: 1305.55 | J92: 1316.10 | K92: 1295 | L92: 1276.4 | M92: 0.06357
A93: 83 | B93: CADILAHC | C93: 232.2 | D93: 233.47 | E93: 230.23 | F93: 228.27 | G93: 225.03 | H93: 235.43 | I93: 238.67 | J93: 240.63 | K93: 236.7 | L93: 231.5 | M93: 4.58031
A94: 84 | B94: CANFINHOME | C94: 389.25 | D94: 392.05 | E94: 383.20 | F94: 377.15 | G94: 368.30 | H94: 398.10 | I94: 406.95 | J94: 413.00 | K94: 400.9 | L94: 386 | M94: 1.98015
A95: 85 | B95: CANBK | C95: 178.1 | D95: 179.48 | E95: 175.27 | F95: 172.43 | G95: 168.22 | H95: 182.32 | I95: 186.53 | J95: 189.37 | K95: 183.7 | L95: 176.65 | M95: 64.30752
A96: 86 | B96: CAPLIPOINT | C96: 404.9 | D96: 401.83 | E96: 395.67 | F96: 386.43 | G96: 380.27 | H96: 411.07 | I96: 417.23 | J96: 426.47 | K96: 408 | L96: 392.6 | M96: 0.18675
A97: 87 | B97: CGCL | C97: 206.35 | D97: 206.52 | E97: 203.13 | F97: 199.92 | G97: 196.53 | H97: 209.73 | I97: 213.12 | J97: 216.33 | K97: 209.9 | L97: 203.3 | M97: 3.8674
A98: 88 | B98: CARBORUNIV | C98: 286.7 | D98: 288.28 | E98: 283.42 | F98: 280.13 | G98: 275.27 | H98: 291.57 | I98: 296.43 | J98: 299.72 | K98: 293.15 | L98: 285 | M98: 12.19932
A99: 89 | B99: CASTROLIND | C99: 132.05 | D99: 132.72 | E99: 130.93 | F99: 129.82 | G99: 128.03 | H99: 133.83 | I99: 135.62 | J99: 136.73 | K99: 134.5 | L99: 131.6 | M99: 9.13094
A100: 90 | B100: CEATLTD | C100: 922.5 | D100: 925.80 | E100: 911.70 | F100: 900.90 | G100: 886.80 | H100: 936.60 | I100: 950.70 | J100: 961.50 | K100: 939.9 | L100: 915 | M100: 0.7103
A101: 91 | B101: CENTRALBK | C101: 17.05 | D101: 17.07 | E101: 16.88 | F101: 16.72 | G101: 16.53 | H101: 17.23 | I101: 17.42 | J101: 17.58 | K101: 17.25 | L101: 16.9 | M101: 2.55615
A102: 92 | B102: CDSL | C102: 204.8 | D102: 204.47 | E102: 202.43 | F102: 200.07 | G102: 198.03 | H102: 206.83 | I102: 208.87 | J102: 211.23 | K102: 206.5 | L102: 202.1 | M102: 1.03882
A103: 93 | B103: CENTURYPLY | C103: 161.6 | D103: 162.55 | E103: 159.70 | F103: 157.80 | G103: 154.95 | H103: 164.45 | I103: 167.30 | J103: 169.20 | K103: 165.4 | L103: 160.65 | M103: 0.9279
A104: 94 | B104: CERA | C104: 2470.55 | D104: 2486.82 | E104: 2443.73 | F104: 2416.92 | G104: 2373.83 | H104: 2513.63 | I104: 2556.72 | J104: 2583.53 | K104: 2529.9 | L104: 2460 | M104: 0.3784
A105: 95 | B105: CHALET | C105: 318.5 | D105: 317.82 | E105: 315.88 | F105: 313.27 | G105: 311.33 | H105: 320.43 | I105: 322.37 | J105: 324.98 | K105: 319.75 | L105: 315.2 | M105: 2.33476
A106: 96 | B106: CHAMBLFERT | C106: 147.55 | D106: 147.60 | E106: 146.45 | F106: 145.35 | G106: 144.20 | H106: 148.70 | I106: 149.85 | J106: 150.95 | K106: 148.75 | L106: 146.5 | M106: 0.66687
A107: 97 | B107: CHENNPETRO | C107: 161.65 | D107: 162.52 | E107: 159.28 | F107: 156.92 | G107: 153.68 | H107: 164.88 | I107: 168.12 | J107: 170.48 | K107: 165.75 | L107: 160.15 | M107: 2.48421
A108: 98 | B108: CHOLAHLDNG | C108: 475.05 | D108: 473.12 | E108: 468.23 | F108: 461.42 | G108: 456.53 | H108: 479.93 | I108: 484.82 | J108: 491.63 | K108: 478 | L108: 466.3 | M108: 0.25481
A109: 99 | B109: CHOLAFIN | C109: 283.3 | D109: 287.05 | E109: 278.90 | F109: 274.50 | G109: 266.35 | H109: 291.45 | I109: 299.60 | J109: 304.00 | K109: 295.2 | L109: 282.65 | M109: 8.2382
A110: 100 | B110: CIPLA | C110: 422.15 | D110: 422.67 | E110: 418.03 | F110: 413.92 | G110: 409.28 | H110: 426.78 | I110: 431.42 | J110: 435.53 | K110: 427.3 | L110: 418.55 | M110: 23.81621
A111: 101 | B111: CUB | C111: 220.5 | D111: 219.90 | E111: 217.30 | F111: 214.10 | G111: 211.50 | H111: 223.10 | I111: 225.70 | J111: 228.90 | K111: 222.5 | L111: 216.7 | M111: 3.86725
A112: 102 | B112: COALINDIA | C112: 184.55 | D112: 184.72 | E112: 183.53 | F112: 182.52 | G112: 181.33 | H112: 185.73 | I112: 186.92 | J112: 187.93 | K112: 185.9 | L112: 183.7 | M112: 40.47661
A113: 103 | B113: COCHINSHIP | C113: 336.6 | D113: 336.25 | E113: 330.50 | F113: 324.40 | G113: 318.65 | H113: 342.35 | I113: 348.10 | J113: 354.20 | K113: 342 | L113: 330.15 | M113: 5.80081
A114: 104 | B114: COFFEEDAY | C114: 41.9 | D114: 42.95 | E114: 40.50 | F114: 39.10 | G114: 36.65 | H114: 44.35 | I114: 46.80 | J114: 48.20 | K114: 45.4 | L114: 41.55 | M114: 8.37887
A115: 105 | B115: COLPAL | C115: 1496.2 | D115: 1494.47 | E115: 1485.28 | F115: 1474.37 | G115: 1465.18 | H115: 1505.38 | I115: 1514.57 | J115: 1525.48 | K115: 1503.65 | L115: 1483.55 | M115: 2.42765
A116: 106 | B116: CONCOR | C116: 566.5 | D116: 566.33 | E116: 561.32 | F116: 556.13 | G116: 551.12 | H116: 571.52 | I116: 576.53 | J116: 581.72 | K116: 571.35 | L116: 561.15 | M116: 8.11503
A117: 107 | B117: COROMANDEL | C117: 403.45 | D117: 403.70 | E117: 399.70 | F117: 395.95 | G117: 391.95 | H117: 407.45 | I117: 411.45 | J117: 415.20 | K117: 407.7 | L117: 399.95 | M117: 0.32295
A118: 108 | B118: CORPBANK | C118: 14.2 | D118: 14.23 | E118: 14.02 | F118: 13.83 | G118: 13.62 | H118: 14.42 | I118: 14.63 | J118: 14.82 | K118: 14.45 | L118: 14.05 | M118: 1.09031
A119: 109 | B119: COX&KINGS | C119: 2.9 | D119: 2.90 | E119: 2.90 | F119: 2.90 | G119: 2.90 | H119: 2.90 | I119: 2.90 | J119: 2.90 | K119: 2.9 | L119: 2.9 | M119: 1.48251
A120: 110 | B120: CREDITACC | C120: 637.75 | D120: 648.33 | E120: 624.67 | F120: 611.58 | G120: 587.92 | H120: 661.42 | I120: 685.08 | J120: 698.17 | K120: 672 | L120: 635.25 | M120: 0.51908
A121: 111 | B121: CROMPTON | C121: 257.6 | D121: 257.93 | E121: 255.82 | F121: 254.03 | G121: 251.92 | H121: 259.72 | I121: 261.83 | J121: 263.62 | K121: 260.05 | L121: 256.15 | M121: 4.93507
A122: 112 | B122: CUMMINSIND | C122: 564.75 | D122: 566.92 | E122: 559.83 | F122: 554.92 | G122: 547.83 | H122: 571.83 | I122: 578.92 | J122: 583.83 | K122: 574 | L122: 562 | M122: 3.32475
A123: 113 | B123: CYIENT | C123: 455.85 | D123: 456.60 | E123: 450.25 | F123: 444.65 | G123: 438.30 | H123: 462.20 | I123: 468.55 | J123: 474.15 | K123: 462.95 | L123: 451 | M123: 0.59083
A124: 114 | B124: DBCORP | C124: 142.9 | D124: 143.78 | E124: 138.42 | F124: 133.93 | G124: 128.57 | H124: 148.27 | I124: 153.63 | J124: 158.12 | K124: 149.15 | L124: 139.3 | M124: 3.86828
A125: 115 | B125: DCBBANK | C125: 181.9 | D125: 182.85 | E125: 179.15 | F125: 176.40 | G125: 172.70 | H125: 185.60 | I125: 189.30 | J125: 192.05 | K125: 186.55 | L125: 180.1 | M125: 4.0028
A126: 116 | B126: DCMSHRIRAM | C126: 381.35 | D126: 382.30 | E126: 374.20 | F126: 367.05 | G126: 358.95 | H126: 389.45 | I126: 397.55 | J126: 404.70 | K126: 390.4 | L126: 375.15 | M126: 0.52031
A127: 117 | B127: DLF | C127: 142.45 | D127: 142.95 | E127: 139.00 | F127: 135.55 | G127: 131.60 | H127: 146.40 | I127: 150.35 | J127: 153.80 | K127: 146.9 | L127: 139.5 | M127: 123.93751
A128: 118 | B128: DABUR | C128: 439.4 | D128: 439.77 | E128: 436.08 | F128: 432.77 | G128: 429.08 | H128: 443.08 | I128: 446.77 | J128: 450.08 | K128: 443.45 | L128: 436.45 | M128: 5.71364
A129: 119 | B129: DALBHARAT | C129: 781.85 | D129: 784.15 | E129: 773.60 | F129: 765.35 | G129: 754.80 | H129: 792.40 | I129: 802.95 | J129: 811.20 | K129: 794.7 | L129: 775.9 | M129: 0.35898
A130: 120 | B130: DEEPAKNTR | C130: 303.4 | D130: 299.80 | E130: 294.75 | F130: 286.10 | G130: 281.05 | H130: 308.45 | I130: 313.50 | J130: 322.15 | K130: 304.85 | L130: 291.15 | M130: 2.20522
A131: 121 | B131: DELTACORP | C131: 172.65 | D131: 170.47 | E131: 166.53 | F131: 160.42 | G131: 156.48 | H131: 176.58 | I131: 180.52 | J131: 186.63 | K131: 174.4 | L131: 164.35 | M131: 12.10931
A132: 122 | B132: DEN | C132: 49 | D132: 49.48 | E132: 47.52 | F132: 46.03 | G132: 44.07 | H132: 50.97 | I132: 52.93 | J132: 54.42 | K132: 51.45 | L132: 48 | M132: 0.22614
A133: 123 | B133: DHFL | C133: 23.5 | D133: 24.17 | E133: 22.83 | F133: 22.17 | G133: 20.83 | H133: 24.83 | I133: 26.17 | J133: 26.83 | K133: 25.5 | L133: 23.5 | M133: 59.68941
A134: 124 | B134: DBL | C134: 375.85 | D134: 377.30 | E134: 370.60 | F134: 365.35 | G134: 358.65 | H134: 382.55 | I134: 389.25 | J134: 394.50 | K134: 384 | L134: 372.05 | M134: 1.5087
A135: 125 | B135: DISHTV | C135: 17.2 | D135: 17.47 | E135: 16.73 | F135: 16.27 | G135: 15.53 | H135: 17.93 | I135: 18.67 | J135: 19.13 | K135: 18.2 | L135: 17 | M135: 270.48614
A136: 126 | B136: DCAL | C136: 156.05 | D136: 156.65 | E136: 153.40 | F136: 150.75 | G136: 147.50 | H136: 159.30 | I136: 162.55 | J136: 165.20 | K136: 159.9 | L136: 154 | M136: 0.6216
A137: 127 | B137: DIVISLAB | C137: 1667.15 | D137: 1662.72 | E137: 1645.43 | F137: 1623.72 | G137: 1606.43 | H137: 1684.43 | I137: 1701.72 | J137: 1723.43 | K137: 1680 | L137: 1641 | M137: 5.66891
A138: 128 | B138: DIXON | C138: 2991.9 | D138: 3061.97 | E138: 2891.93 | F138: 2791.97 | G138: 2621.93 | H138: 3161.93 | I138: 3331.97 | J138: 3431.93 | K138: 3232 | L138: 2962 | M138: 0.53168
A139: 129 | B139: LALPATHLAB | C139: 1367.4 | D139: 1375.47 | E139: 1327.93 | F139: 1288.47 | G139: 1240.93 | H139: 1414.93 | I139: 1462.47 | J139: 1501.93 | K139: 1423 | L139: 1336 | M139: 1.33359
A140: 130 | B140: DRREDDY | C140: 2633.5 | D140: 2637.48 | E140: 2608.07 | F140: 2582.63 | G140: 2553.22 | H140: 2662.92 | I140: 2692.33 | J140: 2717.77 | K140: 2666.9 | L140: 2612.05 | M140: 2.88141
A141: 131 | B141: EIDPARRY | C141: 153.6 | D141: 154.48 | E141: 151.97 | F141: 150.33 | G141: 147.82 | H141: 156.12 | I141: 158.63 | J141: 160.27 | K141: 157 | L141: 152.85 | M141: 0.30111
A142: 132 | B142: EIHOTEL | C142: 171.95 | D142: 170.85 | E142: 167.10 | F142: 162.25 | G142: 158.50 | H142: 175.70 | I142: 179.45 | J142: 184.30 | K142: 174.6 | L142: 166 | M142: 0.8346
A143: 133 | B143: EDELWEISS | C143: 72.35 | D143: 72.87 | E143: 70.13 | F143: 67.92 | G143: 65.18 | H143: 75.08 | I143: 77.82 | J143: 80.03 | K143: 75.6 | L143: 70.65 | M143: 70.05978
A144: 134 | B144: EICHERMOT | C144: 18052.5 | D144: 18033.08 | E144: 17871.17 | F144: 17689.83 | G144: 17527.92 | H144: 18214.42 | I144: 18376.33 | J144: 18557.67 | K144: 18195 | L144: 17851.75 | M144: 0.82354
A145: 135 | B145: ELGIEQUIP | C145: 279.05 | D145: 277.90 | E145: 275.80 | F145: 272.55 | G145: 270.45 | H145: 281.15 | I145: 283.25 | J145: 286.50 | K145: 280 | L145: 274.65 | M145: 0.05051
A146: 136 | B146: EMAMILTD | C146: 300.15 | D146: 298.80 | E146: 296.45 | F146: 292.75 | G146: 290.40 | H146: 302.50 | I146: 304.85 | J146: 308.55 | K146: 301.15 | L146: 295.1 | M146: 3.81481
A147: 137 | B147: ENDURANCE | C147: 965.75 | D147: 968.73 | E147: 953.02 | F147: 940.28 | G147: 924.57 | H147: 981.47 | I147: 997.18 | J147: 1009.92 | K147: 984.45 | L147: 956 | M147: 0.09602
A148: 138 | B148: ENGINERSIN | C148: 111 | D148: 110.57 | E148: 109.63 | F148: 108.27 | G148: 107.33 | H148: 111.93 | I148: 112.87 | J148: 114.23 | K148: 111.5 | L148: 109.2 | M148: 14.81244
A149: 139 | B149: EQUITAS | C149: 97.2 | D149: 98.60 | E149: 93.75 | F149: 90.30 | G149: 85.45 | H149: 102.05 | I149: 106.90 | J149: 110.35 | K149: 103.45 | L149: 95.15 | M149: 30.72995
A150: 140 | B150: ERIS | C150: 422.2 | D150: 421.23 | E150: 418.97 | F150: 415.73 | G150: 413.47 | H150: 424.47 | I150: 426.73 | J150: 429.97 | K150: 423.5 | L150: 418 | M150: 0.04034
A151: 141 | B151: ESCORTS | C151: 603.65 | D151: 605.50 | E151: 595.30 | F151: 586.95 | G151: 576.75 | H151: 613.85 | I151: 624.05 | J151: 632.40 | K151: 615.7 | L151: 597.15 | M151: 29.62369
A152: 142 | B152: ESSELPACK | C152: 118.75 | D152: 118.08 | E152: 115.17 | F152: 111.58 | G152: 108.67 | H152: 121.67 | I152: 124.58 | J152: 128.17 | K152: 121 | L152: 114.5 | M152: 0.35646
A153: 143 | B153: EXIDEIND | C153: 184.05 | D153: 185.53 | E153: 180.57 | F153: 177.08 | G153: 172.12 | H153: 189.02 | I153: 193.98 | J153: 197.47 | K153: 190.5 | L153: 182.05 | M153: 13.73162
A154: 144 | B154: FDC | C154: 162.95 | D154: 164.97 | E154: 159.98 | F154: 157.02 | G154: 152.03 | H154: 167.93 | I154: 172.92 | J154: 175.88 | K154: 169.95 | L154: 162 | M154: 0.13135
A155: 145 | B155: FEDERALBNK | C155: 84.3 | D155: 84.50 | E155: 83.20 | F155: 82.10 | G155: 80.80 | H155: 85.60 | I155: 86.90 | J155: 88.00 | K155: 85.8 | L155: 83.4 | M155: 62.18988
A156: 146 | B156: FMGOETZE | C156: 537.7 | D156: 534.25 | E156: 528.50 | F156: 519.30 | G156: 513.55 | H156: 543.45 | I156: 549.20 | J156: 558.40 | K156: 540 | L156: 525.05 | M156: 0.06266
A157: 147 | B157: FINEORG | C157: 1685.75 | D157: 1699.60 | E157: 1667.20 | F157: 1648.65 | G157: 1616.25 | H157: 1718.15 | I157: 1750.55 | J157: 1769.10 | K157: 1732 | L157: 1681.05 | M157: 0.04584
A158: 148 | B158: FINCABLES | C158: 358.15 | D158: 359.53 | E158: 355.57 | F158: 352.98 | G158: 349.02 | H158: 362.12 | I158: 366.08 | J158: 368.67 | K158: 363.5 | L158: 356.95 | M158: 0.60681
A159: 149 | B159: FINPIPE | C159: 582.95 | D159: 582.93 | E159: 578.02 | F159: 573.08 | G159: 568.17 | H159: 587.87 | I159: 592.78 | J159: 597.72 | K159: 587.85 | L159: 578 | M159: 0.15561
A160: 150 | B160: FSL | C160: 46.7 | D160: 46.68 | E160: 46.17 | F160: 45.63 | G160: 45.12 | H160: 47.22 | I160: 47.73 | J160: 48.27 | K160: 47.2 | L160: 46.15 | M160: 9.42436
A161: 151 | B161: FORTIS | C161: 140.85 | D161: 140.63 | E161: 139.77 | F161: 138.68 | G161: 137.82 | H161: 141.72 | I161: 142.58 | J161: 143.67 | K161: 141.5 | L161: 139.55 | M161: 5.64954
A162: 152 | B162: FCONSUMER | C162: 23.9 | D162: 23.65 | E162: 23.00 | F162: 22.10 | G162: 21.45 | H162: 24.55 | I162: 25.20 | J162: 26.10 | K162: 24.3 | L162: 22.75 | M162: 9.94628
A163: 153 | B163: FLFL | C163: 419.65 | D163: 415.07 | E163: 408.13 | F163: 396.62 | G163: 389.68 | H163: 426.58 | I163: 433.52 | J163: 445.03 | K163: 422 | L163: 403.55 | M163: 0.31026
A164: 154 | B164: FRETAIL | C164: 381.55 | D164: 375.33 | E164: 366.72 | F164: 351.88 | G164: 343.27 | H164: 390.17 | I164: 398.78 | J164: 413.62 | K164: 383.95 | L164: 360.5 | M164: 3.99194
A165: 155 | B165: GAIL | C165: 127.35 | D165: 128.62 | E165: 125.13 | F165: 122.92 | G165: 119.43 | H165: 130.83 | I165: 134.32 | J165: 136.53 | K165: 132.1 | L165: 126.4 | M165: 120.77572
A166: 156 | B166: GEPIL | C166: 717.4 | D166: 724.27 | E166: 705.38 | F166: 693.37 | G166: 674.48 | H166: 736.28 | I166: 755.17 | J166: 767.18 | K166: 743.15 | L166: 712.25 | M166: 0.10772
A167: 157 | B167: GET&D | C167: 172.25 | D167: 172.03 | E167: 170.12 | F167: 167.98 | G167: 166.07 | H167: 174.17 | I167: 176.08 | J167: 178.22 | K167: 173.95 | L167: 169.9 | M167: 0.15913
A168: 158 | B168: GHCL | C168: 207.3 | D168: 208.48 | E168: 205.02 | F168: 202.73 | G168: 199.27 | H168: 210.77 | I168: 214.23 | J168: 216.52 | K168: 211.95 | L168: 206.2 | M168: 0.23217
A169: 159 | B169: GMRINFRA | C169: 17.2 | D169: 17.32 | E169: 16.98 | F169: 16.77 | G169: 16.43 | H169: 17.53 | I169: 17.87 | J169: 18.08 | K169: 17.65 | L169: 17.1 | M169: 93.17041
A170: 160 | B170: GALAXYSURF | C170: 1482.5 | D170: 1479.48 | E170: 1464.02 | F170: 1445.53 | G170: 1430.07 | H170: 1497.97 | I170: 1513.43 | J170: 1531.92 | K170: 1494.95 | L170: 1461 | M170: 0.06826
A171: 161 | B171: GARFIBRES | C171: 1189.7 | D171: 1187.90 | E171: 1166.80 | F171: 1143.90 | G171: 1122.80 | H171: 1210.80 | I171: 1231.90 | J171: 1254.80 | K171: 1209 | L171: 1165 | M171: 0.10025
A172: 162 | B172: GAYAPROJ | C172: 106.05 | D172: 105.97 | E172: 104.18 | F172: 102.32 | G172: 100.53 | H172: 107.83 | I172: 109.62 | J172: 111.48 | K172: 107.75 | L172: 104.1 | M172: 0.36207
A173: 163 | B173: GICRE | C173: 210.2 | D173: 210.30 | E173: 206.70 | F173: 203.20 | G173: 199.60 | H173: 213.80 | I173: 217.40 | J173: 220.90 | K173: 213.9 | L173: 206.8 | M173: 0.3882
A174: 164 | B174: GILLETTE | C174: 7056.1 | D174: 7046.42 | E174: 7011.88 | F174: 6967.67 | G174: 6933.13 | H174: 7090.63 | I174: 7125.17 | J174: 7169.38 | K174: 7080.95 | L174: 7002.2 | M174: 0.01405
A175: 165 | B175: GLAXO | C175: 1370.85 | D175: 1371.62 | E175: 1354.23 | F175: 1337.62 | G175: 1320.23 | H175: 1388.23 | I175: 1405.62 | J175: 1422.23 | K175: 1389 | L175: 1355 | M175: 0.3581
A176: 166 | B176: GLENMARK | C176: 289.75 | D176: 292.33 | E176: 285.72 | F176: 281.68 | G176: 275.07 | H176: 296.37 | I176: 302.98 | J176: 307.02 | K176: 298.95 | L176: 288.3 | M176: 16.76721
A177: 167 | B177: GODFRYPHLP | C177: 975.05 | D177: 969.17 | E177: 948.93 | F177: 922.82 | G177: 902.58 | H177: 995.28 | I177: 1015.52 | J177: 1041.63 | K177: 989.4 | L177: 943.05 | M177: 0.64679
A178: 168 | B178: GODREJAGRO | C178: 472.2 | D178: 473.93 | E178: 467.42 | F178: 462.63 | G178: 456.12 | H178: 478.72 | I178: 485.23 | J178: 490.02 | K178: 480.45 | L178: 469.15 | M178: 0.17559
A179: 169 | B179: GODREJCP | C179: 680.1 | D179: 678.12 | E179: 673.63 | F179: 667.17 | G179: 662.68 | H179: 684.58 | I179: 689.07 | J179: 695.53 | K179: 682.6 | L179: 671.65 | M179: 5.00575
A180: 170 | B180: GODREJIND | C180: 379.9 | D180: 381.30 | E180: 374.60 | F180: 369.30 | G180: 362.60 | H180: 386.60 | I180: 393.30 | J180: 398.60 | K180: 388 | L180: 376 | M180: 1.33508
A181: 171 | B181: GODREJPROP | C181: 978.55 | D181: 983.13 | E181: 967.42 | F181: 956.28 | G181: 940.57 | H181: 994.27 | I181: 1009.98 | J181: 1021.12 | K181: 998.85 | L181: 972 | M181: 0.95037
A182: 172 | B182: GRANULES | C182: 102.75 | D182: 101.60 | E182: 100.20 | F182: 97.65 | G182: 96.25 | H182: 104.15 | I182: 105.55 | J182: 108.10 | K182: 103 | L182: 99.05 | M182: 2.94009
A183: 173 | B183: GRAPHITE | C183: 271.3 | D183: 274.37 | E183: 264.93 | F183: 258.57 | G183: 249.13 | H183: 280.73 | I183: 290.17 | J183: 296.53 | K183: 283.8 | L183: 268 | M183: 15.53005
A184: 174 | B184: GRASIM | C184: 696.6 | D184: 701.15 | E184: 675.45 | F184: 654.30 | G184: 628.60 | H184: 722.30 | I184: 748.00 | J184: 769.15 | K184: 726.85 | L184: 680 | M184: 75.89225
A185: 175 | B185: GESHIP | C185: 293.95 | D185: 291.67 | E185: 285.33 | F185: 276.72 | G185: 270.38 | H185: 300.28 | I185: 306.62 | J185: 315.23 | K185: 298 | L185: 283.05 | M185: 0.45766
A186: 176 | B186: GREAVESCOT | C186: 136.9 | D186: 137.42 | E186: 135.93 | F186: 134.97 | G186: 133.48 | H186: 138.38 | I186: 139.87 | J186: 140.83 | K186: 138.9 | L186: 136.45 | M186: 0.93293
A187: 177 | B187: GRINDWELL | C187: 599 | D187: 596.93 | E187: 593.87 | F187: 588.73 | G187: 585.67 | H187: 602.07 | I187: 605.13 | J187: 610.27 | K187: 600 | L187: 591.8 | M187: 0.02114
A188: 178 | B188: GUJALKALI | C188: 421.75 | D188: 413.38 | E188: 403.37 | F188: 384.98 | G188: 374.97 | H188: 431.77 | I188: 441.78 | J188: 460.17 | K188: 423.4 | L188: 395 | M188: 0.46739
A189: 179 | B189: GUJGASLTD | C189: 169.85 | D189: 171.75 | E189: 166.60 | F189: 163.35 | G189: 158.20 | H189: 175.00 | I189: 180.15 | J189: 183.40 | K189: 176.9 | L189: 168.5 | M189: 16.54578
A190: 180 | B190: GMDCLTD | C190: 57.75 | D190: 57.78 | E190: 57.37 | F190: 56.98 | G190: 56.57 | H190: 58.17 | I190: 58.58 | J190: 58.97 | K190: 58.2 | L190: 57.4 | M190: 0.85711
A191: 181 | B191: GNFC | C191: 201.2 | D191: 201.12 | E191: 196.78 | F191: 192.37 | G191: 188.03 | H191: 205.53 | I191: 209.87 | J191: 214.28 | K191: 205.45 | L191: 196.7 | M191: 2.64249
A192: 182 | B192: GPPL | C192: 79.6 | D192: 80.07 | E192: 78.63 | F192: 77.67 | G192: 76.23 | H192: 81.03 | I192: 82.47 | J192: 83.43 | K192: 81.5 | L192: 79.1 | M192: 0.51992
A193: 183 | B193: GSFC | C193: 77 | D193: 76.28 | E193: 75.02 | F193: 73.03 | G193: 71.77 | H193: 78.27 | I193: 79.53 | J193: 81.52 | K193: 77.55 | L193: 74.3 | M193: 2.9348
A194: 184 | B194: GSPL | C194: 205.3 | D194: 206.08 | E194: 203.42 | F194: 201.53 | G194: 198.87 | H194: 207.97 | I194: 210.63 | J194: 212.52 | K194: 208.75 | L194: 204.2 | M194: 7.9822
A195: 185 | B195: GULFOILLUB | C195: 850.7 | D195: 852.25 | E195: 847.45 | F195: 844.20 | G195: 839.40 | H195: 855.50 | I195: 860.30 | J195: 863.55 | K195: 857.05 | L195: 849 | M195: 1.34401
A196: 186 | B196: HEG | C196: 913.8 | D196: 916.60 | E196: 889.20 | F196: 864.60 | G196: 837.20 | H196: 941.20 | I196: 968.60 | J196: 993.20 | K196: 944 | L196: 892 | M196: 4.27813
A197: 187 | B197: HCLTECH | C197: 1063.5 | D197: 1057.00 | E197: 1047.90 | F197: 1032.30 | G197: 1023.20 | H197: 1072.60 | I197: 1081.70 | J197: 1097.30 | K197: 1066.1 | L197: 1041.4 | M197: 13.53776
A198: 188 | B198: HDFCAMC | C198: 2723.55 | D198: 2731.48 | E198: 2702.07 | F198: 2680.58 | G198: 2651.17 | H198: 2752.97 | I198: 2782.38 | J198: 2803.87 | K198: 2760.9 | L198: 2710 | M198: 2.93179
A199: 189 | B199: HDFCBANK | C199: 1200.55 | D199: 1207.90 | E199: 1189.85 | F199: 1179.15 | G199: 1161.10 | H199: 1218.60 | I199: 1236.65 | J199: 1247.35 | K199: 1225.95 | L199: 1197.2 | M199: 57.78429
A200: 190 | B200: HDFCLIFE | C200: 583.8 | D200: 582.60 | E200: 576.20 | F200: 568.60 | G200: 562.20 | H200: 590.20 | I200: 596.60 | J200: 604.20 | K200: 589 | L200: 575 | M200: 15.56208
A201: 191 | B201: HATHWAY | C201: 19.85 | D201: 19.60 | E201: 19.15 | F201: 18.45 | G201: 18.00 | H201: 20.30 | I201: 20.75 | J201: 21.45 | K201: 20.05 | L201: 18.9 | M201: 2.70805
A202: 192 | B202: HATSUN | C202: 627.15 | D202: 627.83 | E202: 620.72 | F202: 614.28 | G202: 607.17 | H202: 634.27 | I202: 641.38 | J202: 647.82 | K202: 634.95 | L202: 621.4 | M202: 0.03301
A203: 193 | B203: HAVELLS | C203: 662.65 | D203: 661.50 | E203: 653.20 | F203: 643.75 | G203: 635.45 | H203: 670.95 | I203: 679.25 | J203: 688.70 | K203: 669.8 | L203: 652.05 | M203: 11.33005
A204: 194 | B204: HEIDELBERG | C204: 182.6 | D204: 183.88 | E204: 180.77 | F204: 178.93 | G204: 175.82 | H204: 185.72 | I204: 188.83 | J204: 190.67 | K204: 187 | L204: 182.05 | M204: 1.41727
A205: 195 | B205: HERITGFOOD | C205: 333.35 | D205: 338.47 | E205: 324.88 | F205: 316.42 | G205: 302.83 | H205: 346.93 | I205: 360.52 | J205: 368.98 | K205: 352.05 | L205: 330 | M205: 0.66869
A206: 196 | B206: HEROMOTOCO | C206: 2601.85 | D206: 2606.00 | E206: 2577.00 | F206: 2552.15 | G206: 2523.15 | H206: 2630.85 | I206: 2659.85 | J206: 2684.70 | K206: 2635 | L206: 2581.15 | M206: 6.54085
... 320 more rows

Sheet Bulk Deals
E6: Back To Main Page
A7: Subject : | B7: BULK DEAL | D7: =Main!B10 -> 2019-10-11
A9: Date | B9: Scrip code | C9: Scrip Name | D9: Client Name | E9: Buy / Sell | F9: Quantity Traded | G9: Trade Price / Wt.Avg.trade price | H9: Exchange
A10: 2019-10-10 | B10: 542721 | C10: ARL | D10: BHANSALI MAFATLAL KALIDAS(HUF) | E10: SELL | F10: 212,000 | G10: 33.50 | H10: BSE
A11: 2019-10-10 | B11: 542721 | C11: ARL | D11: SIMPLEX TRADING & AGENCIES LTD | E11: BUY | F11: 80,000 | G11: 33.50 | H11: BSE
A12: 2019-10-10 | B12: 542721 | C12: ARL | D12: SHAH ENTERPRISE | E12: BUY | F12: 120,000 | G12: 33.5 | H12: BSE
A13: 2019-10-10 | B13: 531179 | C13: ARMANFIN | D13: PARAM CAPITAL | E13: SELL | F13: 30,000 | G13: 540 | H13: BSE
A14: 2019-10-10 | B14: 590122 | C14: ASHIKACR | D14: DEEPAK KUMAR | E14: BUY | F14: 43,037 | G14: 39.78 | H14: BSE
A15: 2019-10-10 | B15: 590122 | C15: ASHIKACR | D15: KABIR SHRAN DAGAR (HUF) | E15: SELL | F15: 43,037 | G15: 37.8 | H15: BSE
A16: 2019-10-10 | B16: 537766 | C16: BCP | D16: SRINIDHI INFIN LIMITED | E16: BUY | F16: 715,005 | G16: 8.89 | H16: BSE
A17: 2019-10-10 | B17: 537766 | C17: BCP | D17: SRINIDHI INFIN LIMITED | E17: SELL | F17: 530,000 | G17: 8.89 | H17: BSE
A18: 2019-10-10 | B18: 537766 | C18: BCP | D18: SIDDHARTH CHIMANLAL SHAH | E18: BUY | F18: 580,000 | G18: 8.89 | H18: BSE
A19: 2019-10-10 | B19: 537766 | C19: BCP | D19: SIDDHARTH CHIMANLAL SHAH | E19: SELL | F19: 80,000 | G19: 8.89 | H19: BSE
A20: 2019-10-10 | B20: 537766 | C20: BCP | D20: BALAJI FINVEST ADVISORY PRIVATE LIMITED | E20: SELL | F20: 700,000 | G20: 8.89 | H20: BSE
A21: 2019-10-10 | B21: 539009 | C21: GBLIL | D21: DINESHKUMARRAJAKUMAR | E21: BUY | F21: 211 | G21: 2.12 | H21: BSE
A22: 2019-10-10 | B22: 539009 | C22: GBLIL | D22: DINESHKUMARRAJAKUMAR | E22: SELL | F22: 30,210 | G22: 2.19 | H22: BSE
A23: 2019-10-10 | B23: 532612 | C23: INDOCO | D23: DSP AIF PHARMA FUND | E23: SELL | F23: 1,276,434 | G23: 140 | H23: BSE
A24: 2019-10-10 | B24: 532612 | C24: INDOCO | D24: DSP MUTUAL FUND | E24: BUY | F24: 1,276,434 | G24: 140.00 | H24: BSE
A25: 2019-10-10 | B25: 538765 | C25: JSHL | D25: VINEET SINHA | E25: BUY | F25: 35,000 | G25: 10.03 | H25: BSE
A26: 2019-10-10 | B26: 538765 | C26: JSHL | D26: VINEET SINHA | E26: SELL | F26: 30,000 | G26: 10.35 | H26: BSE
A27: 2019-10-10 | B27: 530733 | C27: NOVAPUB | D27: SEKH GOLAMAHEMAD RAZA | E27: SELL | F27: 18,117 | G27: 12.1 | H27: BSE
A28: 2019-10-10 | B28: 530733 | C28: NOVAPUB | D28: DHANASHRI VISHWAS CHINTAWAR | E28: BUY | F28: 20,000 | G28: 12.06 | H28: BSE
A29: 2019-10-10 | B29: 542771 | C29: NOVATEOR | D29: ABHISHEK BHIKHABHAI PATEL | E29: BUY | F29: 48,000 | G29: 38 | H29: BSE
A30: 2019-10-10 | B30: 542771 | C30: NOVATEOR | D30: ABHISHEK BHIKHABHAI PATEL | E30: SELL | F30: 12,000 | G30: 36.13 | H30: BSE
A31: 2019-10-10 | B31: 541444 | C31: PALMJEWELS | D31: VISHWAMURTE TRAD INVEST PE LTD | E31: SELL | F31: 64,000 | G31: 13 | H31: BSE
A32: 2019-10-10 | B32: 540796 | C32: RATNABHUMI | D32: SAJANKUMAR RAMESHWARLAL BAJAJ | E32: SELL | F32: 80,000 | G32: 60.61 | H32: BSE
A33: 2019-10-10 | B33: 540796 | C33: RATNABHUMI | D33: SHAH MUKESHKUMAR BABULAL | E33: BUY | F33: 80,000 | G33: 60.61 | H33: BSE
A34: 2019-10-10 | B34: 511754 | C34: SAHLIBHFI | D34: VIJAYKUMAR CHHOTABHAI KALIDAS PATEL | E34: BUY | F34: 31,438 | G34: 66 | H34: BSE
A35: 2019-10-10 | B35: 539026 | C35: SSPNFIN | D35: DEVJEET CHAKRABORTY | E35: BUY | F35: 6,000 | G35: 69.2 | H35: BSE
A36: 2019-10-10 | B36: 539026 | C36: SSPNFIN | D36: DEVJEET CHAKRABORTY | E36: SELL | F36: 12,000 | G36: 63 | H36: BSE
A37: 2019-10-10 | B37: 539026 | C37: SSPNFIN | D37: RAJENDRA DIGAMBAR PATIL | E37: BUY | F37: 12,000 | G37: 63 | H37: BSE
A38: 2019-10-10 | B38: 539097 | C38: YOGYA | D38: VINOD NATUBHAI PATEL | E38: BUY | F38: 24,000 | G38: 35 | H38: BSE
A39: 2019-10-10 | B39: 539097 | C39: YOGYA | D39: SAKSHI VINOD PATEL | E39: SELL | F39: 24,000 | G39: 35 | H39: BSE
A40: 2019-10-10 | B40: IBULHSGFIN | C40: Indiabulls Hsg Fin Ltd | D40: CENTILLION RESEARCH INDIA LLP | E40: BUY | F40: 2,366,477 | G40: 203.92 | H40: NSE
A41: 2019-10-10 | B41: IBULHSGFIN | C41: Indiabulls Hsg Fin Ltd | D41: CROSSLAND TRADING CO | E41: BUY | F41: 3,869,772 | G41: 209.06 | H41: NSE
A42: 2019-10-10 | B42: IBULHSGFIN | C42: Indiabulls Hsg Fin Ltd | D42: TOWER RESEARCH CAPITAL MARKETS INDIA PRIVATE LIMITED | E42: BUY | F42: 7,474,988 | G42: 206.55 | H42: NSE
A43: 2019-10-10 | B43: JAKHARIA | C43: JAKHARIA FABRIC LIMITED | D43: SAJANKUMAR RAMESHWARLAL BAJAJ | E43: BUY | F43: 25,600 | G43: 188.39 | H43: NSE
A44: 2019-10-10 | B44: JAKHARIA | C44: JAKHARIA FABRIC LIMITED | D44: ARYAMAN CAPITAL MARKETS LIMITED | E44: BUY | F44: 10,400 | G44: 184.75 | H44: NSE
A45: 2019-10-10 | B45: KHFM | C45: KHFM Hos Fac Mana Ser Ltd | D45: KAMAL BANSAL HUF | E45: BUY | F45: 57,000 | G45: 27.52 | H45: NSE
A46: 2019-10-10 | B46: KHFM | C46: KHFM Hos Fac Mana Ser Ltd | D46: INDIAPRIDE ADVISORY PRIVATE LIMITED | E46: BUY | F46: 57,000 | G46: 28.04 | H46: NSE
A47: 2019-10-10 | B47: NCC | C47: NCC Limited | D47: TOWER RESEARCH CAPITAL MARKETS INDIA PRIVATE LIMITED | E47: BUY | F47: 4,620,050 | G47: 50.53 | H47: NSE
A48: 2019-10-10 | B48: YESBANK | C48: Yes Bank Limited | D48: TOWER RESEARCH CAPITAL MARKETS INDIA PRIVATE LIMITED | E48: BUY | F48: 21,324,686 | G48: 41.56 | H48: NSE
A49: 2019-10-10 | B49: ARMANFIN | C49: Arman Fin Serv Ltd | D49: PARAM CAPITAL | E49: SELL | F49: 30,000 | G49: 540 | H49: NSE
A50: 2019-10-10 | B50: IBULHSGFIN | C50: Indiabulls Hsg Fin Ltd | D50: NORGES BANK A/C NORGES BANK ON ACCOUNT OF THE GOVERNMENT PENSION FUND GLOBAL | E50: SELL | F50: 3,230,960 | G50: 203.31 | H50: NSE
A51: 2019-10-10 | B51: IBULHSGFIN | C51: Indiabulls Hsg Fin Ltd | D51: CROSSLAND TRADING CO | E51: SELL | F51: 3,874,363 | G51: 209.11 | H51: NSE
A52: 2019-10-10 | B52: IBULHSGFIN | C52: Indiabulls Hsg Fin Ltd | D52: CENTILLION RESEARCH INDIA LLP | E52: SELL | F52: 2,366,477 | G52: 204.01 | H52: NSE
A53: 2019-10-10 | B53: IBULHSGFIN | C53: Indiabulls Hsg Fin Ltd | D53: TOWER RESEARCH CAPITAL MARKETS INDIA PRIVATE LIMITED | E53: SELL | F53: 7,224,417 | G53: 206.86 | H53: NSE
A54: 2019-10-10 | B54: JAKHARIA | C54: JAKHARIA FABRIC LIMITED | D54: ARYAMAN CAPITAL MARKETS LIMITED | E54: SELL | F54: 24,800 | G54: 188.5 | H54: NSE
A55: 2019-10-10 | B55: KHFM | C55: KHFM Hos Fac Mana Ser Ltd | D55: SANJAY KUMAR SINGH | E55: SELL | F55: 57,000 | G55: 27.52 | H55: NSE
A56: 2019-10-10 | B56: KHFM | C56: KHFM Hos Fac Mana Ser Ltd | D56: KAMAL BANSAL HUF | E56: SELL | F56: 57,000 | G56: 28.04 | H56: NSE
A57: 2019-10-10 | B57: NCC | C57: NCC Limited | D57: TOWER RESEARCH CAPITAL MARKETS INDIA PRIVATE LIMITED | E57: SELL | F57: 4,601,128 | G57: 50.53 | H57: NSE
A58: 2019-10-10 | B58: YESBANK | C58: Yes Bank Limited | D58: TOWER RESEARCH CAPITAL MARKETS INDIA PRIVATE LIMITED | E58: SELL | F58: 19,973,286 | G58: 41.56 | H58: NSE

Sheet Call Tracker (Equity & F&O)
M5: Back To Main Page
A6: Retail Research Technical Calls & Fundamental Performance Report for the month of October-2019
M7: =Main!B10 -> 2019-10-11
B8: Positional Call
A9: Sr.no | B9: Date | D9: Company | E9: Rec | F9: Rec Price | G9: Stop Loss*** | H9: Call Closed At | I9: Target | J9: Remark | K9: Profit / Loss per Share | L9: Gain / Loss % | M9: Status | N9: Closed Date | O9: NSE Closed Price
A10: 1 | B10: 2019-08-30 | D10: BIOCON | E10: Buy{} | F10: 229.5 | G10: 214.3 | H10: 242.5 | I10: 255-260 | J10: Profit of Rs.13/- | K10: =H10-F10 -> 13 | L10: =K10/F10 -> 5.66% | M10: Successful | N10: 2019-10-10 | R10: R
A11: 2 | B11: 2019-09-09 | D11: TORNTPHARM | E11: Sell | F11: 1705 | G11: 1808 | H11: 1618 | I11: 1560-1540 | J11: Profit of Rs.87/- | K11: =F11-H11 -> 87 | L11: =K11/F11 -> 5.10% | M11: Successful | N11: 2019-10-01 | R11: R
A12: 3 | B12: 2019-09-25 | D12: AXISBANK | E12: Buy | F12: 690-700 | G12: 628 | I12: 800-820 | J12: Open | O12: =VLOOKUP(D12,Sheet2!A41:M1680,6,0) -> 672.95 | R12: H
A13: 4 | B13: 2019-09-26 | D13: HDFC | E13: Buy | F13: 2065-2075 | G13: 1940 | I13: 2250-2300 | J13: Open | O13: =VLOOKUP(D13,Sheet2!A42:M1681,6,0) -> 1987.95 | R13: H
A14: 5 | B14: 2019-09-26 | D14: BANKBARODA | E14: Buy | F14: 96 | G14: 89 | H14: 89.5 | I14: 110-114 | J14: Loss of Rs.6.5/- | K14: =H14-F14 -> -6.5 | L14: =K14/F14 -> -6.77% | M14: UnSuccessful | N14: 2019-10-01 | R14: H
A15: 6 | B15: 2019-09-30 | D15: BPCL | E15: Sell | F15: 475 | G15: 510 | H15: 503 | I15: 420-410 | J15: Loss of Rs.28/- | K15: =F15-H15 -> -28 | L15: -5.89% | M15: UnSuccessful | N15: 2019-10-03 | R15: H
A16: 7 | B16: 2019-10-01 | D16: CUMMINSIND | E16: Buy | F16: 574-579 | G16: 530 | I16: 640-660 | J16: Open | O16: =VLOOKUP(D16,Sheet2!A46:M1685,6,0) -> 564.75 | R16: H
A17: 8 | B17: 2019-10-01 | D17: UPL | E17: Buy | F17: 592-598 | G17: 564 | I17: 650-660 | J17: Open | O17: =VLOOKUP(D17,Sheet2!A47:M1686,6,0) -> 583.45 | R17: R
A18: 9 | B18: 2019-10-03 | D18: HEIDELBERG | E18: Buy | F18: 183 | G18: 169 | H18: 189 | I18: 205-210 | J18: Part Profit of Rs.6/- | K18: =H18-F18 -> 6 | L18: =K18/F18 -> 3.28% | M18: Successful | N18: 2019-10-09 | O18: =VLOOKUP(D18,Sheet2!A48:M1687,6,0) -> 182.6 | R18: H
A19: 10 | B19: 2019-10-03 | D19: APOLLOHOSP | E19: Buy | F19: 1378.5 | G19: 1286 | H19: 1420 | I19: 1550-1580 | J19: Part Profit of Rs.41.5/- | K19: =H19-F19 -> 41.5 | L19: =K19/F19 -> 3.01% | M19: Successful | N19: 2019-10-04 | O19: =VLOOKUP(D19,Sheet2!A49:M1688,6,0) -> 1412.25 | R19: R
A20: 11 | B20: 2019-10-04 | D20: HDFCAMC | E20: Buy | F20: 2665 | G20: 2537 | H20: 2755 | I20: 2930-2960 | J20: Part Profit of Rs.90/- | K20: =H20-F20 -> 90 | L20: =K20/F20 -> 3.38% | M20: Successful | N20: 2019-10-07 | O20: =VLOOKUP(D20,Sheet2!A50:M1689,6,0) -> 2723.55 | R20: R
A21: 12 | B21: 2019-10-07 | D21: PIDILITIND | E21: Buy | F21: 1365-1370 | G21: 1297 | I21: 1500-1520 | J21: Open | O21: =VLOOKUP(D21,Sheet2!A51:M1690,6,0) -> 1358.85
A22: 13 | B22: 2019-10-07 | D22: AMBUJACEM | E22: Buy | F22: 188-190 | G22: 179 | I22: 205-210 | J22: Open | O22: =VLOOKUP(D22,Sheet2!A52:M1691,6,0) -> 188
A23: 14 | B23: 2019-10-09 | D23: ACC | E23: Buy | F23: 1437-1443 | G23: 1345 | I23: 1600-1650 | J23: Open
A24: 15 | B24: 2019-10-10 | D24: MOTHERSUMI | E24: Buy | F24: 94-95 | G24: 87.7 | I24: 103-106 | J24: Open | O24: =VLOOKUP(D24,Sheet2!A54:M1693,6,0) -> 96.15
A25: 16 | B25: 2019-10-10 | D25: CIPLA | E25: Buy | F25: 423-428 | G25: 398 | I25: 470-480 | J25: Open | O25: =VLOOKUP(D25,Sheet2!A55:M1694,6,0) -> 422.15
A26: 17 | B26: 2019-10-10 | D26: POWERGRID | E26: Buy | F26: 196-198 | G26: 187 | I26: 215-220 | J26: Open | O26: =VLOOKUP(D26,Sheet2!A56:M1695,6,0) -> 199.1
A35: CLBS = Closing Basis ***
A36: Dividend adjusted <> | F36: Reinitiated $
A37: Part book {} | F37: Revised stoploss #
B39: Momentum Call
A40: Sr.no | B40: Date | D40: Company | E40: Rec | F40: Rec Price | G40: Stop Loss | H40: Call Closed At | I40: Target | J40: Remark | K40: Profit / Loss per Share/Lot | L40: Gain / Loss % | M40: Gain / Loss per Lot | N40: Lot | O40: Status | P40: Closed Date
A41: 1 | B41: 2019-09-24 | D41: AMARAJABAT OCT FUT | E41: Buy | F41: 722 | G41: 703 | H41: 703.5 | I41: 750-760 | J41: Loss of Rs.18.5/- | K41: =H41-F41 -> -18.5 | M41: =N41*K41 -> -12950 | N41: 700 | O41: UnSuccessful | P41: 2019-10-01 | R41: N
A42: 2 | B42: 2019-09-30 | D42: IGL | E42: Sell | F42: 349 | G42: 361 | H42: 342 | I42: 330-325 | J42: Profit of Rs.7/- | K42: =F42-H42 -> 7 | L42: =K42/F42 -> 2.01% | O42: Successful | P42: 2019-10-01 | R42: H
A43: 3 | B43: 2019-09-30 | D43: ENGINERSIN | E43: Sell | F43: 119 | G43: 123.3 | H43: 116.5 | I43: 111-109 | J43: Profit of Rs.2.5/- | K43: =F43-H43 -> 2.5 | L43: =K43/F43 -> 2.10% | O43: Successful | P43: 2019-10-01 | R43: R
A44: 4 | B44: 2019-09-30 | D44: ADANIPORTS | E44: Sell | F44: 412.5 | G44: 425.3 | H44: 406 | I44: 395-390 | J44: Profit of Rs.6.5/- | K44: =F44-H44 -> 6.5 | L44: =K44/F44 -> 1.58% | O44: Successful | P44: 2019-10-01 | R44: H
A45: 5 | B45: 2019-10-01 | D45: HDFC | E45: Buy | F45: 1995 | G45: 1949 | H45: 2026 | I45: 2080-2100 | J45: Profit of Rs.31/- | K45: =H45-F45 -> 31 | L45: =K45/F45 -> 1.55% | O45: Successful | P45: 2019-10-01 | R45: H
A46: 6 | B46: 2019-10-01 | D46: POWERGRID OCT FUT | E46: Buy | F46: 196.75 | G46: 193.5 | H46: 198.75 | I46: 205 | J46: Profit of Rs.2/- | K46: =H46-F46 -> 2 | M46: =N46*K46 -> 8000 | N46: 4000 | O46: Successful | P46: 2019-10-03 | R46: N
A47: 7 | B47: 2019-10-01 | D47: NIFTY OCT FUT | E47: Buy | F47: 11430 | G47: 11340 | H47: 11350 | I47: 11570-11600 | J47: Loss of Rs.80/- | K47: =H47-F47 -> -80 | M47: =N47*K47 -> -6000 | N47: 75 | O47: UnSuccessful | P47: 2019-10-01 | R47: R
A48: 8 | B48: 2019-10-03 | D48: LT | E48: Buy | F48: 1440 | G48: 1390 | H48: 1474 | I48: 1500-1520 | J48: Profit of Rs.34/- | K48: 34 | L48: =K48/F48 -> 2.36% | O48: Successful | P48: 2019-10-03 | R48: H
A49: 9 | B49: 2019-10-03 | D49: TATASTEEL | E49: Buy | F49: 348 | G49: 338 | H49: 335 | I49: 370 | J49: Loss of Rs.13/- | K49: -13 | L49: -3.74% | O49: UnSuccessful | P49: 2019-10-04 | R49: R
A50: 10 | B50: 2019-10-03 | D50: CESC OCT FUT | E50: Buy | F50: 747 | G50: 734.7 | H50: 760.5 | I50: 770 | J50: Profit of Rs.13.5/- | K50: =H50-F50 -> 13.5 | M50: =N50*K50 -> 10800 | N50: 800 | O50: Successful | P50: 2019-10-04 | R50: R
A51: 11 | B51: 2019-10-03 | D51: MFSL OCT FUT | E51: Buy | F51: 417 | G51: 406 | H51: 417 | I51: 435 | J51: Neutral | K51: 0 | M51: 0 | N51: 1200 | O51: Neutral | P51: 2019-10-04 | R51: N
A52: 12 | B52: 2019-10-04 | D52: NIITTECH | E52: Buy | F52: 1355 | G52: 1319 | H52: 1377.5 | I52: 1420-1440 | J52: Profit of Rs.22.5/- | K52: =H52-F52 -> 22.5 | L52: =K52/F52 -> 1.66% | O52: Successful | P52: 2019-10-04 | R52: H
A53: 13 | B53: 2019-10-04 | D53: HINDALCO | E53: Buy | F53: 183-184 | G53: 179 | I53: 192-195 | J53: Open | R53: R
A54: 14 | B54: 2019-10-04 | D54: TATAELXSI OCT FUT | E54: Buy | F54: 686.5 | G54: 666 | H54: 666 | I54: 710-720 | J54: Loss of Rs.20.5/- | K54: =H54-F54 -> -20.5 | M54: =N54*K54 -> -12300 | N54: 600 | O54: UnSuccessful | P54: 2019-10-09 | R54: N
A55: 15 | B55: 2019-10-03 | D55: CESC OCT FUT | E55: Buy | F55: 747 | G55: 734.7 | H55: 734.7 | I55: 770 | J55: Loss of Rs.12.3/- | K55: =H55-F55 -> -12.3 | M55: =N55*K55 -> -9840 | N55: 800 | O55: UnSuccessful | P55: 2019-10-04 | R55: R
A56: 16 | B56: 2019-10-04 | D56: LT | E56: Buy | F56: 1435-1445 | G56: 1390 | I56: 1500-1520 | J56: Open | R56: H
A57: 17 | B57: 2019-10-04 | D57: AMARAJABAT OCT FUT | E57: Buy | F57: 699 | G57: 681 | H57: 681.5 | I57: 730 | J57: Loss of Rs.17.50/- | K57: =H57-F57 -> -17.5 | M57: =N57*K57 -> -12250 | N57: 700 | O57: UnSuccessful | P57: 2019-10-09 | R57: N
A58: 18 | B58: 2019-10-04 | D58: NIFTY OCT FUT | E58: Buy | F58: 11280 | G58: 11175 | H58: 11175 | I58: 11370 | J58: Loss of Rs.105/- | K58: =H58-F58 -> -105 | M58: =N58*K58 -> -7875 | N58: 75 | O58: UnSuccessful | P58: 2019-10-07 | R58: R
A59: 19 | B59: 2019-10-04 | D59: DABUR | E59: Buy | F59: 425.5 | G59: 411.7 | H59: 435.5 | I59: 448-453 | J59: Profit of Rs.10/- | K59: 10 | L59: =K59/F59 -> 2.35% | O59: Successful | P59: 2019-10-09 | R59: R
A60: 20 | B60: 2019-10-07 | D60: M&M OCT FUT | E60: Buy | F60: 558 | G60: 545 | H60: 566 | I60: 580 | J60: Profit of Rs.8/- | K60: =H60-F60 -> 8 | M60: =N60*K60 -> 8000 | N60: 1000 | O60: Successful | P60: 2019-10-08
A61: 21 | B61: 2019-10-07 | D61: JUBLFOOD OCT FUT | E61: Buy | F61: 1276.5 | G61: 1253 | H61: 1296 | I61: 1320-1330 | J61: Profit of Rs.19.5/- | K61: =H61-F61 -> 19.5 | M61: =N61*K61 -> 9750 | N61: 500 | O61: Successful | P61: 2019-10-07
A62: 22 | B62: 2019-10-07 | D62: VOLTAS OCT FUT | E62: Sell | F62: 666 | G62: 678 | H62: 677 | I62: 650 | J62: Loss of Rs.11/- | K62: 11 | M62: =N62*K62 -> 11000 | N62: 1000 | O62: UnSuccessful | P62: 2019-10-09
A63: 23 | B63: 2019-10-09 | D63: GODREJCP | E63: Buy | F63: 661 | G63: 641.7 | H63: 674 | I63: 690-700 | J63: Profit of Rs.13/- | K63: 13 | L63: =K63/F63 -> 1.97% | O63: Successful | P63: 2019-10-09
A64: 24 | B64: 2019-10-09 | D64: GRASIM OCT FUT | E64: Sell | F64: 667 | G64: 685 | H64: 692.5 | I64: 635 | J64: Loss of Rs.25.50/- | K64: =H64-F64 -> 25.5 | M64: =N64*K64 -> 19125 | N64: 750 | O64: UnSuccessful | P64: 2019-10-10
A65: 25 | B65: 2019-10-10 | D65: NIITTECH | E65: Buy | F65: 1352.5 | G65: 1317 | H65: 1375.5 | I65: 1420-1440 | J65: Profit of Rs.23/- | K65: 23 | L65: =K65/F65 -> 1.70% | O65: Successful | P65: 2019-10-10
A66: 26 | B66: 2019-10-10 | D66: MCDOWELL-N | E66: Buy | F66: 625-628 | G66: 608 | I66: 660-670 | J66: Open
A67: 27 | B67: 2019-10-10 | D67: KOTAKBANK OCT FUT | E67: Buy | F67: 1600-1603 | G67: 1570 | I67: 1650 | J67: Open
A68: 28 | B68: 2019-10-10 | D68: NIFTY OCT FUT | E68: Buy | F68: 11270-11280 | G68: 11190 | I68: 11400-11450 | J68: Open
A69: 29 | B69: 2019-10-10 | D69: HINDUNILVR OCT FUT | E69: Buy | F69: 1937.5 | G69: 1897 | H69: 1962 | I69: 2000-2020 | J69: Profit of Rs.24.50/- | K69: =H69-F69 -> 24.5 | M69: =N69*K69 -> 7350 | N69: 300 | O69: UnSuccessful | P69: 2019-10-10
A70: 30 | B70: 2019-10-10 | D70: COLPAL OCT FU | E70: Buy | F70: 1493-1496 | G70: 1476 | I70: 1530 | J70: Open
A71: 31 | B71: 2019-10-10 | D71: RAYMOND | E71: Sell | F71: 597 | G71: 607.3 | H71: 587 | I71: 575-570 | J71: Profit of Rs.10/- | K71: =F71-H71 -> 10 | L71: =K71/F71 -> 1.68% | O71: Successful | P71: 2019-10-10
A72: 32 | B72: 2019-10-10 | D72: MFSL OCT FUT | E72: Buy | F72: 407-409 | G72: 398 | I72: 425 | J72: Open
A84: CLBS = Closing Basis ***
A85: Dividend adjusted <> | F85: Reinitiated $
F86: Revised stoploss #
A88: Master Trade High Risk
A89: Sr.no | B89: Date | D89: Company | E89: Rec | F89: Rec Price | G89: Stop Loss | H89: Call Closed At | I89: Target | J89: Remark | K89: Profit / Loss per share | L89: Gain / Loss per Lot | M89: Lot | N89: Status | O89: Closed Date
A90: 1 | B90: 2019-10-01 | D90: HDFC OCT FUT | E90: Buy | F90: 1999 | G90: 1947 | H90: 2022 | I90: 2050 | J90: Profit of Rs.20/- | K90: =H90-F90 -> 23 | L90: =20*M90 -> 10000 | M90: 500 | N90: Successful | O90: 2019-10-04 | R90: H
D91: HDFC 2040 CE OCT | E91: Sell | F91: 52 | H91: 55 | K91: =F91-H91 -> -3 | R91: H
A92: 2 | B92: 2019-10-03 | D92: NIFTY OCT FUT | E92: Buy | F92: 11350 | G92: 11190 | H92: 11425 | I92: 11550 | J92: Profit of Rs.71.5/- | K92: =H92-F92 -> 75 | L92: =71.5*75 -> 5362.5 | M92: 75 | N92: Successful | O92: 2019-10-04 | R92: H
D93: Nifty 11450 CE 10-OCT | E93: Sell | F93: 75 | H93: 78.5 | K93: =F93-H93 -> -3.5 | R93: H
A94: 3 | B94: 2019-10-04 | D94: HDFC OCT FUT | E94: Buy | F94: 2000-2004 | G94: 1947 | I94: 2050 | J94: Open | R94: H
D95: HDFC 2040 CE OCT | E95: Sell | F95: 46-50 | R95: H
A96: 3 | B96: 2019-10-10 | D96: HDFCBANK OCT FUT | E96: Buy | F96: 1200-1205 | G96: 1169 | I96: 1250 | J96: Open
D97: HDFCBANK 1240 CE OCT | E97: Sell | F97: 22-25
A107: Master Trade Medium Risk
A108: Sr.no | B108: Date | D108: Company | E108: Rec | F108: Rec Price | G108: Stop Loss | H108: Call Closed At | I108: Target | J108: Remark | K108: Profit/ Loss per lot | L108: Gain / Loss per Lot | M108: Lot | N108: Status | O108: Closed Date
A109: 1 | B109: 2019-10-04 | D109: Nifty 11400 CE 10-OCT | E109: Buy | F109: 92 | H109: 0 | J109: Loss of Rs.38/- | K109: =H109-F109 -> -92 | L109: =-38*75 -> -2850 | M109: 75 | N109: Unsuccessful | O109: 2019-10-10
D110: NIFTY 11500 CE 10-OCT | E110: Sell | F110: 54 | H110: 0 | K110: =F110-H110 -> 54
A111: 2 | B111: 2019-10-10 | D111: TATASTEEL OCT 350 CE | E111: Buy | F111: 8.0-9.00 | G111: 3.9 | I111: 15-17 | J111: Open
A123: Techno -Funda (positional)
A124: Sr.no | B124: Date | D124: Company | E124: Rec | F124: Rec Price | G124: Stop Loss*** | H124: Call Closed At | I124: Target | J124: Remark | K124: Profit / Loss per Share | L124: Gain / Loss % | M124: Status | N124: Closed Date | O124: NSE Closed Price
A125: 1 | B125: 2019-08-13 | D125: ITC | E125: Buy | F125: 247 | G125: 228 | H125: 262.5 | I125: 290-300 | J125: Part Profit of Rs.15.5/- | K125: =H125-F125 -> 15.5 | L125: =K125/F125 -> 6.28% | M125: Successful | N125: 2019-10-01 | O125: =VLOOKUP(D125,Sheet2!A131:M1770,6,0) -> 243.2 | R125: H
A129: CLBS = Closing Basis *** | F129: Reinitiated $
A130: Dividend adjusted <> | F130: Revised stoploss #
B135: Investment Idea
A136: Sr.no | B136: Date | D136: Company | E136: Rec | F136: Rec Price | G136: Point of Review | H136: Close Rate | I136: Target | J136: Remark | K136: Profit / Loss per Share | L136: Gain / Loss % | M136: Status | N136: Closed Date
A137: 1 | B137: 2013-11-01 | D137: L&T Finance Holding | E137: Accu | F137: 82.00 | G137: - | H137: 100 | I137: 100.00 | J137: Target Achieved | K137: =H137-F137 -> 18.00 | L137: =K137/F137 -> 21.95% | M137: Successful | N137: 2016-10-14
A138: 2 | B138: 2014-06-04 | D138: Finolex Inds | E138: Buy | F138: 257.00 | G138: - | H138: 300 | I138: 300.00 | J138: Target Achieved | K138: =H138-F138 -> 43.00 | L138: 16.73% | M138: Successful | N138: 2014-07-02
A139: 3 | B139: 2014-07-08 | D139: JK Cement | E139: Buy | F139: 393.00 | G139: - | H139: 468 | I139: 468.00 | J139: Target Achieved | K139: =H139-F139 -> 75.00 | L139: 19.08% | M139: Successful | N139: 2014-08-12
A140: 4 | B140: 2014-08-06 | D140: Finolex Cables | E140: Buy | F140: 205.00 | G140: - | H140: 275 | I140: 250.00 | J140: Target Achieved | K140: 70.00 | L140: 34.15% | M140: Successful | N140: 2014-11-19
A141: 5 | B141: 2014-09-04 | D141: Exide Inds | E141: Buy | F141: 162.00 | G141: - | H141: 190 | I141: 190.00 | J141: Target Achieved | K141: 28.00 | L141: 17.28% | M141: Successful | N141: 2015-01-02
A142: 6 | B142: 2014-09-04 | D142: Deepak Nitrite | E142: Buy | F142: 75.00 | G142: - | H142: 91.5 | I142: 95-100 | J142: Profit of Rs.16.50/- | K142: 16.50 | L142: 22.00% | M142: Successful | N142: 2014-11-11
A143: 7 | B143: 2014-10-01 | D143: Mercks | E143: Buy | F143: 850.00 | G143: - | H143: 982.5 | I143: 1050.00 | J143: Profit of Rs.132.50/- | K143: 132.50 | L143: 15.59% | M143: Successful | N143: 2015-02-04
A144: 8 | B144: 2014-10-01 | D144: Grindwell Norton | E144: Buy | F144: 475.00 | G144: - | H144: 515 | I144: 600.00 | J144: Profit of Rs.40/- | K144: 40.00 | L144: 8.42% | M144: Successful | N144: 2014-10-27
A145: 9 | B145: 2014-10-01 | D145: Snowman Logistics | E145: Buy | F145: 86.00 | G145: - | H145: 99 | I145: 140.00 | J145: Profit of Rs.13.00/- | K145: 13.00 | L145: 15.12% | M145: Successful | N145: 2014-10-27
A146: 10 | B146: 2014-10-14 | D146: Birla Corp | E146: Buy | F146: 496.60 | G146: - | H146: 621 | I146: 580.00 | J146: Target Achieved | K146: 124.40 | L146: 25.05% | M146: Successful | N146: 2016-08-23
A147: 11 | B147: 2014-10-14 | D147: Ultratech Cem | E147: Buy | F147: 2481.90 | G147: - | H147: 2840 | I147: 2870.00 | J147: Profit of Rs.358.10/- | K147: 358.10 | L147: 14.43% | M147: Successful | N147: 2015-01-13
A148: 12 | B148: 2014-10-16 | D148: Sintex Inds | E148: Buy | F148: 84.50 | G148: - | H148: 93 | I148: 110.00 | J148: Profit of Rs.8.50/- | K148: 8.50 | L148: 10.06% | M148: Successful | N148: 2014-10-27
A149: 13 | B149: 2014-10-16 | D149: HSIL | E149: Buy | F149: 401.00 | G149: - | H149: 428 | I149: 450.00 | J149: Profit of Rs.27.00/- | K149: 27.00 | L149: 6.73% | M149: Successful | N149: 2015-01-16
A150: 14 | B150: 2014-10-16 | D150: Eveready Inds | E150: Buy | F150: 101.00 | G150: - | H150: 112 | I150: 120.00 | J150: Profit of Rs.11.00/- | K150: 11.00 | L150: 10.89% | M150: Successful | N150: 2014-10-27
A151: 15 | B151: 2014-11-11 | D151: Pennar Inds | E151: Buy | F151: 59.00 | G151: - | H151: 76 | I151: 76.00 | J151: Target Achieved | K151: 17.00 | L151: 28.81% | M151: Successful | N151: 2017-10-24
A152: 16 | B152: 2014-11-11 | D152: Snowman Logistics | E152: Buy | F152: 99.00 | G152: - | H152: 120 | I152: 120.00 | J152: Profit of Rs.21/- | K152: 21.00 | L152: 21.21% | M152: Successful | N152: 2014-11-17
A153: 17 | B153: 2014-11-13 | D153: Dharamsi Morarji Chem | E153: Buy | F153: 22.00 | G153: - | H153: 33.55 | I153: 32.00 | J153: Profit of Rs 11.55/- | K153: 11.55 | L153: 52.50% | M153: Successful | N153: 2015-07-03
A154: 18 | B154: 2014-12-03 | D154: Tatachem | E154: Buy | F154: 440.00 | G154: - | H154: 520 | I154: 520.00 | J154: Profit of Rs 80.00/- | K154: 80.00 | L154: 18.18% | M154: Successful | N154: 2015-07-23
A155: 19 | B155: 2014-12-03 | D155: Advanta | E155: Buy | F155: 360.00 | G155: - | H155: 427 | I155: 425.00 | J155: Profit of Rs.67.00/- | K155: 67.00 | L155: 18.61% | M155: Successful | N155: 2015-02-23
A156: 20 | B156: 2015-01-08 | D156: GDL | E156: Buy | F156: 360.00 | G156: - | H156: 455 | I156: 420.00 | J156: Profit of Rs.95.00/- | K156: 95.00 | L156: 26.39% | M156: Successful | N156: 2015-01-20
A157: 21 | B157: 2015-01-08 | D157: NRB Bearing | E157: Buy | F157: 130.00 | H157: 175.5 | I157: 165.00 | J157: Profit of Rs 45.50/- | K157: 45.50 | L157: 35.00% | M157: Successful | N157: 2017-12-19
A158: 22 | B158: 2015-02-05 | D158: GSFC | E158: Accu | F158: 98.00 | H158: 120 | I158: 120.00 | J158: Target Achieved | K158: 22.00 | L158: 22.45% | M158: Successful | N158: 2017-01-18
A159: 23 | B159: 2015-02-05 | D159: Sundrmfast | E159: Accu | F159: 196.00 | H159: 262 | I159: 255.00 | J159: Target Achieved | K159: 66.00 | L159: 33.67% | M159: Successful | N159: 2016-08-17
A160: 24 | B160: 2015-03-04 | D160: GPPL | E160: Accu | F160: 235 | H160: 77.00 | I160: 280-285 | J160: Loss of Rs.158/- | K160: -158.00 | L160: -67.23% | M160: Unsuccessful | N160: 2019-02-26
A161: 25 | B161: 2015-03-04 | D161: ORIENTCEM | E161: Accu | F161: 185.00 | H161: 224 | I161: 220-225 | J161: Target Achieved | K161: 39.00 | L161: 21.08% | M161: Successful | N161: 2016-10-04
A162: 26 | B162: 2015-03-27 | D162: PFS | E162: Accu | F162: 49.5 | H162: 15.85 | I162: 67.00 | J162: Loss of Rs.33.65/- | K162: -33.65 | L162: -68% | M162: Unsuccessful | N162: 2019-06-11
A163: 27 | B163: 2015-03-30 | D163: Walchandnagar Ind Ltd | E163: Accu | F163: 183.50 | H163: 219 | I163: 218.00 | J163: Profit of Rs.35.50/- | K163: 35.50 | L163: =K163/F163 -> 19.35% | M163: Successful | N163: 2015-04-09
A164: 28 | B164: 2015-04-20 | D164: Kalpataru Power Transmission Ltd | E164: Accu | F164: =(227+237)/2 -> 232.00 | H164: 298 | I164: 298.00 | J164: Target Achieved | K164: 66.00 | L164: 28.45% | M164: Successful | N164: 2017-03-29
A165: 29 | B165: 2015-05-04 | D165: Mastek Ltd | E165: Buy | F165: 385.00 | H165: =212.5+331 -> 543.5 | I165: 510.00 | J165: Profit of Rs 158.50/- | K165: 158.50 | L165: 41.17% | M165: Successful | N165: 2015-08-19
A166: 30 | B166: 2015-05-04 | D166: Suprajit Eng | E166: Buy | F166: 115.50 | H166: 146 | I166: 142.00 | J166: Profit of Rs 30.50/- | K166: 30.50 | L166: 26.41% | M166: Successful | N166: 2015-07-17
A167: 31 | B167: 2015-05-27 | D167: TCI | E167: Buy | F167: 237.50 | H167: 279.5 | I167: 278.00 | J167: Target Achieved | K167: 42.00 | L167: 17.68% | M167: Successful | N167: 2015-08-06
A168: 32 | B168: 2015-06-19 | D168: HSIL | E168: Accu | F168: 340.00 | H168: 448 | I168: 448.00 | J168: Target Achieved | K168: 108.00 | L168: 31.76% | M168: Successful | N168: 2017-10-10
A169: 33 | B169: 2015-07-06 | D169: Capital First | E169: Accu | F169: 390.00 | H169: 460 | I169: 460.00 | J169: Target Achieved | K169: 70.00 | L169: 17.95% | M169: Successful | N169: 2016-04-18
A170: 34 | B170: 2015-07-10 | D170: Dolphin OffShore | E170: Accu | F170: 122.5 | H170: 61.00 | I170: 172.00 | J170: Loss of Rs.61.50/- | K170: -61.50 | L170: -50.20% | M170: Unsuccessful | N170: 2018-08-21
A171: 35 | B171: 2015-08-03 | D171: Allcargo logistics | E171: Accu | F171: 297.50 | H171: 350 | I171: 360.00 | J171: Profit of Rs 52.50/- | K171: 52.50 | L171: 17.65% | M171: Successful | N171: 2015-08-16
A172: 36 | B172: 2015-08-03 | D172: Camline Fine | E172: Accu | F172: 115.50 | H172: 149 | I172: 140.00 | J172: Profit of Rs 33.50/- | K172: 33.50 | L172: 29.00% | M172: Successful | N172: 2017-01-05
A173: 37 | B173: 2015-09-04 | D173: TCI | E173: Accu | F173: 226.00 | H173: 292 | I173: 292.00 | J173: Target Achieved | K173: 66.00 | L173: 29.20% | M173: Successful | N173: 2015-10-09
A174: 38 | B174: 2015-09-07 | D174: Kalpataru Power Transmission Ltd | E174: Accu | F174: 232.50 | H174: 312.5 | I174: 310.00 | J174: Target Achieved | K174: 80.00 | L174: 34.41% | M174: Successful | N174: 2017-03-29
A175: 39 | B175: 2015-09-21 | D175: LLOYD ELECTRIC & ENG LTD | E175: Accu | F175: 196.50 | H175: 238 | I175: 238.00 | J175: Target Achieved | K175: 41.50 | L175: 21.12% | M175: Successful | N175: 2015-10-14
A176: 40 | B176: 2015-09-24 | D176: L&T Finance Holding | E176: Accu | F176: 65.00 | H176: 82 | I176: 82.00 | J176: Target Achieved | K176: 17.00 | L176: 26.15% | M176: Successful | N176: 2016-07-27
A177: 41 | B177: 2015-10-14 | D177: KEC International ltd | E177: Accu | F177: 144.00 | H177: 182.5 | I177: 181.00 | J177: Target Achieved | K177: 38.50 | L177: 26.74% | M177: Successful | N177: 2017-03-23
A178: 42 | B178: 2015-10-14 | D178: Gruh Finance | E178: Accu | F178: 264.00 | H178: 311 | I178: 311.00 | J178: Target Achieved | K178: 47.00 | L178: 17.80% | M178: Successful | N178: 2016-08-22
A179: 43 | B179: 2015-11-10 | D179: Pidilitind | E179: Buy | F179: 549.50 | H179: 630 | I179: 630.00 | J179: Target Achieved | K179: 80.50 | L179: 14.65% | M179: Successful | N179: 2016-02-19
A180: 44 | B180: 2015-12-04 | D180: Zensar Technology | E180: Accu | F180: 1027.50 | H180: 1315 | I180: 1250.00 | J180: Target Achieved | K180: 287.50 | L180: 27.98% | M180: Successful | N180: 2018-05-24
A181: 45 | B181: 2015-12-29 | D181: Vinati Organics Ltd | E181: Accu | F181: 465.00 | H181: 540 | I181: 540.00 | J181: Target Achieved | K181: 75.00 | L181: 16.13% | M181: Successful | N181: 2016-06-09
A182: 46 | B182: 2016-01-11 | D182: GSFC | E182: Buy | F182: 81.00 | H182: 110 | I182: 110.00 | J182: Target Achieved | K182: 29.00 | L182: 35.80% | M182: Successful | N182: 2017-01-10
A183: 47 | B183: 2016-01-13 | D183: SSWL | E183: Buy | F183: 417.50 | H183: 547 | I183: 535.00 | J183: Target Achieved | K183: 129.50 | L183: 31.02% | M183: Successful | N183: 2016-07-27
A184: 48 | B184: 2016-02-08 | D184: Persistent System Ltd | E184: Accu | F184: 650.00 | H184: 800 | I184: 800.00 | J184: Target Achieved | K184: 150.00 | L184: 23.08% | M184: Successful | N184: 2018-02-23
A185: 49 | B185: 2016-03-04 | D185: UPL | E185: Accu | F185: 437.50 | H185: 504.5 | I185: 522.00 | J185: Profit of Rs.67/- | K185: 67.00 | L185: 15.31% | M185: Successful | N185: 2016-04-20
A186: 50 | B186: 2016-03-09 | D186: Ashoka Buildcon Ltd | E186: Accu | F186: 189.50 | H186: 218 | I186: 218.00 | J186: Target Achieved | K186: 28.50 | L186: 15.04% | M186: Successful | N186: 2017-10-26
A187: 51 | B187: 2016-04-11 | D187: PTC INDIA FIN SERV LTD | E187: Accu | F187: 36.5 | H187: 15.85 | I187: 60.00 | J187: Loss of Rs.20.65/- | K187: -20.65 | L187: -56.58% | M187: Unsuccessful | N187: 2019-06-11
A188: 52 | B188: 2016-04-12 | D188: CAMLINFINE $ | E188: Accu | F188: 93.00 | H188: 149 | I188: 140.00 | J188: Profit of Rs 56/- | K188: 56.00 | L188: 60.22% | M188: Successful | N188: 2017-01-05
A189: 53 | B189: 2016-04-12 | D189: Greaves Cotton Ltd. | E189: Accu | F189: 130.00 | H189: 150 | I189: 150-155 | J189: Target Achieved | K189: 20.00 | L189: 15.38% | M189: Successful | N189: 2016-07-13
A190: 54 | B190: 2016-05-02 | D190: KEC International ltd $ | E190: Accu | F190: 127.50 | H190: 148 | I190: 148-150 | J190: Target Achieved | K190: 20.50 | L190: 16.08% | M190: Successful | N190: 2016-07-13
A191: 55 | B191: 2016-05-03 | D191: Mindtree | E191: Accu | F191: 675.00 | H191: 815 | I191: 790-800 | J191: Target Achieved | K191: 140.00 | L191: 20.74% | M191: Successful | N191: 2018-02-23
A192: 56 | B192: 2016-06-06 | D192: TRITURBINE | E192: Accu | F192: 110.00 | H192: 126.5 | I192: 125.00 | J192: Profit of Rs.16.50/- | K192: 16.50 | L192: 15.00% | M192: Successful | N192: 2016-07-01
A193: 57 | B193: 2016-06-17 | D193: Pennar Industries Ltd | E193: Accu | F193: 44.00 | H193: 69.5 | I193: 69.50 | J193: Profit of Rs.25.50/- | K193: 25.50 | L193: 57.95% | M193: Successful | N193: 2017-08-30
A194: 58 | B194: 2016-07-05 | D194: Bajaj Corp Ltd | E194: Accu | F194: 395 | H194: =(468.5+342.5)/2 -> 405.50 | I194: 510.00 | J194: Profit of Rs.10.50/- | K194: 10.50 | L194: 3% | M194: Neutral | N194: 2019-05-21
A195: 59 | B195: 2016-08-02 | D195: GPPL $ | E195: Buy | F195: 169.5 | H195: 77.00 | I195: 198-200 | J195: Loss of Rs.92.5/- | K195: -92.50 | L195: -54.57% | M195: Unsuccessful | N195: 2019-02-26
A196: 60 | B196: 2016-08-04 | D196: WONDERLA HOLIDAYS LTD | E196: Accu | F196: 400 | H196: 305.00 | I196: 475.00 | J196: Loss of Rs.95/- | K196: -95.00 | L196: -23.75% | M196: Unsuccessful | N196: 2019-05-21
A197: 61 | B197: 2016-08-11 | D197: CAMLINFINE | E197: Accu | F197: 86.50 | H197: 130 | I197: 130.00 | J197: Profit of Rs.43.50/- | K197: 43.50 | L197: 50.29% | M197: Successful | N197: 2017-12-22
A198: 62 | B198: 2016-08-18 | D198: GRANULES | E198: Accu | F198: 133.5 | H198: 126.50 | I198: 178.00 | J198: Exit | K198: -7.00 | L198: -5.24% | M198: Unsuccessful | N198: 2016-09-02
A199: 63 | B199: 2016-08-31 | D199: VA TECH WABAG | E199: Accu | F199: 560.00 | H199: 725 | I199: 725.00 | J199: Target Achieved | K199: 165.00 | L199: 29.46% | M199: Successful | N199: 2016-03-27
A200: 64 | B200: 2016-09-01 | D200: SKIPPER LIMITED | E200: Accu | F200: 160.50 | H200: 210 | I200: 210.00 | J200: Target Achieved | K200: 49.50 | L200: 30.84% | M200: Successful | N200: 2017-05-16
A201: 65 | B201: 2016-10-14 | D201: ASIANTILES | E201: Accu | F201: 280.00 | H201: 345 | I201: 345.00 | J201: Target Achieved | K201: 65.00 | L201: 23.21% | M201: Successful | N201: 2017-03-20
A202: 66 | B202: 2016-10-14 | D202: DEEPIND | E202: Accu | F202: 245.00 | H202: 325.5 | I202: 330.00 | J202: Profit of Rs.80.5/- | K202: 80.50 | L202: 32.86% | M202: Successful | N202: 2017-02-03
A203: 67 | B203: 2016-10-17 | D203: DCBBANK | E203: Accu | F203: 125.00 | H203: 160 | I203: 160.00 | J203: Target Achieved | K203: =H203-F203 -> 35.00 | L203: 28.00% | M203: Successful | N203: 2017-03-09
A204: 68 | B204: 2016-10-17 | D204: ORIENTREF | E204: Accu | F204: 114.00 | H204: 145 | I204: 145.00 | J204: Target Achieved | K204: 31.00 | L204: =K204/F204 -> 27.19% | M204: Successful | N204: 2017-05-04
A205: 69 | B205: 2016-10-17 | D205: GANECOS | E205: Accu | F205: 212.00 | H205: 280 | I205: 276.00 | J205: Profit of Rs.68/- | K205: 68.00 | L205: =K205/F205 -> 32.08% | M205: Successful | N205: 2017-05-03
A206: 70 | B206: 2016-11-04 | D206: NBCC | E206: Accu | F206: 155.00 | H206: 210 | I206: 210.00 | J206: Profit of Rs.55/- | K206: 55.00 | L206: =K206/F206 -> 35.48% | M206: Successful | N206: 2017-07-28
A207: 71 | B207: 2016-12-08 | D207: INFRATEL | E207: Accu | F207: 380.00 | H207: 478 | I207: 468.00 | J207: Target Achieved | K207: 98.00 | L207: =K207/F207 -> 25.79% | M207: Successful | N207: 2017-10-17
A208: 72 | B208: 2016-12-30 | D208: GODREJPROP | E208: Accu | F208: 305.00 | H208: 375 | I208: 375.00 | J208: Target Achieved | K208: 70.00 | L208: 22.95% | M208: Successful | N208: 2017-02-02
A209: 73 | B209: 2017-01-04 | D209: DEEPAKNTR | E209: Accu | F209: 99.50 | H209: 158 | I209: 158.00 | J209: Target Achieved | K209: 58.50 | L209: 58.79% | M209: Successful | N209: 2017-06-12
A210: 74 | B210: 2017-02-20 | D210: RECLTD | E210: Accu | F210: 140.50 | H210: 220 | I210: 220.00 | J210: Target Achieved | K210: 79.50 | L210: 56.58% | M210: Successful | N210: 2017-05-09
A211: 75 | B211: 2017-03-24 | D211: VRLLOG | E211: Accu | F211: 300.50 | H211: 417.5 | I211: 420.00 | J211: Profit of Rs.117/- | K211: 117.00 | L211: 38.94% | M211: Successful | N211: 2017-12-01
A212: 76 | B212: 2017-04-05 | D212: RATNAMANI | E212: Accu | F212: 785.00 | H212: 930 | I212: 920.00 | J212: Profit of Rs.145/- | K212: 145.00 | L212: 18.47% | M212: Successful | N212: 2017-08-29
A213: 77 | B213: 2017-04-12 | D213: DABUR | E213: Accu | F213: 289.50 | H213: 354 | I213: 360.00 | J213: Profit of Rs.64.5/- | K213: 64.50 | L213: 22.28% | M213: Successful | N213: 2017-11-01
A214: 78 | B214: 2017-04-20 | D214: KPRMILL | E214: Accu | F214: 700.00 | H214: 840 | I214: 840.00 | J214: Profit of Rs.140/- | K214: 140.00 | L214: 20.00% | M214: Successful | N214: 2017-06-07
A215: 79 | B215: 2017-06-01 | D215: ESSELPACK | E215: Accu | F215: 130.00 | H215: 144.25 | I215: 170.00 | J215: Profit of Rs.14.25/- | K215: 14.25 | L215: =K215/F215 -> 10.96% | M215: Successful | N215: 2019-07-29
A216: 80 | B216: 2017-06-15 | D216: KEI | E216: Accu | F216: 214.50 | H216: 262 | I216: 262.00 | J216: Profit of Rs.47.5/- | K216: =H216-F216 -> 47.50 | L216: 22.14% | M216: Successful | N216: 2017-08-30
A217: 81 | B217: 2017-07-17 | D217: MAYURUNIQ | E217: Accu | F217: 370.00 | H217: 447.5 | I217: 450.00 | J217: Target Achieved | K217: 77.50 | L217: 20.95% | M217: Successful | N217: 2017-10-27
A218: 82 | B218: 2017-07-27 | D218: RAMCOCEM | E218: Accu | F218: 657.50 | H218: 825 | I218: 820.00 | J218: Target Achieved | K218: 167.50 | L218: 25.48% | M218: Successful | N218: 2017-12-21
A219: 83 | B219: 2017-08-17 | D219: FINPIPE | E219: Accu | F219: 605.00 | H219: 750 | I219: 750.00 | J219: Profit of Rs.145/- | K219: 145.00 | L219: 23.97% | M219: Successful | N219: 2017-10-19
A220: 84 | B220: 2017-09-01 | D220: SHK | E220: Accu | F220: 255 | H220: 217.25 | I220: 320.00 | J220: Loss of Rs.37.75/- | K220: -37.75 | L220: -15% | M220: Unsuccessful | N220: 2019-07-15
A221: 85 | B221: 2017-09-19 | D221: SKIPPER | E221: Accu | F221: 215.00 | H221: 258 | I221: 258.00 | J221: Target Achieved | K221: 43.00 | L221: 20.00% | M221: Successful | N221: 2017-11-01
A222: 86 | B222: 2017-09-20 | D222: CAMLINFINE | E222: Accu | F222: 75.00 | H222: 90 | I222: 90.00 | J222: Profit of Rs.15.00/- | K222: 15.00 | L222: 20.00% | M222: Successful | N222: 2017-10-11
A223: 87 | B223: 2017-10-03 | D223: GNA | E223: Accu | F223: 315.00 | H223: 392 | I223: 384.00 | J223: Profit of Rs.77/- | K223: 77.00 | L223: 24.44% | M223: Successful | N223: 2017-10-09
A224: 88 | B224: 2017-10-05 | D224: NOCIL | E224: Accu | F224: 145.00 | H224: 179 | I224: 180.00 | J224: Profit of Rs.34/- | K224: 34.00 | L224: 23.45% | M224: Successful | N224: 2017-10-17
A225: 89 | B225: 2017-10-06 | D225: CENTURYPLY | E225: Accu | F225: 256.00 | H225: 323 | I225: 320.00 | J225: Target Achieved | K225: 67.00 | L225: 26.17% | M225: Successful | N225: 2017-11-28
A226: 90 | B226: 2017-10-09 | D226: EIHOTEL | E226: Accu | F226: 137.50 | H226: 184 | I226: 183.00 | J226: Profit of Rs.46.5/- | K226: 46.50 | L226: 33.82% | M226: Successful | N226: 2018-01-08
A227: 91 | B227: 2017-10-10 | D227: NRBBEARING | E227: Accu | F227: 125.50 | H227: 158 | I227: 155.00 | J227: Profit of Rs.32.5/- | K227: 32.50 | L227: 25.90% | M227: Successful | N227: 2017-11-28
A228: 92 | B228: 2017-11-07 | D228: HATSUN | E228: Accu | F228: 740.00 | H228: 892.5 | I228: 900.00 | J228: Profit of Rs.152.5/- | K228: 152.50 | L228: 20.61% | M228: Successful | N228: 2017-11-13
A229: 93 | B229: 2017-12-04 | D229: SANGHIIND | E229: Accu | F229: 118.50 | H229: 143.5 | I229: 145.00 | J229: Profit of Rs.25/- | K229: 25.00 | L229: 21.10% | M229: Successful | N229: 2017-12-28
A230: 94 | B230: 2017-12-21 | D230: KAJARIACER | E230: Accu | F230: 715 | H230: 500.00 | I230: 872.00 | J230: Loss of Rs.215/- | K230: =H230-F230 -> -215.00 | L230: =K230/F230 -> -30.07% | M230: Unsuccessful | N230: 2019-07-24
A231: 95 | B231: 2018-04-04 | D231: GPPL | E231: Accu | F231: 141.5 | H231: 77.00 | I231: 180.00 | J231: Loss of Rs.64.5/- | K231: -64.50 | L231: -45.58% | M231: Unsuccessful | N231: 2019-02-26
A232: 96 | B232: 2018-04-19 | D232: MANPASAND | E232: Accu | F232: 430 | H232: 220.00 | I232: 537.00 | J232: Loss of Rs.210/- | K232: -210.00 | L232: -48.84% | M232: Unsuccessful | N232: 2018-06-01
A233: 97 | B233: 2018-04-30 | D233: HEIDELBERG | E233: Accu | F233: 156 | H233: 196.00 | I233: 196.00 | J233: Profit of Rs.40/- | K233: 40.00 | L233: 26% | M233: Successful | N233: 2019-05-20
A234: 98 | B234: 2018-08-06 | D234: GABRIEL | E234: Accu | F234: 150.00 | H234: 102 | I234: 182.00 | J234: Loss of Rs.48 /- | K234: -48.00 | L234: -32.00% | M234: Unsuccessful | N234: 2019-07-15
A235: 99 | B235: 2018-08-29 | D235: GRINDWELL | E235: Accu | F235: 525.00 | H235: 585 | I235: 635.00 | J235: Profit of Rs.60- | K235: 60.00 | L235: 11.43% | N235: 2019-07-16
A236: 100 | B236: 2018-10-22 | D236: FINPIPE | E236: Accu | F236: 475.00 | H236: 574 | I236: 570.00 | J236: Target Achieved | K236: 99.00 | L236: 20.84% | M236: Successful | N236: 2018-10-30
A237: 101 | B237: 2018-10-24 | D237: GULFOILLUB | E237: Accu | F237: 707.50 | H237: 872 | I237: 872.00 | J237: Target Achieved | K237: 164.50 | L237: 23.25% | M237: Successful | N237: 2019-01-17
A238: 102 | B238: 2018-10-25 | D238: DBCORP | E238: Accu | F238: 164.00 | H238: 204 | I238: 209.00 | J238: Profit of Rs.40/- | K238: 40.00 | L238: 24.39% | M238: Successful | N238: 2019-03-15
A239: 103 | B239: 2018-10-26 | D239: RITES | E239: Accu | F239: 240.00 | H239: 297 | I239: 297.00 | J239: Target Achieved | K239: 57.00 | L239: 23.75% | M239: Successful | N239: 2018-11-13
A240: 104 | B240: 2018-12-05 | D240: BRIGADE | E240: Accu | F240: 202.50 | H240: 255 | I240: 252.00 | J240: Target Achieved | K240: 52.50 | L240: 25.93% | M240: Successful | N240: 2019-03-18
A241: 105 | B241: 2018-12-31 | D241: JKCEMENT | E241: Accu | F241: 710.00 | H241: 866 | I241: 866.00 | J241: Target Achieved | K241: 156.00 | L241: 21.97% | M241: Successful | N241: 2019-03-29
A242: 106 | B242: 2019-04-04 | D242: ITDCEM | E242: Accu | F242: 130.00 | H242: 65 | I242: 158.00 | J242: Loss of Rs.65 /- | K242: -65.00 | L242: -50.00% | M242: Unsuccessful | N242: 2019-09-18
A243: 107 | B243: 2017-10-09 | D243: RECLTD | E243: Accu | F243: 152.5 | H243: 183.50 | I243: 210.00 | J243: Part Profit of Rs.31/- | K243: 31.00 | L243: 20% | M243: Successful | N243: 2017-11-03 | R243: V
A244: 108 | B244: 2017-12-05 | D244: ALLCARGO | E244: Accu | F244: 177.5 | H244: 215.00 | I244: 230.00 | J244: Part Profit of Rs.37.5/- | K244: 37.50 | L244: 21% | M244: Successful | N244: 2017-12-27 | R244: V
A245: 109 | B245: 2018-04-02 | D245: EVERESTIND | E245: Accu | F245: 492.5 | H245: 589.00 | I245: 613.00 | J245: Part Profit of Rs.96.5/- | K245: 96.50 | L245: 20% | M245: Successful | N245: 2018-08-21 | R245: K
A246: 110 | B246: 2018-10-25 | D246: GODREJCP | E246: Accu | F246: 707.5 | H246: 850.00 | I246: 890.00 | J246: Part Profit of Rs.142.5/- | K246: 142.50 | L246: 20% | M246: Successful | N246: 2018-12-19 | R246: V
A247: 111 | B247: 2017-05-22 | D247: GREAVESCOT | E247: Accu | F247: 153-158 | I247: 190.00 | M247: Open | R247: K
A248: 112 | B248: 2018-02-07 | D248: GREAVESCOT | E248: Accu | F248: 130-132 | I248: 190.00 | M248: Open | R248: K
A249: 113 | B249: 2018-02-27 | D249: MOLDTKPAC | E249: Accu | F249: 320-330 | I249: 398.00 | M249: Open | R249: K
A250: 114 | B250: 2018-03-05 | D250: LICHSGFIN | E250: Accu | F250: 505-515 | I250: 672.00 | M250: Open | R250: V
A251: 98 | B251: 2018-06-07 | D251: KEC | E251: Accu | F251: 340-345 | I251: 439.00 | M251: Open | R251: K
A252: 99 | B252: 2018-07-04 | D252: ASHOKLEY | E252: Accu | F252: 125-130 | I252: 170.00 | M252: Open | R252: V
... 36 more rows

Sheet Sheet2 (hidden)
A1: SYMBOL | B1: SERIES | C1: OPEN | D1: HIGH | E1: LOW | F1: CLOSE | G1: LAST | H1: PREVCLOSE | I1: TOTTRDQTY | J1: TOTTRDVAL | K1: TIMESTAMP | L1: TOTALTRADES | M1: ISIN | N1: ISIN
A2: 20MICRONS | B2: EQ | C2: 38.25 | D2: 39.35 | E2: 37.65 | F2: 38.1 | G2: 37.8 | H2: 38.9 | I2: 17434 | J2: 666074.4 | K2: 2019-10-10 | L2: 223 | M2: INE144J01027
A3: 21STCENMGM | B3: EQ | C3: 12.7 | D3: 12.95 | E3: 12.7 | F3: 12.7 | G3: 12.7 | H3: 12.95 | I3: 1861 | J3: 23637.2 | K3: 2019-10-10 | L3: 3 | M3: INE253B01015
A4: 3IINFOTECH | B4: EQ | C4: 2.1 | D4: 2.15 | E4: 2.05 | F4: 2.1 | G4: 2.1 | H4: 2.1 | I4: 839135 | J4: 1761202.8 | K4: 2019-10-10 | L4: 446 | M4: INE748C01020
A5: 3MINDIA | B5: EQ | C5: 20156 | D5: 20246.9 | E5: 19725 | F5: 19852.95 | G5: 19843 | H5: 20219.3 | I5: 867 | J5: 17292939.5 | K5: 2019-10-10 | L5: 520 | M5: INE470A01017
A6: 5PAISA | B6: EQ | C6: 167 | D6: 169.7 | E6: 160.65 | F6: 164.45 | G6: 164 | H6: 165.85 | I6: 5155 | J6: 850937.3 | K6: 2019-10-10 | L6: 146 | M6: INE618L01018
A7: 63MOONS | B7: EQ | C7: 121.45 | D7: 124 | E7: 114.2 | F7: 115.3 | G7: 115.35 | H7: 120.45 | I7: 127577 | J7: 15124369.25 | K7: 2019-10-10 | L7: 3207 | M7: INE111B01023
A8: A2ZINFRA | B8: EQ | C8: 9.65 | D8: 9.75 | E8: 9.2 | F8: 9.5 | G8: 9.45 | H8: 9.65 | I8: 89280 | J8: 843448.85 | K8: 2019-10-10 | L8: 214 | M8: INE619I01012
A9: AARTIDRUGS | B9: EQ | C9: 462.1 | D9: 462.15 | E9: 444.1 | F9: 451.7 | G9: 454 | H9: 460.15 | I9: 27919 | J9: 12825744.6 | K9: 2019-10-10 | L9: 1101 | M9: INE767A01016
A10: AARTIIND | B10: EQ | C10: 764.5 | D10: 775 | E10: 761 | F10: 765.15 | G10: 765 | H10: 759.75 | I10: 40187 | J10: 30807049.75 | K10: 2019-10-10 | L10: 4194 | M10: INE769A01020
A11: AARVEEDEN | B11: EQ | C11: 15.85 | D11: 15.9 | E11: 14 | F11: 15.3 | G11: 15.85 | H11: 14.65 | I11: 3111 | J11: 45943.7 | K11: 2019-10-10 | L11: 120 | M11: INE273D01019
A12: AAVAS | B12: EQ | C12: 1610 | D12: 1676.15 | E12: 1603.05 | F12: 1635.75 | G12: 1633 | H12: 1604.05 | I12: 9207 | J12: 15090939.45 | K12: 2019-10-10 | L12: 2040 | M12: INE216P01012
A13: ABAN | B13: BE | C13: 24.2 | D13: 25.95 | E13: 24.1 | F13: 25.05 | G13: 25.25 | H13: 25.15 | I13: 21434 | J13: 538477.85 | K13: 2019-10-10 | L13: 235 | M13: INE421A01028
A14: ABB | B14: EQ | C14: 1485 | D14: 1493.85 | E14: 1454.3 | F14: 1464.45 | G14: 1464.95 | H14: 1486 | I14: 31590 | J14: 46385811.15 | K14: 2019-10-10 | L14: 2997 | M14: INE117A01022
A15: ABBOTINDIA | B15: EQ | C15: 10990 | D15: 11056.55 | E15: 10781.6 | F15: 10999.35 | G15: 10990 | H15: 10998.6 | I15: 20392 | J15: 222573525.6 | K15: 2019-10-10 | L15: 3073 | M15: INE358A01014
A16: ABCAPITAL | B16: EQ | C16: 79.55 | D16: 81.2 | E16: 79 | F16: 79.2 | G16: 79.2 | H16: 79.4 | I16: 670965 | J16: 53554604.3 | K16: 2019-10-10 | L16: 11307 | M16: INE674K01013
A17: ABFRL | B17: EQ | C17: 206.55 | D17: 208.1 | E17: 203.55 | F17: 204.6 | G17: 203.75 | H17: 208.1 | I17: 358364 | J17: 73727970.1 | K17: 2019-10-10 | L17: 5341 | M17: INE647O01011
A18: ACC | B18: EQ | C18: 1459.8 | D18: 1462.8 | E18: 1418.1 | F18: 1422.9 | G18: 1424.45 | H18: 1467.1 | I18: 721330 | J18: 1035461218 | K18: 2019-10-10 | L18: 26051 | M18: INE012A01025
A19: ACCELYA | B19: EQ | C19: 844.95 | D19: 850 | E19: 823.35 | F19: 846.1 | G19: 850 | H19: 856.35 | I19: 6589 | J19: 5546911.3 | K19: 2019-10-10 | L19: 426 | M19: INE793A01012
A20: ACE | B20: EQ | C20: 74.2 | D20: 78 | E20: 73.7 | F20: 77.45 | G20: 77.45 | H20: 74.6 | I20: 215567 | J20: 16267420.9 | K20: 2019-10-10 | L20: 1293 | M20: INE731H01025
A21: ADANIENT | B21: EQ | C21: 138 | D21: 139.1 | E21: 135.3 | F21: 137.4 | G21: 136.75 | H21: 139 | I21: 2413888 | J21: 330810348.5 | K21: 2019-10-10 | L21: 13319 | M21: INE423A01024
A22: ADANIGAS | B22: EQ | C22: 138 | D22: 142.95 | E22: 136.8 | F22: 138.5 | G22: 138.8 | H22: 136.05 | I22: 1889479 | J22: 263644679.3 | K22: 2019-10-10 | L22: 16721 | M22: INE399L01023
A23: ADANIGREEN | B23: EQ | C23: 71.4 | D23: 74.5 | E23: 70.55 | F23: 73.8 | G23: 73.95 | H23: 71.45 | I23: 3267575 | J23: 238903735.4 | K23: 2019-10-10 | L23: 16856 | M23: INE364U01010
A24: ADANIPORTS | B24: EQ | C24: 397.8 | D24: 401.6 | E24: 395.6 | F24: 399.9 | G24: 400.8 | H24: 400.45 | I24: 3034826 | J24: 1208894044 | K24: 2019-10-10 | L24: 45434 | M24: INE742F01042
A25: ADANIPOWER | B25: EQ | C25: 60.8 | D25: 63.1 | E25: 58.9 | F25: 62.5 | G25: 62.65 | H25: 60.75 | I25: 17192619 | J25: 1055097898 | K25: 2019-10-10 | L25: 27447 | M25: INE814H01011
A26: ADANITRANS | B26: EQ | C26: 225.65 | D26: 227.95 | E26: 222 | F26: 222.6 | G26: 222.65 | H26: 225.45 | I26: 44917 | J26: 10106068.15 | K26: 2019-10-10 | L26: 1059 | M26: INE931S01010
A27: ADFFOODS | B27: EQ | C27: 257 | D27: 262.4 | E27: 255.1 | F27: 258.95 | G27: 259 | H27: 256.95 | I27: 17217 | J27: 4450889.2 | K27: 2019-10-10 | L27: 1318 | M27: INE982B01019
A28: ADHUNIKIND | B28: EQ | C28: 108.65 | D28: 113.5 | E28: 106.95 | F28: 108.35 | G28: 106.95 | H28: 108.65 | I28: 73454 | J28: 8082584.4 | K28: 2019-10-10 | L28: 1380 | M28: INE452L01012
A29: ADLABS | B29: EQ | C29: 2.6 | D29: 2.6 | E29: 2.5 | F29: 2.5 | G29: 2.5 | H29: 2.6 | I29: 50963 | J29: 128122.55 | K29: 2019-10-10 | L29: 192 | M29: INE172N01012
A30: ADORWELD | B30: EQ | C30: 300 | D30: 307.85 | E30: 295.65 | F30: 299.35 | G30: 297.05 | H30: 304.9 | I30: 1072 | J30: 320952.4 | K30: 2019-10-10 | L30: 117 | M30: INE045A01017
A31: ADROITINFO | B31: BE | C31: 7.55 | D31: 7.55 | E31: 7.55 | F31: 7.55 | G31: 7.55 | H31: 7.9 | I31: 24 | J31: 181.2 | K31: 2019-10-10 | L31: 2 | M31: INE737B01033
A32: ADSL | B32: EQ | C32: 13.75 | D32: 13.75 | E32: 12.9 | F32: 13.35 | G32: 13.6 | H32: 13.75 | I32: 47455 | J32: 629511.3 | K32: 2019-10-10 | L32: 154 | M32: INE102I01027
A33: ADVANIHOTR | B33: EQ | C33: 52.95 | D33: 53.9 | E33: 52 | F33: 52.35 | G33: 52.5 | H33: 52.1 | I33: 6401 | J33: 337874.25 | K33: 2019-10-10 | L33: 122 | M33: INE199C01026
A34: ADVENZYMES | B34: EQ | C34: 150 | D34: 150.9 | E34: 147.1 | F34: 148 | G34: 148 | H34: 148.95 | I34: 28761 | J34: 4288092.05 | K34: 2019-10-10 | L34: 718 | M34: INE837H01020
A35: AEGISCHEM | B35: EQ | C35: 164.1 | D35: 172.95 | E35: 163.45 | F35: 164.7 | G35: 167.15 | H35: 166.7 | I35: 115157 | J35: 19304283.05 | K35: 2019-10-10 | L35: 3561 | M35: INE208C01025
A36: AFFLE | B36: EQ | C36: 1239 | D36: 1294.6 | E36: 1190 | F36: 1198.2 | G36: 1194 | H36: 1234.1 | I36: 200638 | J36: 247588491.2 | K36: 2019-10-10 | L36: 13854 | M36: INE00WC01019
A37: AGARIND | B37: EQ | C37: 124.3 | D37: 124.95 | E37: 117.45 | F37: 119.95 | G37: 119.95 | H37: 118.15 | I37: 3781 | J37: 458080.85 | K37: 2019-10-10 | L37: 95 | M37: INE204E01012
A38: AGCNET | B38: BE | C38: 115 | D38: 115 | E38: 115 | F38: 115 | G38: 115 | H38: 110.55 | I38: 630 | J38: 72450 | K38: 2019-10-10 | L38: 9 | M38: INE676A01019
A39: AGLSL | B39: EQ | C39: 49 | D39: 51.5 | E39: 48.15 | F39: 48.9 | G39: 49.5 | H39: 50.05 | I39: 7011 | J39: 349956.55 | K39: 2019-10-10 | L39: 90 | M39: INE517U01013
A40: AGRITECH | B40: EQ | C40: 45.85 | D40: 45.85 | E40: 43.7 | F40: 44.55 | G40: 44.9 | H40: 44.7 | I40: 9710 | J40: 431722.3 | K40: 2019-10-10 | L40: 96 | M40: INE449G01018
A41: AGROPHOS | B41: EQ | C41: 106.75 | D41: 108.35 | E41: 106.75 | F41: 108.05 | G41: 108 | H41: 106.7 | I41: 401718 | J41: 43221541.9 | K41: 2019-10-10 | L41: 24497 | M41: INE740V01019
A42: AHLEAST | B42: EQ | C42: 176.4 | D42: 182.9 | E42: 176 | F42: 178.4 | G42: 181.8 | H42: 177.05 | I42: 225 | J42: 40024.8 | K42: 2019-10-10 | L42: 31 | M42: INE926K01017
A43: AHLUCONT | B43: EQ | C43: 273.3 | D43: 282 | E43: 268.2 | F43: 275.2 | G43: 279 | H43: 273.35 | I43: 2071 | J43: 565926.25 | K43: 2019-10-10 | L43: 272 | M43: INE758C01029
A44: AHLWEST | B44: EQ | C44: 305 | D44: 305.25 | E44: 287 | F44: 290.25 | G44: 292.65 | H44: 305.15 | I44: 373 | J44: 110845.95 | K44: 2019-10-10 | L44: 84 | M44: INE915K01010
A45: AIAENG | B45: EQ | C45: 1650 | D45: 1655.05 | E45: 1607.05 | F45: 1623.35 | G45: 1640 | H45: 1644.35 | I45: 7594 | J45: 12377353.25 | K45: 2019-10-10 | L45: 1349 | M45: INE212H01026
A46: AIONJSW | B46: EQ | C46: 9.85 | D46: 10 | E46: 9.85 | F46: 9.95 | G46: 10 | H46: 9.95 | I46: 67287 | J46: 670702.65 | K46: 2019-10-10 | L46: 122 | M46: INE743C01021
A47: AIRAN | B47: EQ | C47: 13 | D47: 13 | E47: 12.5 | F47: 12.5 | G47: 12.5 | H47: 13 | I47: 14370 | J47: 182074.9 | K47: 2019-10-10 | L47: 31 | M47: INE645W01026
A48: AJANTPHARM | B48: EQ | C48: 985 | D48: 988.95 | E48: 972 | F48: 976.55 | G48: 972 | H48: 981.9 | I48: 22445 | J48: 21971978.55 | K48: 2019-10-10 | L48: 2418 | M48: INE031B01049
A49: AJMERA | B49: EQ | C49: 114 | D49: 117 | E49: 109 | F49: 110.9 | G49: 110 | H49: 114.7 | I49: 33094 | J49: 3721593.15 | K49: 2019-10-10 | L49: 693 | M49: INE298G01027
A50: AKSHARCHEM | B50: EQ | C50: 204.7 | D50: 206 | E50: 195.95 | F50: 198.05 | G50: 200 | H50: 204.7 | I50: 5738 | J50: 1150075.4 | K50: 2019-10-10 | L50: 254 | M50: INE542B01011
A51: AKSHOPTFBR | B51: EQ | C51: 7.5 | D51: 7.75 | E51: 7.05 | F51: 7.4 | G51: 7.35 | H51: 7.4 | I51: 435915 | J51: 3207407.65 | K51: 2019-10-10 | L51: 777 | M51: INE523B01011
A52: AKZOINDIA | B52: EQ | C52: 1854.95 | D52: 1869.95 | E52: 1818 | F52: 1822.75 | G52: 1827.95 | H52: 1850.7 | I52: 5614 | J52: 10320155.55 | K52: 2019-10-10 | L52: 915 | M52: INE133A01011
A53: ALANKIT | B53: EQ | C53: 20.85 | D53: 20.85 | E53: 19.8 | F53: 20.05 | G53: 20.45 | H53: 20.15 | I53: 120296 | J53: 2414088.35 | K53: 2019-10-10 | L53: 345 | M53: INE914E01040
A54: ALBERTDAVD | B54: EQ | C54: 338.45 | D54: 340.6 | E54: 330 | F54: 332.25 | G54: 330.25 | H54: 335.9 | I54: 1340 | J54: 446168.25 | K54: 2019-10-10 | L54: 189 | M54: INE155C01010
A55: ALBK | B55: EQ | C55: 26.55 | D55: 27.25 | E55: 26 | F55: 26.55 | G55: 26.4 | H55: 26.55 | I55: 935127 | J55: 24939249.2 | K55: 2019-10-10 | L55: 3093 | M55: INE428A01015
A56: ALCHEM | B56: BE | C56: 0.9 | D56: 0.9 | E56: 0.85 | F56: 0.85 | G56: 0.85 | H56: 0.9 | I56: 338 | J56: 288.3 | K56: 2019-10-10 | L56: 8 | M56: INE964B01033
A57: ALEMBICLTD | B57: EQ | C57: 44.45 | D57: 46.3 | E57: 44 | F57: 45.75 | G57: 46 | H57: 44.4 | I57: 56280 | J57: 2564225.55 | K57: 2019-10-10 | L57: 441 | M57: INE426A01027
A58: ALICON | B58: EQ | C58: 339 | D58: 341 | E58: 331.1 | F58: 336.9 | G58: 339.65 | H58: 335.85 | I58: 979 | J58: 329058.65 | K58: 2019-10-10 | L58: 40 | M58: INE062D01024
A59: ALKALI | B59: EQ | C59: 45.55 | D59: 45.95 | E59: 44.3 | F59: 44.75 | G59: 44.3 | H59: 46.1 | I59: 989 | J59: 44399.15 | K59: 2019-10-10 | L59: 46 | M59: INE773I01017
A60: ALKEM | B60: EQ | C60: 1932.6 | D60: 1950 | E60: 1910 | F60: 1929 | G60: 1932 | H60: 1938.25 | I60: 51518 | J60: 99242506.9 | K60: 2019-10-10 | L60: 2326 | M60: INE540L01014
A61: ALKYLAMINE | B61: EQ | C61: 869.85 | D61: 879.9 | E61: 841.9 | F61: 853.6 | G61: 860 | H61: 863.8 | I61: 5559 | J61: 4776577.6 | K61: 2019-10-10 | L61: 416 | M61: INE150B01021
A62: ALLCARGO | B62: EQ | C62: 98.85 | D62: 99.4 | E62: 97.1 | F62: 98.3 | G62: 98.05 | H62: 99.6 | I62: 80332 | J62: 7914687 | K62: 2019-10-10 | L62: 1611 | M62: INE418H01029
A63: ALLSEC | B63: EQ | C63: 289.4 | D63: 289.4 | E63: 264.2 | F63: 275 | G63: 285.5 | H63: 281.1 | I63: 4166 | J63: 1155302.65 | K63: 2019-10-10 | L63: 341 | M63: INE835G01018
A64: ALMONDZ | B64: EQ | C64: 9.5 | D64: 9.5 | E64: 9.5 | F64: 9.5 | G64: 9.5 | H64: 9.5 | I64: 60 | J64: 570 | K64: 2019-10-10 | L64: 2 | M64: INE326B01027
A65: ALOKTEXT | B65: EQ | C65: 1.7 | D65: 1.7 | E65: 1.65 | F65: 1.7 | G65: 1.7 | H65: 1.65 | I65: 2654955 | J65: 4513413.5 | K65: 2019-10-10 | L65: 333 | M65: INE270A01011
A66: ALPA | B66: EQ | C66: 14.6 | D66: 14.6 | E66: 13.8 | F66: 14 | G66: 14.2 | H66: 14.15 | I66: 5243 | J66: 74523.5 | K66: 2019-10-10 | L66: 77 | M66: INE385I01010
A67: ALPHAGEO | B67: EQ | C67: 187.95 | D67: 190.2 | E67: 185 | F67: 186.25 | G67: 187 | H67: 188.75 | I67: 2756 | J67: 517201.6 | K67: 2019-10-10 | L67: 251 | M67: INE137C01018
A68: ALPSINDUS | B68: BE | C68: 0.3 | D68: 0.3 | E68: 0.3 | F68: 0.3 | G68: 0.3 | H68: 0.35 | I68: 955 | J68: 286.5 | K68: 2019-10-10 | L68: 3 | M68: INE093B01015
A69: AMARAJABAT | B69: EQ | C69: 693.55 | D69: 700 | E69: 677.15 | F69: 680 | G69: 679 | H69: 693.55 | I69: 180484 | J69: 123955338.8 | K69: 2019-10-10 | L69: 6197 | M69: INE885A01032
A70: AMBER | B70: EQ | C70: 887.95 | D70: 923 | E70: 885.9 | F70: 908.65 | G70: 905 | H70: 885.2 | I70: 18539 | J70: 16858004.7 | K70: 2019-10-10 | L70: 1804 | M70: INE371P01015
A71: AMBIKCO | B71: EQ | C71: 904.5 | D71: 916.5 | E71: 900 | F71: 908.1 | G71: 908.95 | H71: 903.9 | I71: 1463 | J71: 1324961.85 | K71: 2019-10-10 | L71: 220 | M71: INE540G01014
A72: AMBUJACEM | B72: EQ | C72: 191.3 | D72: 191.7 | E72: 186.85 | F72: 188 | G72: 188.75 | H72: 192.35 | I72: 1878899 | J72: 354206552 | K72: 2019-10-10 | L72: 13718 | M72: INE079A01024
A73: AMDIND | B73: EQ | C73: 17.75 | D73: 17.75 | E73: 15.9 | F73: 15.9 | G73: 15.9 | H73: 16.35 | I73: 3483 | J73: 55533.25 | K73: 2019-10-10 | L73: 22 | M73: INE005I01014
A74: AMJLAND | B74: EQ | C74: 15.25 | D74: 16.4 | E74: 15.25 | F74: 15.45 | G74: 15.75 | H74: 15.85 | I74: 4657 | J74: 72753.05 | K74: 2019-10-10 | L74: 49 | M74: INE606A01024
A75: AMRUTANJAN | B75: EQ | C75: 339.25 | D75: 363.7 | E75: 337.1 | F75: 347.2 | G75: 346.4 | H75: 339.95 | I75: 62617 | J75: 21911507.9 | K75: 2019-10-10 | L75: 5339 | M75: INE098F01031
A76: ANANTRAJ | B76: EQ | C76: 29 | D76: 29.45 | E76: 28.05 | F76: 28.3 | G76: 28.25 | H76: 28.7 | I76: 95110 | J76: 2731521.35 | K76: 2019-10-10 | L76: 436 | M76: INE242C01024
A77: ANDHRABANK | B77: EQ | C77: 16.4 | D77: 16.45 | E77: 16.05 | F77: 16.1 | G77: 16.1 | H77: 16.45 | I77: 214207 | J77: 3480225.8 | K77: 2019-10-10 | L77: 992 | M77: INE434A01013
A78: ANDHRACEMT | B78: BE | C78: 2.5 | D78: 2.55 | E78: 2.35 | F78: 2.55 | G78: 2.55 | H78: 2.45 | I78: 80144 | J78: 203579.55 | K78: 2019-10-10 | L78: 99 | M78: INE666E01012
A79: ANDHRSUGAR | B79: EQ | C79: 272.55 | D79: 272.55 | E79: 258.75 | F79: 263.25 | G79: 260 | H79: 270.05 | I79: 21440 | J79: 5691369.1 | K79: 2019-10-10 | L79: 992 | M79: INE715B01013
A80: ANIKINDS | B80: EQ | C80: 7.1 | D80: 7.1 | E80: 6.7 | F80: 6.75 | G80: 6.75 | H80: 7.1 | I80: 402 | J80: 2760.25 | K80: 2019-10-10 | L80: 10 | M80: INE087B01017
A81: ANKITMETAL | B81: BE | C81: 0.5 | D81: 0.55 | E81: 0.5 | F81: 0.5 | G81: 0.5 | H81: 0.55 | I81: 2545 | J81: 1278 | K81: 2019-10-10 | L81: 8 | M81: INE106I01010
A82: ANSALAPI | B82: EQ | C82: 3.9 | D82: 4.15 | E82: 3.9 | F82: 4 | G82: 4 | H82: 4.05 | I82: 20201 | J82: 80041.05 | K82: 2019-10-10 | L82: 60 | M82: INE436A01026
A83: ANSALHSG | B83: EQ | C83: 4.55 | D83: 4.95 | E83: 4.4 | F83: 4.55 | G83: 4.55 | H83: 4.6 | I83: 33155 | J83: 151160.05 | K83: 2019-10-10 | L83: 135 | M83: INE880B01015
A84: ANTGRAPHIC | B84: BE | C84: 0.7 | D84: 0.75 | E84: 0.7 | F84: 0.75 | G84: 0.75 | H84: 0.75 | I84: 44420 | J84: 31863.9 | K84: 2019-10-10 | L84: 29 | M84: INE414B01021
A85: ANUP | B85: EQ | C85: 436.05 | D85: 459.7 | E85: 436.05 | F85: 453.05 | G85: 449 | H85: 448.25 | I85: 9818 | J85: 4397538.35 | K85: 2019-10-10 | L85: 467 | M85: INE294Z01018
A86: APARINDS | B86: EQ | C86: 510 | D86: 512.35 | E86: 502 | F86: 506.4 | G86: 506.9 | H86: 508.8 | I86: 1969 | J86: 995637.35 | K86: 2019-10-10 | L86: 228 | M86: INE372A01015
A87: APCL | B87: EQ | C87: 143.4 | D87: 143.4 | E87: 139.4 | F87: 141 | G87: 141 | H87: 142.35 | I87: 1111 | J87: 156644.9 | K87: 2019-10-10 | L87: 57 | M87: INE071F01012
A88: APCOTEXIND | B88: EQ | C88: 184.95 | D88: 192.45 | E88: 184.95 | F88: 190.15 | G88: 190 | H88: 187.5 | I88: 12880 | J88: 2438595.65 | K88: 2019-10-10 | L88: 463 | M88: INE116A01032
A89: APEX | B89: EQ | C89: 212.25 | D89: 213.85 | E89: 206.2 | F89: 207.95 | G89: 206.9 | H89: 212.45 | I89: 31642 | J89: 6647212.7 | K89: 2019-10-10 | L89: 1001 | M89: INE346W01013
A90: APLAPOLLO | B90: EQ | C90: 1366.5 | D90: 1371.5 | E90: 1340.3 | F90: 1361.95 | G90: 1351.5 | H90: 1369.5 | I90: 18516 | J90: 25181841.4 | K90: 2019-10-10 | L90: 1114 | M90: INE702C01019
A91: APLLTD | B91: EQ | C91: 537.3 | D91: 547.8 | E91: 531.8 | F91: 540.1 | G91: 537.65 | H91: 537.3 | I91: 29907 | J91: 16199574.3 | K91: 2019-10-10 | L91: 1439 | M91: INE901L01018
A92: APOLLO | B92: EQ | C92: 70 | D92: 70 | E92: 68.2 | F92: 69.5 | G92: 70 | H92: 68.7 | I92: 16947 | J92: 1179531.5 | K92: 2019-10-10 | L92: 478 | M92: INE713T01010
A93: APOLLOHOSP | B93: EQ | C93: 1422 | D93: 1438 | E93: 1405.5 | F93: 1412.25 | G93: 1412.25 | H93: 1425.05 | I93: 435916 | J93: 619628304.1 | K93: 2019-10-10 | L93: 22062 | M93: INE437A01024
A94: APOLLOTYRE | B94: EQ | C94: 168.8 | D94: 169.5 | E94: 165 | F94: 165.85 | G94: 166.05 | H94: 168.85 | I94: 1585971 | J94: 264759654 | K94: 2019-10-10 | L94: 11515 | M94: INE438A01022
A95: APOLSINHOT | B95: EQ | C95: 748 | D95: 763.85 | E95: 742.95 | F95: 757.95 | G95: 758 | H95: 748 | I95: 539 | J95: 406435.85 | K95: 2019-10-10 | L95: 95 | M95: INE451F01024
A96: APTECHT | B96: EQ | C96: 146.35 | D96: 148.9 | E96: 142.35 | F96: 144.5 | G96: 142.95 | H96: 146.85 | I96: 90867 | J96: 13302654.15 | K96: 2019-10-10 | L96: 2014 | M96: INE266F01018
A97: ARCHIDPLY | B97: EQ | C97: 27.5 | D97: 27.5 | E97: 25.35 | F97: 26.55 | G97: 26.65 | H97: 26.15 | I97: 1845 | J97: 48699.3 | K97: 2019-10-10 | L97: 84 | M97: INE877I01016
A98: ARCHIES | B98: BE | C98: 19.4 | D98: 19.4 | E98: 18.7 | F98: 18.85 | G98: 18.75 | H98: 18.7 | I98: 10963 | J98: 209266.2 | K98: 2019-10-10 | L98: 66 | M98: INE731A01020
A99: ARCOTECH | B99: BE | C99: 1.8 | D99: 1.8 | E99: 1.75 | F99: 1.75 | G99: 1.75 | H99: 1.8 | I99: 1782 | J99: 3128.7 | K99: 2019-10-10 | L99: 16 | M99: INE574I01035
A100: ARIES | B100: EQ | C100: 58.3 | D100: 59.55 | E100: 58 | F100: 58.65 | G100: 58.2 | H100: 58.25 | I100: 13538 | J100: 791528.45 | K100: 2019-10-10 | L100: 208 | M100: INE298I01015
A101: ARIHANT | B101: EQ | C101: 18 | D101: 18 | E101: 16.55 | F101: 17.9 | G101: 17.9 | H101: 18.7 | I101: 665 | J101: 11635.75 | K101: 2019-10-10 | L101: 21 | M101: INE413D01011
A102: ARIHANTSUP | B102: BE | C102: 29.4 | D102: 29.4 | E102: 29.4 | F102: 29.4 | G102: 29.4 | H102: 30.9 | I102: 1059 | J102: 31134.6 | K102: 2019-10-10 | L102: 8 | M102: INE643K01018
A103: ARMANFIN | B103: EQ | C103: 537.9 | D103: 559.85 | E103: 537.9 | F103: 553.6 | G103: 553 | H103: 537.9 | I103: 37976 | J103: 20565983.55 | K103: 2019-10-10 | L103: 356 | M103: INE109C01017
A104: AROGRANITE | B104: EQ | C104: 38.55 | D104: 39.5 | E104: 37.5 | F104: 38.4 | G104: 38.4 | H104: 38.5 | I104: 5622 | J104: 215451.7 | K104: 2019-10-10 | L104: 173 | M104: INE210C01013
A105: ARROWGREEN | B105: EQ | C105: 58.65 | D105: 58.85 | E105: 54.05 | F105: 54.65 | G105: 54.3 | H105: 56.1 | I105: 1384 | J105: 77511.4 | K105: 2019-10-10 | L105: 97 | M105: INE570D01018
A106: ARROWTEX | B106: EQ | C106: 9.75 | D106: 10.3 | E106: 9.55 | F106: 9.95 | G106: 10 | H106: 9.75 | I106: 6320 | J106: 63125.05 | K106: 2019-10-10 | L106: 59 | M106: INE933J01015
A107: ARSHIYA | B107: EQ | C107: 19.5 | D107: 20.25 | E107: 18.55 | F107: 18.95 | G107: 19.2 | H107: 19.5 | I107: 77348 | J107: 1500537.05 | K107: 2019-10-10 | L107: 216 | M107: INE968D01022
A108: ARSSINFRA | B108: EQ | C108: 20.15 | D108: 20.2 | E108: 18.8 | F108: 20 | G108: 20.2 | H108: 19.25 | I108: 15159 | J108: 296293.3 | K108: 2019-10-10 | L108: 137 | M108: INE267I01010
A109: ARVIND | B109: EQ | C109: 44.35 | D109: 44.8 | E109: 42.9 | F109: 43.05 | G109: 43 | H109: 44.35 | I109: 1295946 | J109: 56810280.3 | K109: 2019-10-10 | L109: 6316 | M109: INE034A01011
A110: ARVINDFASN | B110: EQ | C110: 423.25 | D110: 424 | E110: 416.95 | F110: 422.05 | G110: 422.55 | H110: 424.3 | I110: 5876 | J110: 2475072.3 | K110: 2019-10-10 | L110: 919 | M110: INE955V01021
A111: ARVSMART | B111: EQ | C111: 83 | D111: 87 | E111: 80.75 | F111: 85.3 | G111: 85.2 | H111: 84.9 | I111: 23044 | J111: 1938073.6 | K111: 2019-10-10 | L111: 696 | M111: INE034S01021
A112: ASAHIINDIA | B112: EQ | C112: 180.05 | D112: 183.9 | E112: 180.05 | F112: 180.8 | G112: 181.5 | H112: 180.3 | I112: 6828 | J112: 1239078.55 | K112: 2019-10-10 | L112: 198 | M112: INE439A01020
A113: ASAHISONG | B113: EQ | C113: 135.5 | D113: 135.5 | E113: 132 | F113: 132.25 | G113: 133.9 | H113: 130 | I113: 545 | J113: 72041.05 | K113: 2019-10-10 | L113: 27 | M113: INE228I01012
A114: ASAL | B114: EQ | C114: 33.05 | D114: 33.9 | E114: 33.05 | F114: 33.5 | G114: 33.5 | H114: 33.45 | I114: 1208 | J114: 40812.5 | K114: 2019-10-10 | L114: 26 | M114: INE900C01027
A115: ASHAPURMIN | B115: EQ | C115: 38.35 | D115: 38.35 | E115: 34.75 | F115: 34.75 | G115: 34.75 | H115: 36.55 | I115: 222778 | J115: 8267682.1 | K115: 2019-10-10 | L115: 606 | M115: INE348A01023
A116: ASHIANA | B116: EQ | C116: 100.5 | D116: 100.9 | E116: 98 | F116: 98.9 | G116: 99 | H116: 100.5 | I116: 126514 | J116: 12635904.4 | K116: 2019-10-10 | L116: 897 | M116: INE365D01021
A117: ASHIMASYN | B117: EQ | C117: 7.3 | D117: 7.6 | E117: 7.1 | F117: 7.1 | G117: 7.15 | H117: 7.3 | I117: 18677 | J117: 134973.35 | K117: 2019-10-10 | L117: 88 | M117: INE440A01010
A118: ASHOKA | B118: EQ | C118: 97.4 | D118: 98 | E118: 97.15 | F118: 97.7 | G118: 97.5 | H118: 97.5 | I118: 308157 | J118: 30055296.65 | K118: 2019-10-10 | L118: 1602 | M118: INE442H01029
A119: ASHOKLEY | B119: EQ | C119: 68.5 | D119: 70.75 | E119: 67.55 | F119: 68.85 | G119: 68.9 | H119: 69.05 | I119: 41367276 | J119: 2860475001 | K119: 2019-10-10 | L119: 104813 | M119: INE208A01029
A120: ASIANHOTNR | B120: EQ | C120: 108.8 | D120: 108.8 | E120: 101.4 | F120: 104.55 | G120: 105 | H120: 103 | I120: 812 | J120: 85173.55 | K120: 2019-10-10 | L120: 104 | M120: INE363A01022
A121: ASIANPAINT | B121: EQ | C121: 1765 | D121: 1793 | E121: 1756.5 | F121: 1778.6 | G121: 1776 | H121: 1773.45 | I121: 1599166 | J121: 2843395184 | K121: 2019-10-10 | L121: 63553 | M121: INE021A01026
A122: ASIANTILES | B122: EQ | C122: 209.75 | D122: 215.9 | E122: 204.15 | F122: 207.5 | G122: 204.25 | H122: 210.15 | I122: 73017 | J122: 15329633.75 | K122: 2019-10-10 | L122: 4488 | M122: INE022I01019
A123: ASPINWALL | B123: EQ | C123: 142 | D123: 142 | E123: 130 | F123: 135 | G123: 135 | H123: 133.2 | I123: 3825 | J123: 502707.45 | K123: 2019-10-10 | L123: 52 | M123: INE991I01015
A124: ASSAMCO | B124: BE | C124: 0.6 | D124: 0.6 | E124: 0.55 | F124: 0.6 | G124: 0.6 | H124: 0.6 | I124: 63759 | J124: 36432.65 | K124: 2019-10-10 | L124: 38 | M124: INE442A01024
A125: ASTEC | B125: EQ | C125: 386 | D125: 389.5 | E125: 372 | F125: 383.3 | G125: 389.5 | H125: 374.3 | I125: 5619 | J125: 2144751.9 | K125: 2019-10-10 | L125: 355 | M125: INE563J01010
A126: ASTERDM | B126: EQ | C126: 116.55 | D126: 118.8 | E126: 116.55 | F126: 117.95 | G126: 117.8 | H126: 117.05 | I126: 12635 | J126: 1491338.35 | K126: 2019-10-10 | L126: 316 | M126: INE914M01019
A127: ASTRAL | B127: EQ | C127: 1198 | D127: 1198.25 | E127: 1153 | F127: 1163.4 | G127: 1164 | H127: 1190.5 | I127: 60454 | J127: 70413320.35 | K127: 2019-10-10 | L127: 3611 | M127: INE006I01046
A128: ASTRAMICRO | B128: EQ | C128: 78.7 | D128: 79.2 | E128: 76.35 | F128: 78.05 | G128: 78 | H128: 79.45 | I128: 36726 | J128: 2852960.1 | K128: 2019-10-10 | L128: 461 | M128: INE386C01029
A129: ASTRAZEN | B129: EQ | C129: 2200.5 | D129: 2248 | E129: 2140 | F129: 2159.6 | G129: 2142.9 | H129: 2200.75 | I129: 7792 | J129: 17109492.45 | K129: 2019-10-10 | L129: 1074 | M129: INE203A01020
A130: ASTRON | B130: EQ | C130: 97.55 | D130: 99 | E130: 96.1 | F130: 97.3 | G130: 97 | H130: 98.25 | I130: 289689 | J130: 28276802.8 | K130: 2019-10-10 | L130: 4009 | M130: INE646X01014
A131: ATFL | B131: EQ | C131: 486.3 | D131: 486.75 | E131: 477 | F131: 481.65 | G131: 482.8 | H131: 485.8 | I131: 1862 | J131: 895852.3 | K131: 2019-10-10 | L131: 159 | M131: INE209A01019
A132: ATLANTA | B132: BE | C132: 7.5 | D132: 7.5 | E132: 6.9 | F132: 7.15 | G132: 7.35 | H132: 7.25 | I132: 11324 | J132: 81102.5 | K132: 2019-10-10 | L132: 56 | M132: INE285H01022
A133: ATUL | B133: EQ | C133: 3943.1 | D133: 3986.4 | E133: 3870 | F133: 3896.4 | G133: 3876.1 | H133: 3943.1 | I133: 7696 | J133: 30115586.7 | K133: 2019-10-10 | L133: 1818 | M133: INE100A01010
A134: ATULAUTO | B134: EQ | C134: 223.1 | D134: 228.4 | E134: 223.1 | F134: 224.7 | G134: 224.25 | H134: 228.75 | I134: 5932 | J134: 1338065.7 | K134: 2019-10-10 | L134: 223 | M134: INE951D01028
A135: AUBANK | B135: EQ | C135: 644.7 | D135: 649 | E135: 636.3 | F135: 638.7 | G135: 640 | H135: 641.25 | I135: 54896 | J135: 35283688.65 | K135: 2019-10-10 | L135: 3955 | M135: INE949L01017
A136: AURIONPRO | B136: EQ | C136: 93.5 | D136: 93.5 | E136: 84.2 | F136: 85.7 | G136: 84.3 | H136: 91.2 | I136: 19692 | J136: 1720447.95 | K136: 2019-10-10 | L136: 520 | M136: INE132H01018
A137: AUROPHARMA | B137: EQ | C137: 474 | D137: 474 | E137: 436.65 | F137: 465.15 | G137: 461.8 | H137: 474.4 | I137: 12092242 | J137: 5506852767 | K137: 2019-10-10 | L137: 186501 | M137: INE406A01037
A138: AUSOMENT | B138: EQ | C138: 30.8 | D138: 30.8 | E138: 27.5 | F138: 27.55 | G138: 27.55 | H138: 28.05 | I138: 1065 | J138: 29498.45 | K138: 2019-10-10 | L138: 43 | M138: INE218C01016
A139: AUTOAXLES | B139: EQ | C139: 843 | D139: 864 | E139: 834 | F139: 838.25 | G139: 836.55 | H139: 862.3 | I139: 3408 | J139: 2881523.7 | K139: 2019-10-10 | L139: 473 | M139: INE449A01011
A140: AUTOIND | B140: EQ | C140: 33.05 | D140: 34.85 | E140: 33.05 | F140: 33.5 | G140: 33.7 | H140: 34.55 | I140: 7980 | J140: 268956 | K140: 2019-10-10 | L140: 118 | M140: INE718H01014
A141: AUTOLITIND | B141: EQ | C141: 19.85 | D141: 20.65 | E141: 18.4 | F141: 19.75 | G141: 19 | H141: 19.85 | I141: 5824 | J141: 112435.4 | K141: 2019-10-10 | L141: 51 | M141: INE448A01013
A142: AVADHSUGAR | B142: EQ | C142: 263.4 | D142: 269.9 | E142: 258 | F142: 262.35 | G142: 261.9 | H142: 263.9 | I142: 47318 | J142: 12520122.25 | K142: 2019-10-10 | L142: 2265 | M142: INE349W01017
A143: AVANTIFEED | B143: EQ | C143: 355.5 | D143: 363.2 | E143: 350.25 | F143: 357.1 | G143: 356.35 | H143: 355.2 | I143: 121869 | J143: 43543678.05 | K143: 2019-10-10 | L143: 4188 | M143: INE871C01038
A144: AVTNPL | B144: EQ | C144: 22.9 | D144: 23.15 | E144: 22 | F144: 22.45 | G144: 22.7 | H144: 23 | I144: 19278 | J144: 437496.05 | K144: 2019-10-10 | L144: 131 | M144: INE488D01021
A145: AXISBANK | B145: EQ | C145: 680 | D145: 684.3 | E145: 665.35 | F145: 672.95 | G145: 674.9 | H145: 686.3 | I145: 8679981 | J145: 5835642476 | K145: 2019-10-10 | L145: 129012 | M145: INE238A01034
A146: AXISCADES | B146: EQ | C146: 78 | D146: 78.2 | E146: 72.3 | F146: 75.8 | G146: 74 | H146: 78.35 | I146: 146338 | J146: 11105993.9 | K146: 2019-10-10 | L146: 392 | M146: INE555B01013
A147: AXISGOLD | B147: EQ | C147: 3372 | D147: 3390.95 | E147: 3354.05 | F147: 3374.95 | G147: 3374.95 | H147: 3371.5 | I147: 226 | J147: 761908.75 | K147: 2019-10-10 | L147: 74 | M147: INF846K01347
A148: AXISNIFTY | B148: EQ | C148: 1156.22 | D148: 1165.85 | E148: 1153 | F148: 1165.39 | G148: 1165.85 | H148: 1160 | I148: 662 | J148: 770267.44 | K148: 2019-10-10 | L148: 25 | M148: INF846K01ZL0
A149: AYMSYNTEX | B149: EQ | C149: 29.1 | D149: 30.05 | E149: 29.05 | F149: 30 | G149: 30 | H149: 29.7 | I149: 6981 | J149: 209255.15 | K149: 2019-10-10 | L149: 37 | M149: INE193B01039
A150: BAGFILMS | B150: EQ | C150: 1.4 | D150: 1.45 | E150: 1.4 | F150: 1.4 | G150: 1.4 | H150: 1.45 | I150: 155287 | J150: 218031.75 | K150: 2019-10-10 | L150: 118 | M150: INE116D01028
A151: BAJAJ-AUTO | B151: EQ | C151: 2881 | D151: 2932 | E151: 2865 | F151: 2886.25 | G151: 2898 | H151: 2891.85 | I151: 313632 | J151: 909565730.4 | K151: 2019-10-10 | L151: 25151 | M151: INE917I01010
A152: BAJAJCON | B152: EQ | C152: 244.8 | D152: 244.8 | E152: 239.1 | F152: 240.4 | G152: 243.8 | H152: 243.7 | I152: 65491 | J152: 15747696.25 | K152: 2019-10-10 | L152: 1727 | M152: INE933K01021
A153: BAJAJELEC | B153: EQ | C153: 376.7 | D153: 386.8 | E153: 373.3 | F153: 379.1 | G153: 383 | H153: 376.8 | I153: 110223 | J153: 41702459.25 | K153: 2019-10-10 | L153: 2877 | M153: INE193E01025
A154: BAJAJFINSV | B154: EQ | C154: 8280 | D154: 8345 | E154: 8175 | F154: 8201.85 | G154: 8202 | H154: 8318.25 | I154: 200005 | J154: 1648533991 | K154: 2019-10-10 | L154: 23125 | M154: INE918I01018
A155: BAJAJHIND | B155: EQ | C155: 6 | D155: 6.15 | E155: 5.95 | F155: 6 | G155: 6.05 | H155: 6.1 | I155: 482206 | J155: 2910802.45 | K155: 2019-10-10 | L155: 573 | M155: INE306A01021
A156: BAJAJHLDNG | B156: EQ | C156: 3623 | D156: 3623 | E156: 3580 | F156: 3587.85 | G156: 3580.55 | H156: 3616 | I156: 7662 | J156: 27566218.15 | K156: 2019-10-10 | L156: 1730 | M156: INE118A01012
A157: BAJFINANCE | B157: EQ | C157: 4013.65 | D157: 4015 | E157: 3931 | F157: 3948.9 | G157: 3952 | H157: 4023.9 | I157: 1102788 | J157: 4370474571 | K157: 2019-10-10 | L157: 78619 | M157: INE296A01024
A158: BALAJITELE | B158: EQ | C158: 53.25 | D158: 53.25 | E158: 51.55 | F158: 51.65 | G158: 51.6 | H158: 53.2 | I158: 28671 | J158: 1501682.85 | K158: 2019-10-10 | L158: 376 | M158: INE794B01026
A159: BALAMINES | B159: EQ | C159: 309.1 | D159: 317.5 | E159: 308.1 | F159: 310.35 | G159: 308.1 | H159: 312.05 | I159: 8364 | J159: 2626360.5 | K159: 2019-10-10 | L159: 419 | M159: INE050E01027
A160: BALAXI | B160: EQ | C160: 81.25 | D160: 88 | E160: 81.25 | F160: 83.05 | G160: 83.05 | H160: 85 | I160: 1241 | J160: 105764.85 | K160: 2019-10-10 | L160: 23 | M160: INE618N01014
A161: BALKRISHNA | B161: BE | C161: 23.45 | D161: 23.45 | E161: 23.45 | F161: 23.45 | G161: 23.45 | H161: 24.65 | I161: 1197 | J161: 28069.65 | K161: 2019-10-10 | L161: 12 | M161: INE875R01011
A162: BALKRISIND | B162: EQ | C162: 734.95 | D162: 749.9 | E162: 726.85 | F162: 745.6 | G162: 744.45 | H162: 733.05 | I162: 343383 | J162: 254393145.3 | K162: 2019-10-10 | L162: 8751 | M162: INE787D01026
A163: BALLARPUR | B163: EQ | C163: 0.6 | D163: 0.6 | E163: 0.55 | F163: 0.6 | G163: 0.6 | H163: 0.6 | I163: 1737170 | J163: 998905.6 | K163: 2019-10-10 | L163: 186 | M163: INE294A01037
A164: BALMLAWRIE | B164: EQ | C164: 166.45 | D164: 167.1 | E164: 165.25 | F164: 165.6 | G164: 165.7 | H164: 166.15 | I164: 26279 | J164: 4366062.25 | K164: 2019-10-10 | L164: 674 | M164: INE164A01016
A165: BALPHARMA | B165: EQ | C165: 37.5 | D165: 38.1 | E165: 36.7 | F165: 37.8 | G165: 37.5 | H165: 37.55 | I165: 2187 | J165: 81457.15 | K165: 2019-10-10 | L165: 79 | M165: INE083D01012
A166: BALRAMCHIN | B166: EQ | C166: 153.75 | D166: 155.55 | E166: 150.4 | F166: 151.8 | G166: 151.4 | H166: 154.2 | I166: 620796 | J166: 94616366.15 | K166: 2019-10-10 | L166: 7180 | M166: INE119A01028
A167: BANARBEADS | B167: EQ | C167: 32 | D167: 32 | E167: 25.9 | F167: 28.55 | G167: 28 | H167: 29.45 | I167: 17928 | J167: 495794 | K167: 2019-10-10 | L167: 282 | M167: INE655B01011
A168: BANARISUG | B168: EQ | C168: 1148.15 | D168: 1200 | E168: 1089.1 | F168: 1120 | G168: 1100 | H168: 1130 | I168: 394 | J168: 449708.05 | K168: 2019-10-10 | L168: 90 | M168: INE459A01010
A169: BANCOINDIA | B169: EQ | C169: 98.65 | D169: 99.15 | E169: 96.3 | F169: 96.45 | G169: 96.5 | H169: 97.5 | I169: 33493 | J169: 3270638.65 | K169: 2019-10-10 | L169: 859 | M169: INE213C01025
A170: BANDHANBNK | B170: EQ | C170: 482 | D170: 511 | E170: 477 | F170: 506.65 | G170: 509 | H170: 480.55 | I170: 2186326 | J170: 1099727410 | K170: 2019-10-10 | L170: 89500 | M170: INE545U01014
A171: BANG | B171: EQ | C171: 21.6 | D171: 21.7 | E171: 21 | F171: 21.45 | G171: 21.7 | H171: 20.35 | I171: 4126 | J171: 88170.45 | K171: 2019-10-10 | L171: 45 | M171: INE863I01016
A172: BANKBARODA | B172: EQ | C172: 89.9 | D172: 89.9 | E172: 87.25 | F172: 87.8 | G172: 87.75 | H172: 91.05 | I172: 23558861 | J172: 2078065563 | K172: 2019-10-10 | L172: 63980 | M172: INE028A01039
A173: BANKBEES | B173: EQ | C173: 2920 | D173: 2925 | E173: 2852 | F173: 2863.63 | G173: 2870 | H173: 2935.13 | I173: 8752 | J173: 25213007.03 | K173: 2019-10-10 | L173: 1543 | M173: INF732E01078
A174: BANKINDIA | B174: EQ | C174: 61 | D174: 61.25 | E174: 59.25 | F174: 59.9 | G174: 59.8 | H174: 61.6 | I174: 7031788 | J174: 422416474.8 | K174: 2019-10-10 | L174: 16530 | M174: INE084A01016
A175: BANSWRAS | B175: EQ | C175: 68.15 | D175: 71.3 | E175: 66.6 | F175: 67 | G175: 66.6 | H175: 69.35 | I175: 3167 | J175: 216396.85 | K175: 2019-10-10 | L175: 83 | M175: INE629D01012
A176: BARTRONICS | B176: BE | C176: 1.85 | D176: 1.9 | E176: 1.8 | F176: 1.8 | G176: 1.8 | H176: 1.85 | I176: 6200 | J176: 11417.7 | K176: 2019-10-10 | L176: 30 | M176: INE855F01034
A177: BASF | B177: EQ | C177: 987.85 | D177: 1000 | E177: 975 | F177: 976.7 | G177: 975 | H177: 999.15 | I177: 4734 | J177: 4668539.75 | K177: 2019-10-10 | L177: 628 | M177: INE373A01013
A178: BASML | B178: EQ | C178: 124.55 | D178: 130 | E178: 122.5 | F178: 122.9 | G178: 122.5 | H178: 126 | I178: 4092 | J178: 517647.5 | K178: 2019-10-10 | L178: 24 | M178: INE186H01014
A179: BATAINDIA | B179: EQ | C179: 1717 | D179: 1748 | E179: 1691 | F179: 1701.65 | G179: 1700 | H179: 1723.5 | I179: 895098 | J179: 1537808254 | K179: 2019-10-10 | L179: 31688 | M179: INE176A01028
A180: BAYERCROP | B180: EQ | C180: 3342.85 | D180: 3355.8 | E180: 3240 | F180: 3278.95 | G180: 3312 | H180: 3340.9 | I180: 3593 | J180: 11835335.95 | K180: 2019-10-10 | L180: 1497 | M180: INE462A01022
A181: BBL | B181: EQ | C181: 876 | D181: 916.65 | E181: 876 | F181: 893.15 | G181: 895 | H181: 890.75 | I181: 9532 | J181: 8611548.05 | K181: 2019-10-10 | L181: 1003 | M181: INE464A01028
A182: BBTC | B182: EQ | C182: 1088 | D182: 1099 | E182: 1056 | F182: 1069 | G182: 1073 | H182: 1092.15 | I182: 64050 | J182: 68932349.6 | K182: 2019-10-10 | L182: 4555 | M182: INE050A01025
A183: BCG | B183: EQ | C183: 3.2 | D183: 3.35 | E183: 3 | F183: 3.1 | G183: 3.1 | H183: 3.25 | I183: 484601 | J183: 1513562.85 | K183: 2019-10-10 | L183: 331 | M183: INE425B01027
A184: BCP | B184: EQ | C184: 9.3 | D184: 9.3 | E184: 9.3 | F184: 9.3 | G184: 9.3 | H184: 9.45 | I184: 1009 | J184: 9383.7 | K184: 2019-10-10 | L184: 6 | M184: INE905P01028
A185: BDL | B185: EQ | C185: 284.6 | D185: 286.6 | E185: 282 | F185: 283.15 | G185: 284 | H185: 286.25 | I185: 15887 | J185: 4508999.95 | K185: 2019-10-10 | L185: 913 | M185: INE171Z01018
A186: BEARDSELL | B186: EQ | C186: 10.4 | D186: 11.25 | E186: 9.85 | F186: 10.5 | G186: 10.3 | H186: 10.85 | I186: 2026 | J186: 20692.2 | K186: 2019-10-10 | L186: 104 | M186: INE520H01022
A187: BEDMUTHA | B187: EQ | C187: 10.85 | D187: 11.2 | E187: 10.3 | F187: 10.55 | G187: 10.5 | H187: 10.85 | I187: 5409 | J187: 56791.2 | K187: 2019-10-10 | L187: 50 | M187: INE844K01012
A188: BEL | B188: EQ | C188: 105.1 | D188: 106.45 | E188: 103.9 | F188: 105.65 | G188: 105.5 | H188: 105.4 | I188: 4572778 | J188: 481788286.4 | K188: 2019-10-10 | L188: 20126 | M188: INE263A01024
A189: BEML | B189: EQ | C189: 930 | D189: 941.45 | E189: 894 | F189: 906.7 | G189: 897.95 | H189: 934.7 | I189: 456795 | J189: 420914798.6 | K189: 2019-10-10 | L189: 15575 | M189: INE258A01016
A190: BEPL | B190: EQ | C190: 52.7 | D190: 53.25 | E190: 50.2 | F190: 50.6 | G190: 50.4 | H190: 52.3 | I190: 413457 | J190: 21376908.7 | K190: 2019-10-10 | L190: 3506 | M190: INE922A01025
A191: BERGEPAINT | B191: EQ | C191: 450.8 | D191: 476.45 | E191: 447.05 | F191: 469.35 | G191: 466.9 | H191: 449.9 | I191: 4118801 | J191: 1892605350 | K191: 2019-10-10 | L191: 102675 | M191: INE463A01038
A192: BFINVEST | B192: EQ | C192: 275 | D192: 276.95 | E192: 271.1 | F192: 275.05 | G192: 275 | H192: 275.45 | I192: 22589 | J192: 6208447.6 | K192: 2019-10-10 | L192: 622 | M192: INE878K01010
A193: BFUTILITIE | B193: EQ | C193: 164.35 | D193: 165 | E193: 160.6 | F193: 161.45 | G193: 161.3 | H193: 165.1 | I193: 222479 | J193: 36169061.85 | K193: 2019-10-10 | L193: 7295 | M193: INE243D01012
A194: BGLOBAL | B194: BE | C194: 1.65 | D194: 1.65 | E194: 1.55 | F194: 1.55 | G194: 1.55 | H194: 1.6 | I194: 629 | J194: 1008 | K194: 2019-10-10 | L194: 11 | M194: INE224M01013
A195: BGRENERGY | B195: EQ | C195: 32.7 | D195: 32.7 | E195: 31.6 | F195: 31.7 | G195: 31.7 | H195: 32.45 | I195: 42989 | J195: 1381276.05 | K195: 2019-10-10 | L195: 618 | M195: INE661I01014
A196: BHAGERIA | B196: EQ | C196: 106.95 | D196: 107.7 | E196: 101.65 | F196: 102.6 | G196: 101.65 | H196: 104 | I196: 7048 | J196: 727809.35 | K196: 2019-10-10 | L196: 319 | M196: INE354C01027
A197: BHAGYANGR | B197: EQ | C197: 18.85 | D197: 19 | E197: 18.5 | F197: 18.9 | G197: 19 | H197: 18.85 | I197: 2505 | J197: 47187.55 | K197: 2019-10-10 | L197: 44 | M197: INE458B01036
A198: BHAGYAPROP | B198: EQ | C198: 22.3 | D198: 22.3 | E198: 18.1 | F198: 19 | G198: 20.45 | H198: 19.35 | I198: 2372 | J198: 45811.3 | K198: 2019-10-10 | L198: 31 | M198: INE363W01018
A199: BHANDARI | B199: EQ | C199: 1.2 | D199: 1.25 | E199: 1.15 | F199: 1.15 | G199: 1.15 | H199: 1.2 | I199: 35149 | J199: 40761.6 | K199: 2019-10-10 | L199: 36 | M199: INE474E01029
A200: BHARATFORG | B200: EQ | C200: 430.65 | D200: 433.3 | E200: 422.1 | F200: 423.9 | G200: 423.3 | H200: 432.3 | I200: 624592 | J200: 266303843.2 | K200: 2019-10-10 | L200: 16852 | M200: INE465A01025
... 1491 more rows

Sheet Sheet1 (hidden)

Sheet Sheet3 (hidden)

Sheet Sheet4 (hidden)

Sheet Sheet5 (hidden)
